Workbook

Sheet INSTRUCCIONES
B3: INSTRUCCIONES DE USO DEL COTIZADOR
B4: Por favor tomar en cuenta los siguientes pasos al momento de realizar una cotizacion:
B6: Este cotizador tiene como objetivo cotizar diferentes alternativas a clientes existentes que ya posean una poliza vigente con Bupa Global Latin America. Se deben completar todos los campos resaltados en gris en la pestaña: "INGRESO DE DATOS" antes de cotizar, por favor verificar los check marks que esten seleccionados.
B8: DEFINICIONES | D8: Dependientes 24 años ⬇️ | G8: Renovaciones ⬇️ | I8: Low Option ⬇️ | K8: New Business ⬇️
B10: DEPENDIENTES 24 AÑOS Se refiere a los dependientes que cumplen 24 años de edad y que salen de la poliza activa de sus padres, a su propia poliza individual. Para cotizar se debe seleccionar el check mark: "Cotizacion para Dependientes 24 años" NO se debe seleccionar el check mark: "RENOVACIÓN"
B16: ⬆️
B18: RENOVACIONES: Corresponde a un cliente con poliza existente, esto incluye a los asegudorados con poliza de Bupa Panama ó que buscan migrar/transferirse desde cualquier otra entidad bajo Bupa Global Latin America. 1. Se debe seleccionar unicamente el check mark: "RENOVACIÓN" 2. Se debe especificar la fecha de inicio de la poliza. (MM/DD/YYYY)
B19: ⬆️
B21: LOW OPTION: Esto es una opcion para cotizar aplicando un coaseguro del 20% fuera de Panamá. 1. Solo disponible en los productos: Select, Premier & Elite. 2. Se debe seleccionar el check mark: "Variante con coaseguro"
B22: ⬆️
B24: NUEVO NEGOCIO Corresponde al 100% de un nuevo cliente en Bupa, es decir, no puede ser un cliente existente en ninguna de las entidades que forman parte de Bupa Global Latin America (BGLA). Si un cliente posee una póliza en alguna otra entidad de Bupa fuera de Bupa Global Latin America (por ejemplo, Bupa UK, Sanitas, Bupa México, Bupa Australia, entre otras), sí será considerado como nuevo negocio. Todas las cotizaciones de Nuevo Negocio deben realizarse a través del cotizador en línea.
B36: ⬆️

Sheet INGRESO DE DATOS
Q2: 24 years | R2: FALSE | AB2: % base | AE2: % Despues de validación
Q3: Coaseguro (Panamá) | R3: FALSE | X3: Fecha inicio | Y3: Fecha Fin | Z3: Producto | AA3: Plan | AB3: Ajuste tarifa | AC3: Descuento | AE3: Ajuste tarifa | AF3: Descuento
U4: Type | V4: Nuevo Negocio | W4: Antes de octubre de 2020 | X4: 1990-01-01 | Y4: 2020-09-30 | Z4: Bupa Global Ultimate | AA4: 1 | AB4: 0 | AC4: 0 | AE4: =IF($U$53,AB4,0) -> 0 | AF4: =IF($U$53,AC4,0) -> 0
V5: Renovación | Transferencias | Migraciones | X5: 1990-01-01 | Y5: 2020-09-30 | Z5: Bupa Global Ultimate | AA5: 2 | AB5: 0 | AC5: 0 | AE5: =IF($U$53,AB5,0) -> 0 | AF5: =IF($U$53,AC5,0) -> 0
V6: Renovaciones | X6: 1990-01-01 | Y6: 2020-09-30 | Z6: Bupa Global Ultimate | AA6: 3 | AB6: 0 | AC6: 0 | AE6: 0 | AF6: 0
V7: Renovación: octubre - diciembre | 2020 | X7: 1990-01-01 | Y7: 2020-09-30 | Z7: Bupa Global Elite | AA7: 1 | AB7: 0 | AC7: 0 | AE7: 0 | AF7: 0
V8: Renovación: 2021 | 2022 | X8: 1990-01-01 | Y8: 2020-09-30 | Z8: Bupa Global Elite | AA8: 2 | AB8: 0 | AC8: 0 | AE8: 0 | AF8: 0
V9: Rebovación: Enero - Abril 2023 | X9: 1990-01-01 | Y9: 2020-09-30 | Z9: Bupa Global Elite | AA9: 3 | AB9: 0 | AC9: 0 | AE9: 0 | AF9: 0
V10: Renovación: Promoción Mayo - diciembre 2023 | X10: 1990-01-01 | Y10: 2020-09-30 | Z10: Bupa Global Elite | AA10: 4 | AB10: 0 | AC10: 0 | AE10: 0 | AF10: 0
Q11: Descuento 24 años (por edad) | V11: Renovaciön: Enero - Abril 2024 | X11: 1990-01-01 | Y11: 2020-09-30 | Z11: Bupa Global Elite | AA11: 5 | AB11: 0 | AC11: 0 | AE11: 0 | AF11: 0
Q12: age | R12: Discount (%) | S12: Parameter | V12: Renovación: Promoción mayo - diciembre | 2024 | X12: 1990-01-01 | Y12: 2020-09-30 | Z12: Bupa Global Elite | AA12: 6 | AB12: 0 | AC12: 0 | AE12: 0 | AF12: 0
Q13: 24 | R13: 35 | S13: =1-R13/100 -> 0.65 | X13: 1990-01-01 | Y13: 2020-09-30 | Z13: Bupa Global Premier | AA13: 1 | AB13: 0 | AC13: 0 | AE13: 0 | AF13: 0
Q14: 25 | R14: 30 | S14: =1-R14/100 -> 0.7 | X14: 1990-01-01 | Y14: 2020-09-30 | Z14: Bupa Global Premier | AA14: 2 | AB14: 0 | AC14: 0 | AE14: 0 | AF14: 0
Q15: 26 | R15: 25 | S15: 0.75 | X15: 1990-01-01 | Y15: 2020-09-30 | Z15: Bupa Global Premier | AA15: 3 | AB15: 0 | AC15: 0 | AE15: 0 | AF15: 0
Q16: 27 | R16: 20 | S16: 0.8 | X16: 1990-01-01 | Y16: 2020-09-30 | Z16: Bupa Global Premier | AA16: 4 | AB16: 0 | AC16: 0 | AE16: 0 | AF16: 0
Q17: 28 | R17: 15 | S17: 0.85 | X17: 1990-01-01 | Y17: 2020-09-30 | Z17: Bupa Global Premier | AA17: 5 | AB17: 0 | AC17: 0 | AE17: 0 | AF17: 0
Q18: 29 | R18: 6 | S18: 0.94 | X18: 1990-01-01 | Y18: 2020-09-30 | Z18: Bupa Global Select | AA18: 1 | AB18: 0 | AC18: 0 | AE18: 0 | AF18: 0
Q19: All ages | R19: 0 | S19: 1 | U19: Type selected | V19: 3 | X19: 1990-01-01 | Y19: 2020-09-30 | Z19: Bupa Global Select | AA19: 2 | AB19: 0 | AC19: 0 | AE19: 0 | AF19: 0
X20: 1990-01-01 | Y20: 2020-09-30 | Z20: Bupa Global Select | AA20: 3 | AB20: 0 | AC20: 0 | AE20: 0 | AF20: 0
H21: FALSE | X21: 1990-01-01 | Y21: 2020-09-30 | Z21: Bupa Global Select | AA21: 4 | AB21: 0 | AC21: 0 | AE21: 0 | AF21: 0
Q22: Nuevo Negocio | X22: 1990-01-01 | Y22: 2020-09-30 | Z22: Bupa Global Select | AA22: 5 | AB22: 0 | AC22: 0 | AE22: 0 | AF22: 0
Q23: Ultimate | R23: Elite | S23: Premier | T23: Select | U23: Major Medical | X23: 1990-01-01 | Y23: 2020-09-30 | Z23: Bupa Global Major Medical | AA23: 1 | AB23: 0 | AC23: 0 | AE23: 0 | AF23: 0
Q24: 15 | R24: 15 | S24: 15 | T24: 15 | U24: 15 | X24: 1990-01-01 | Y24: 2020-09-30 | Z24: Bupa Global Major Medical | AA24: 2 | AB24: 0 | AC24: 0 | AE24: =IF($U$53,AB24,0) -> 0 | AF24: 0
W25: Entre octubre 1 y diciembre 31 de 2022 | X25: 2020-10-01 | Y25: 2022-12-31 | Z25: Bupa Global Ultimate | AA25: 1 | AB25: 0.15 | AC25: 0 | AE25: =IF($U$54,AB25,0) -> 0 | AF25: =IF($U$54,AC25,0) -> 0
X26: 2020-10-01 | Y26: 2022-12-31 | Z26: Bupa Global Ultimate | AA26: 2 | AB26: 0.15 | AC26: 0 | AE26: =IF($U$54,AB26,0) -> 0 | AF26: =IF($U$54,AC26,0) -> 0
X27: 2020-10-01 | Y27: 2022-12-31 | Z27: Bupa Global Ultimate | AA27: 3 | AB27: 0.15 | AC27: 0 | AE27: 0 | AF27: 0
X28: 2020-10-01 | Y28: 2022-12-31 | Z28: Bupa Global Elite | AA28: 1 | AB28: 0.15 | AC28: 0 | AE28: 0 | AF28: 0
X29: 2020-10-01 | Y29: 2022-12-31 | Z29: Bupa Global Elite | AA29: 2 | AB29: 0.15 | AC29: 0 | AE29: 0 | AF29: 0
Q30: Descuento de 24 años: | R30: =IF(R2,_xlfn.SWITCH(C43,Q13,S13,Q14,S14,Q15,S15,Q16,S16,Q17,S17,Q18,S18,S19),S19) -> 1 | X30: 2020-10-01 | Y30: 2022-12-31 | Z30: Bupa Global Elite | AA30: 3 | AB30: 0.15 | AC30: 0 | AE30: 0 | AF30: 0
X31: 2020-10-01 | Y31: 2022-12-31 | Z31: Bupa Global Elite | AA31: 4 | AB31: 0.15 | AC31: 0 | AE31: 0 | AF31: 0
Q32: Descuento por variante de coaseguro | R32: =IF(R3=TRUE,0.15,1) -> 1 | X32: 2020-10-01 | Y32: 2022-12-31 | Z32: Bupa Global Elite | AA32: 5 | AB32: 0.15 | AC32: 0 | AE32: 0 | AF32: 0
X33: 2020-10-01 | Y33: 2022-12-31 | Z33: Bupa Global Elite | AA33: 6 | AB33: 0.15 | AC33: 0 | AE33: 0 | AF33: 0
X34: 2020-10-01 | Y34: 2022-12-31 | Z34: Bupa Global Premier | AA34: 1 | AB34: 0.15 | AC34: 0 | AE34: 0 | AF34: 0
Q35: Descuento si es nuevo negocio: | X35: 2020-10-01 | Y35: 2022-12-31 | Z35: Bupa Global Premier | AA35: 2 | AB35: 0.15 | AC35: 0 | AE35: 0 | AF35: 0
X36: 2020-10-01 | Y36: 2022-12-31 | Z36: Bupa Global Premier | AA36: 3 | AB36: 0.15 | AC36: 0 | AE36: 0 | AF36: 0
A37: Nombre del Asegurado Titular: | C37: John Doe | Q37: NEW BUSINESS DISCOUNT (MULTIPLICATION FACTOR) | X37: 2020-10-01 | Y37: 2022-12-31 | Z37: Bupa Global Premier | AA37: 4 | AB37: 0.15 | AC37: 0 | AE37: 0 | AF37: 0
Q38: Ultimate | R38: Elite | S38: Premier | T38: Select | U38: Major Medical | X38: 2020-10-01 | Y38: 2022-12-31 | Z38: Bupa Global Premier | AA38: 5 | AB38: 0.15 | AC38: 0 | AE38: 0 | AF38: 0
A39: Número de adultos en la póliza: | C39: 1 | E39: Número de dependientes menores de 16 años: | H39: Número de dependientes menores de 10 años: | Q39: =IF($O$41=FALSE,(Q24/100),0) -> 0 | R39: =IF($O$41=FALSE,(R24/100),0) -> 0 | S39: 0 | T39: 0 | U39: 0 | X39: 2020-10-01 | Y39: 2022-12-31 | Z39: Bupa Global Select | AA39: 1 | AB39: 0.15 | AC39: 0 | AE39: 0 | AF39: 0
X40: 2020-10-01 | Y40: 2022-12-31 | Z40: Bupa Global Select | AA40: 2 | AB40: 0.15 | AC40: 0 | AE40: 0 | AF40: 0
A41: Número total de dependientes en la póliza: | C41: 0 | O41: TRUE | X41: 2020-10-01 | Y41: 2022-12-31 | Z41: Bupa Global Select | AA41: 3 | AB41: 0.15 | AC41: 0 | AE41: 0 | AF41: 0
E42: 2 | H42: 2 | Q42: Descuento combinado 24 años y Nuevo Negocio | X42: 2020-10-01 | Y42: 2022-12-31 | Z42: Bupa Global Select | AA42: 4 | AB42: 0.15 | AC42: 0 | AE42: 0 | AF42: 0
A43: Edad del Asegurado Titular: | C43: 61 | L43: Escribir en el campo gris abajo en formato: MM/DD/YYYY | X43: 2020-10-01 | Y43: 2022-12-31 | Z43: Bupa Global Select | AA43: 5 | AB43: 0.15 | AC43: 0 | AE43: 0 | AF43: 0
X44: 2020-10-01 | Y44: 2022-12-31 | Z44: Bupa Global Major Medical | AA44: 1 | AB44: 0.15 | AC44: 0 | AE44: 0 | AF44: 0
A45: Edad del/la cónyuge: | C45: 0 | Q45: NEW BUSINESS DISCOUNT | X45: 2020-10-01 | Y45: 2022-12-31 | Z45: Bupa Global Major Medical | AA45: 2 | AB45: 0.15 | AC45: 0 | AE45: =IF($U$54,AB45,0) -> 0 | AF45: 0
L46: 2025-01-02 | Q46: Ultimate | R46: Elite | S46: Premier | T46: Select | U46: Major Medical | W46: Enero 1 a 31 de abril 2023 | X46: 2023-01-01 | Y46: 2023-04-30 | Z46: Bupa Global Ultimate | AA46: 1 | AB46: 0.15 | AC46: 0 | AE46: =IF($U$55,AB46,0) -> 0 | AF46: =IF($U$55,AC46,0) -> 0
Q47: =(1-Q39)*$R$30 -> 1 | R47: =(1-R39)*$R$30 -> 1 | S47: =(1-S39)*$R$30 -> 1 | T47: =(1-T39)*$R$30 -> 1 | U47: =(1-U39)*$R$30 -> 1 | X47: 2023-01-01 | Y47: 2023-04-30 | Z47: Bupa Global Ultimate | AA47: 2 | AB47: 0.15 | AC47: 0 | AE47: =IF($U$55,AB47,0) -> 0 | AF47: =IF($U$55,AC47,0) -> 0
X48: 2023-01-01 | Y48: 2023-04-30 | Z48: Bupa Global Ultimate | AA48: 3 | AB48: 0.15 | AC48: 0 | AE48: 0 | AF48: 0
A49: Tarifas en US$ | Validas: 1 de noviembre de 2025 | X49: 2023-01-01 | Y49: 2023-04-30 | Z49: Bupa Global Elite | AA49: 1 | AB49: 0.15 | AC49: 0 | AE49: 0 | AF49: 0
X50: 2023-01-01 | Y50: 2023-04-30 | Z50: Bupa Global Elite | AA50: 2 | AB50: 0.15 | AC50: 0 | AE50: 0 | AF50: 0
X51: 2023-01-01 | Y51: 2023-04-30 | Z51: Bupa Global Elite | AA51: 3 | AB51: 0.15 | AC51: 0 | AE51: 0 | AF51: 0
U52: Rango de fechas que aplica | X52: 2023-01-01 | Y52: 2023-04-30 | Z52: Bupa Global Elite | AA52: 4 | AB52: 0.15 | AC52: 0 | AE52: 0 | AF52: 0
R53: Antes de octubre de 2020 | S53: 1990-01-01 | T53: 2020-09-30 | U53: FALSE | X53: 2023-01-01 | Y53: 2023-04-30 | Z53: Bupa Global Elite | AA53: 5 | AB53: 0.15 | AC53: 0 | AE53: 0 | AF53: 0
R54: Entre octubre 1 y diciembre 31 de 2022 | S54: 2020-10-01 | T54: 2022-12-31 | U54: FALSE | X54: 2023-01-01 | Y54: 2023-04-30 | Z54: Bupa Global Elite | AA54: 6 | AB54: 0.15 | AC54: 0 | AE54: 0 | AF54: 0
R55: Enero 1 a 31 de abril 2023 | S55: 2023-01-01 | T55: 2023-04-30 | U55: FALSE | X55: 2023-01-01 | Y55: 2023-04-30 | Z55: Bupa Global Premier | AA55: 1 | AB55: 0.15 | AC55: 0 | AE55: 0 | AF55: 0
R56: Mayo a 31 de diciembre 2023 | S56: 2023-05-01 | T56: 2023-12-31 | U56: FALSE | X56: 2023-01-01 | Y56: 2023-04-30 | Z56: Bupa Global Premier | AA56: 2 | AB56: 0.15 | AC56: 0 | AE56: 0 | AF56: 0
R57: Enero 1 a 31 de abril 2024 | S57: 2024-01-01 | T57: 2024-04-30 | U57: FALSE | X57: 2023-01-01 | Y57: 2023-04-30 | Z57: Bupa Global Premier | AA57: 3 | AB57: 0.15 | AC57: 0 | AE57: 0 | AF57: 0
R58: Desde el 1 de mayo del 2024 al 14 de mayo del 2024 | S58: 2024-05-01 | T58: 2024-05-14 | U58: FALSE | X58: 2023-01-01 | Y58: 2023-04-30 | Z58: Bupa Global Premier | AA58: 4 | AB58: 0.15 | AC58: 0 | AE58: 0 | AF58: 0
R59: Desde el 15 de mayo al 31 de diciembre del 2024 | S59: 2024-05-15 | T59: 2024-12-31 | U59: FALSE | X59: 2023-01-01 | Y59: 2023-04-30 | Z59: Bupa Global Premier | AA59: 5 | AB59: 0.15 | AC59: 0 | AE59: 0 | AF59: 0
R60: Desde el 1 de enero al 31 de diciembre del 2025 | S60: 2025-01-01 | T60: 2025-12-31 | U60: TRUE | X60: 2023-01-01 | Y60: 2023-04-30 | Z60: Bupa Global Select | AA60: 1 | AB60: 0.15 | AC60: 0 | AE60: 0 | AF60: 0
T61: Ajuste tarifa | U61: Descuento | X61: 2023-01-01 | Y61: 2023-04-30 | Z61: Bupa Global Select | AA61: 2 | AB61: 0.15 | AC61: 0 | AE61: 0 | AF61: 0
R62: Bupa Global Ultimate | S62: 1 | T62: =AE4+AE25+AE46+AE67+AE88+AE109+AE130+AE151 -> 0 | U62: =AF4+AF25+AF46+AF67+AF88+AF109+AF130+AF151 -> 0 | X62: 2023-01-01 | Y62: 2023-04-30 | Z62: Bupa Global Select | AA62: 3 | AB62: 0.15 | AC62: 0 | AE62: 0 | AF62: 0
R63: Bupa Global Ultimate | S63: 2 | T63: 0.15 | U63: 0 | X63: 2023-01-01 | Y63: 2023-04-30 | Z63: Bupa Global Select | AA63: 4 | AB63: 0.15 | AC63: 0 | AE63: 0 | AF63: 0
R64: Bupa Global Ultimate | S64: 3 | T64: 0.15 | U64: 0 | X64: 2023-01-01 | Y64: 2023-04-30 | Z64: Bupa Global Select | AA64: 5 | AB64: 0.15 | AC64: 0 | AE64: 0 | AF64: 0
R65: Bupa Global Elite | S65: 1 | T65: 0.15 | U65: 0 | X65: 2023-01-01 | Y65: 2023-04-30 | Z65: Bupa Global Major Medical | AA65: 1 | AB65: 0.15 | AC65: 0 | AE65: 0 | AF65: 0
R66: Bupa Global Elite | S66: 2 | T66: 0.15 | U66: 0 | X66: 2023-01-01 | Y66: 2023-04-30 | Z66: Bupa Global Major Medical | AA66: 2 | AB66: 0.15 | AC66: 0 | AE66: 0 | AF66: 0
R67: Bupa Global Elite | S67: 3 | T67: 0.15 | U67: 0 | W67: Mayo 1 a 31 de diciembre 2023 | X67: 2023-05-01 | Y67: 2023-12-31 | Z67: Bupa Global Ultimate | AA67: 1 | AB67: 0.15 | AC67: 0 | AE67: =IF($U$56,AB67,0) -> 0 | AF67: =IF($U$56,AC67,0) -> 0
R68: Bupa Global Elite | S68: 4 | T68: 0.15 | U68: 0 | X68: 2023-05-01 | Y68: 2023-12-31 | Z68: Bupa Global Ultimate | AA68: 2 | AB68: 0.15 | AC68: 0 | AE68: =IF($U$56,AB68,0) -> 0 | AF68: =IF($U$56,AC68,0) -> 0
R69: Bupa Global Elite | S69: 5 | T69: 0.15 | U69: 0 | X69: 2023-05-01 | Y69: 2023-12-31 | Z69: Bupa Global Ultimate | AA69: 3 | AB69: 0.15 | AC69: 0 | AE69: 0 | AF69: 0
R70: Bupa Global Elite | S70: 6 | T70: 0.15 | U70: 0 | X70: 2023-05-01 | Y70: 2023-12-31 | Z70: Bupa Global Elite | AA70: 1 | AB70: 0.15 | AC70: 0 | AE70: 0 | AF70: 0
R71: Bupa Global Premier | S71: 1 | T71: 0.15 | U71: 0.15 | X71: 2023-05-01 | Y71: 2023-12-31 | Z71: Bupa Global Elite | AA71: 2 | AB71: 0.15 | AC71: 0 | AE71: 0 | AF71: 0
R72: Bupa Global Premier | S72: 2 | T72: 0.15 | U72: 0.15 | X72: 2023-05-01 | Y72: 2023-12-31 | Z72: Bupa Global Elite | AA72: 3 | AB72: 0.15 | AC72: 0 | AE72: 0 | AF72: 0
R73: Bupa Global Premier | S73: 3 | T73: 0.15 | U73: 0.15 | X73: 2023-05-01 | Y73: 2023-12-31 | Z73: Bupa Global Elite | AA73: 4 | AB73: 0.15 | AC73: 0 | AE73: 0 | AF73: 0
R74: Bupa Global Premier | S74: 4 | T74: 0.15 | U74: 0.15 | X74: 2023-05-01 | Y74: 2023-12-31 | Z74: Bupa Global Elite | AA74: 5 | AB74: 0.15 | AC74: 0 | AE74: 0 | AF74: 0
R75: Bupa Global Premier | S75: 5 | T75: 0.15 | U75: 0.15 | X75: 2023-05-01 | Y75: 2023-12-31 | Z75: Bupa Global Elite | AA75: 6 | AB75: 0.15 | AC75: 0 | AE75: 0 | AF75: 0
R76: Bupa Global Select | S76: 1 | T76: 0.15 | U76: 0.15 | X76: 2023-05-01 | Y76: 2023-12-31 | Z76: Bupa Global Premier | AA76: 1 | AB76: 0.15 | AC76: 0.1 | AE76: 0 | AF76: 0
R77: Bupa Global Select | S77: 2 | T77: 0.15 | U77: 0.15 | X77: 2023-05-01 | Y77: 2023-12-31 | Z77: Bupa Global Premier | AA77: 2 | AB77: 0.15 | AC77: 0.1 | AE77: 0 | AF77: 0
R78: Bupa Global Select | S78: 3 | T78: 0.15 | U78: 0.15 | X78: 2023-05-01 | Y78: 2023-12-31 | Z78: Bupa Global Premier | AA78: 3 | AB78: 0.15 | AC78: 0.1 | AE78: 0 | AF78: 0
R79: Bupa Global Select | S79: 4 | T79: 0.15 | U79: 0.15 | X79: 2023-05-01 | Y79: 2023-12-31 | Z79: Bupa Global Premier | AA79: 4 | AB79: 0.15 | AC79: 0.1 | AE79: 0 | AF79: 0
R80: Bupa Global Select | S80: 5 | T80: 0.15 | U80: 0.15 | X80: 2023-05-01 | Y80: 2023-12-31 | Z80: Bupa Global Premier | AA80: 5 | AB80: 0.15 | AC80: 0.1 | AE80: 0 | AF80: 0
R81: Bupa Global Major Medical | S81: 1 | T81: 0.15 | U81: 0 | X81: 2023-05-01 | Y81: 2023-12-31 | Z81: Bupa Global Select | AA81: 1 | AB81: 0.15 | AC81: 0.1 | AE81: 0 | AF81: 0
R82: Bupa Global Major Medical | S82: 2 | T82: 0.15 | U82: 0 | X82: 2023-05-01 | Y82: 2023-12-31 | Z82: Bupa Global Select | AA82: 2 | AB82: 0.15 | AC82: 0.1 | AE82: 0 | AF82: 0
X83: 2023-05-01 | Y83: 2023-12-31 | Z83: Bupa Global Select | AA83: 3 | AB83: 0.15 | AC83: 0.1 | AE83: 0 | AF83: 0
X84: 2023-05-01 | Y84: 2023-12-31 | Z84: Bupa Global Select | AA84: 4 | AB84: 0.15 | AC84: 0.1 | AE84: 0 | AF84: 0
X85: 2023-05-01 | Y85: 2023-12-31 | Z85: Bupa Global Select | AA85: 5 | AB85: 0.15 | AC85: 0.1 | AE85: 0 | AF85: 0
X86: 2023-05-01 | Y86: 2023-12-31 | Z86: Bupa Global Major Medical | AA86: 1 | AB86: 0.15 | AC86: 0 | AE86: 0 | AF86: 0
X87: 2023-05-01 | Y87: 2023-12-31 | Z87: Bupa Global Major Medical | AA87: 2 | AB87: 0.15 | AC87: 0 | AE87: =IF($U$56,AB87,0) -> 0 | AF87: 0
W88: Enero 1 a 31 de abril 2024 | X88: 2024-01-01 | Y88: 2024-04-30 | Z88: Bupa Global Ultimate | AA88: 1 | AB88: 0.15 | AC88: 0 | AE88: =IF($U$57,AB88,0) -> 0 | AF88: =IF($U$57,AC88,0) -> 0
X89: 2024-01-01 | Y89: 2024-04-30 | Z89: Bupa Global Ultimate | AA89: 2 | AB89: 0.15 | AC89: 0 | AE89: =IF($U$57,AB89,0) -> 0 | AF89: =IF($U$57,AC89,0) -> 0
X90: 2024-01-01 | Y90: 2024-04-30 | Z90: Bupa Global Ultimate | AA90: 3 | AB90: 0.15 | AC90: 0 | AE90: 0 | AF90: 0
X91: 2024-01-01 | Y91: 2024-04-30 | Z91: Bupa Global Elite | AA91: 1 | AB91: 0.15 | AC91: 0 | AE91: 0 | AF91: 0
X92: 2024-01-01 | Y92: 2024-04-30 | Z92: Bupa Global Elite | AA92: 2 | AB92: 0.15 | AC92: 0 | AE92: 0 | AF92: 0
X93: 2024-01-01 | Y93: 2024-04-30 | Z93: Bupa Global Elite | AA93: 3 | AB93: 0.15 | AC93: 0 | AE93: 0 | AF93: 0
X94: 2024-01-01 | Y94: 2024-04-30 | Z94: Bupa Global Elite | AA94: 4 | AB94: 0.15 | AC94: 0 | AE94: 0 | AF94: 0
X95: 2024-01-01 | Y95: 2024-04-30 | Z95: Bupa Global Elite | AA95: 5 | AB95: 0.15 | AC95: 0 | AE95: 0 | AF95: 0
X96: 2024-01-01 | Y96: 2024-04-30 | Z96: Bupa Global Elite | AA96: 6 | AB96: 0.15 | AC96: 0 | AE96: 0 | AF96: 0
X97: 2024-01-01 | Y97: 2024-04-30 | Z97: Bupa Global Premier | AA97: 1 | AB97: 0.15 | AC97: 0 | AE97: 0 | AF97: 0
X98: 2024-01-01 | Y98: 2024-04-30 | Z98: Bupa Global Premier | AA98: 2 | AB98: 0.15 | AC98: 0 | AE98: 0 | AF98: 0
X99: 2024-01-01 | Y99: 2024-04-30 | Z99: Bupa Global Premier | AA99: 3 | AB99: 0.15 | AC99: 0 | AE99: 0 | AF99: 0
X100: 2024-01-01 | Y100: 2024-04-30 | Z100: Bupa Global Premier | AA100: 4 | AB100: 0.15 | AC100: 0 | AE100: 0 | AF100: 0
X101: 2024-01-01 | Y101: 2024-04-30 | Z101: Bupa Global Premier | AA101: 5 | AB101: 0.15 | AC101: 0 | AE101: 0 | AF101: 0
X102: 2024-01-01 | Y102: 2024-04-30 | Z102: Bupa Global Select | AA102: 1 | AB102: 0.15 | AC102: 0 | AE102: 0 | AF102: 0
X103: 2024-01-01 | Y103: 2024-04-30 | Z103: Bupa Global Select | AA103: 2 | AB103: 0.15 | AC103: 0 | AE103: 0 | AF103: 0
X104: 2024-01-01 | Y104: 2024-04-30 | Z104: Bupa Global Select | AA104: 3 | AB104: 0.15 | AC104: 0 | AE104: 0 | AF104: 0
X105: 2024-01-01 | Y105: 2024-04-30 | Z105: Bupa Global Select | AA105: 4 | AB105: 0.15 | AC105: 0 | AE105: 0 | AF105: 0
X106: 2024-01-01 | Y106: 2024-04-30 | Z106: Bupa Global Select | AA106: 5 | AB106: 0.15 | AC106: 0 | AE106: 0 | AF106: 0
X107: 2024-01-01 | Y107: 2024-04-30 | Z107: Bupa Global Major Medical | AA107: 1 | AB107: 0.15 | AC107: 0 | AE107: 0 | AF107: 0
X108: 2024-01-01 | Y108: 2024-04-30 | Z108: Bupa Global Major Medical | AA108: 2 | AB108: 0.15 | AC108: 0 | AE108: =IF($U$57,AB108,0) -> 0 | AF108: 0
W109: Desde el 1 de mayo del 2024 al 14 de mayo del 2024 | X109: 2024-05-01 | Y109: 2024-05-14 | Z109: Bupa Global Ultimate | AA109: 1 | AB109: 0.15 | AC109: 0 | AE109: =IF($U$58,AB109,0) -> 0 | AF109: =IF($U$58,AC109,0) -> 0
X110: 2024-05-01 | Y110: 2024-05-14 | Z110: Bupa Global Ultimate | AA110: 2 | AB110: 0.15 | AC110: 0 | AE110: =IF($U$58,AB110,0) -> 0 | AF110: =IF($U$58,AC110,0) -> 0
X111: 2024-05-01 | Y111: 2024-05-14 | Z111: Bupa Global Ultimate | AA111: 3 | AB111: 0.15 | AC111: 0 | AE111: 0 | AF111: 0
X112: 2024-05-01 | Y112: 2024-05-14 | Z112: Bupa Global Elite | AA112: 1 | AB112: 0.15 | AC112: 0 | AE112: 0 | AF112: 0
X113: 2024-05-01 | Y113: 2024-05-14 | Z113: Bupa Global Elite | AA113: 2 | AB113: 0.15 | AC113: 0 | AE113: 0 | AF113: 0
X114: 2024-05-01 | Y114: 2024-05-14 | Z114: Bupa Global Elite | AA114: 3 | AB114: 0.15 | AC114: 0 | AE114: 0 | AF114: 0
X115: 2024-05-01 | Y115: 2024-05-14 | Z115: Bupa Global Elite | AA115: 4 | AB115: 0.15 | AC115: 0 | AE115: 0 | AF115: 0
X116: 2024-05-01 | Y116: 2024-05-14 | Z116: Bupa Global Elite | AA116: 5 | AB116: 0.15 | AC116: 0 | AE116: 0 | AF116: 0
X117: 2024-05-01 | Y117: 2024-05-14 | Z117: Bupa Global Elite | AA117: 6 | AB117: 0.15 | AC117: 0 | AE117: 0 | AF117: 0
X118: 2024-05-01 | Y118: 2024-05-14 | Z118: Bupa Global Premier | AA118: 1 | AB118: 0.15 | AC118: 0 | AE118: 0 | AF118: 0
X119: 2024-05-01 | Y119: 2024-05-14 | Z119: Bupa Global Premier | AA119: 2 | AB119: 0.15 | AC119: 0 | AE119: 0 | AF119: 0
X120: 2024-05-01 | Y120: 2024-05-14 | Z120: Bupa Global Premier | AA120: 3 | AB120: 0.15 | AC120: 0 | AE120: 0 | AF120: 0
X121: 2024-05-01 | Y121: 2024-05-14 | Z121: Bupa Global Premier | AA121: 4 | AB121: 0.15 | AC121: 0 | AE121: 0 | AF121: 0
X122: 2024-05-01 | Y122: 2024-05-14 | Z122: Bupa Global Premier | AA122: 5 | AB122: 0.15 | AC122: 0 | AE122: 0 | AF122: 0
X123: 2024-05-01 | Y123: 2024-05-14 | Z123: Bupa Global Select | AA123: 1 | AB123: 0.15 | AC123: 0 | AE123: 0 | AF123: 0
X124: 2024-05-01 | Y124: 2024-05-14 | Z124: Bupa Global Select | AA124: 2 | AB124: 0.15 | AC124: 0 | AE124: 0 | AF124: 0
X125: 2024-05-01 | Y125: 2024-05-14 | Z125: Bupa Global Select | AA125: 3 | AB125: 0.15 | AC125: 0 | AE125: 0 | AF125: 0
X126: 2024-05-01 | Y126: 2024-05-14 | Z126: Bupa Global Select | AA126: 4 | AB126: 0.15 | AC126: 0 | AE126: 0 | AF126: 0
X127: 2024-05-01 | Y127: 2024-05-14 | Z127: Bupa Global Select | AA127: 5 | AB127: 0.15 | AC127: 0 | AE127: 0 | AF127: 0
X128: 2024-05-01 | Y128: 2024-05-14 | Z128: Bupa Global Major Medical | AA128: 1 | AB128: 0.15 | AC128: 0 | AE128: 0 | AF128: 0
X129: 2024-05-01 | Y129: 2024-05-14 | Z129: Bupa Global Major Medical | AA129: 2 | AB129: 0.15 | AC129: 0 | AE129: =IF($U$58,AB129,0) -> 0 | AF129: 0
W130: Desde el 15 de mayo al 31 de diciembre del 2024 | X130: 2024-05-15 | Y130: 2024-12-31 | Z130: Bupa Global Ultimate | AA130: 1 | AB130: 0.15 | AC130: 0 | AE130: =IF($U$59,AB130,0) -> 0 | AF130: =IF($U$59,AC130,0) -> 0
X131: 2024-05-15 | Y131: 2024-12-31 | Z131: Bupa Global Ultimate | AA131: 2 | AB131: 0.15 | AC131: 0 | AE131: =IF($U$59,AB131,0) -> 0 | AF131: =IF($U$59,AC131,0) -> 0
X132: 2024-05-15 | Y132: 2024-12-31 | Z132: Bupa Global Ultimate | AA132: 3 | AB132: 0.15 | AC132: 0 | AE132: =IF($U$59,AB132,0) -> 0 | AF132: 0
X133: 2024-05-15 | Y133: 2024-12-31 | Z133: Bupa Global Elite | AA133: 1 | AB133: 0.15 | AC133: 0 | AE133: 0 | AF133: 0
X134: 2024-05-15 | Y134: 2024-12-31 | Z134: Bupa Global Elite | AA134: 2 | AB134: 0.15 | AC134: 0 | AE134: 0 | AF134: 0
X135: 2024-05-15 | Y135: 2024-12-31 | Z135: Bupa Global Elite | AA135: 3 | AB135: 0.15 | AC135: 0 | AE135: 0 | AF135: 0
X136: 2024-05-15 | Y136: 2024-12-31 | Z136: Bupa Global Elite | AA136: 4 | AB136: 0.15 | AC136: 0 | AE136: 0 | AF136: 0
X137: 2024-05-15 | Y137: 2024-12-31 | Z137: Bupa Global Elite | AA137: 5 | AB137: 0.15 | AC137: 0 | AE137: 0 | AF137: 0
X138: 2024-05-15 | Y138: 2024-12-31 | Z138: Bupa Global Elite | AA138: 6 | AB138: 0.15 | AC138: 0 | AE138: 0 | AF138: 0
X139: 2024-05-15 | Y139: 2024-12-31 | Z139: Bupa Global Premier | AA139: 1 | AB139: 0.15 | AC139: 0.15 | AE139: 0 | AF139: 0
X140: 2024-05-15 | Y140: 2024-12-31 | Z140: Bupa Global Premier | AA140: 2 | AB140: 0.15 | AC140: 0.15 | AE140: 0 | AF140: 0
X141: 2024-05-15 | Y141: 2024-12-31 | Z141: Bupa Global Premier | AA141: 3 | AB141: 0.15 | AC141: 0.15 | AE141: 0 | AF141: 0
X142: 2024-05-15 | Y142: 2024-12-31 | Z142: Bupa Global Premier | AA142: 4 | AB142: 0.15 | AC142: 0.15 | AE142: 0 | AF142: 0
X143: 2024-05-15 | Y143: 2024-12-31 | Z143: Bupa Global Premier | AA143: 5 | AB143: 0.15 | AC143: 0.15 | AE143: 0 | AF143: 0
X144: 2024-05-15 | Y144: 2024-12-31 | Z144: Bupa Global Select | AA144: 1 | AB144: 0.15 | AC144: 0.15 | AE144: 0 | AF144: 0
X145: 2024-05-15 | Y145: 2024-12-31 | Z145: Bupa Global Select | AA145: 2 | AB145: 0.15 | AC145: 0.15 | AE145: 0 | AF145: 0
X146: 2024-05-15 | Y146: 2024-12-31 | Z146: Bupa Global Select | AA146: 3 | AB146: 0.15 | AC146: 0.15 | AE146: 0 | AF146: 0
X147: 2024-05-15 | Y147: 2024-12-31 | Z147: Bupa Global Select | AA147: 4 | AB147: 0.15 | AC147: 0.15 | AE147: 0 | AF147: 0
X148: 2024-05-15 | Y148: 2024-12-31 | Z148: Bupa Global Select | AA148: 5 | AB148: 0.15 | AC148: 0.15 | AE148: 0 | AF148: 0
X149: 2024-05-15 | Y149: 2024-12-31 | Z149: Bupa Global Major Medical | AA149: 1 | AB149: 0.15 | AC149: 0 | AE149: 0 | AF149: 0
X150: 2024-05-15 | Y150: 2024-12-31 | Z150: Bupa Global Major Medical | AA150: 2 | AB150: 0.15 | AC150: 0 | AE150: 0 | AF150: 0
W151: Desde el 1 de enero al 31 de diciembre del 2025 | X151: 2025-01-01 | Y151: 2025-12-31 | Z151: Bupa Global Ultimate | AA151: 1 | AB151: 0.15 | AC151: 0 | AE151: =IF($U$59,AB151,0) -> 0 | AF151: =IF($U$59,AC151,0) -> 0
X152: 2025-01-01 | Y152: 2025-12-31 | Z152: Bupa Global Ultimate | AA152: 2 | AB152: 0.15 | AC152: 0 | AE152: =IF($U$60,AB152,0) -> 0.15 | AF152: =IF($U$60,AC152,0) -> 0
X153: 2025-01-01 | Y153: 2025-12-31 | Z153: Bupa Global Ultimate | AA153: 3 | AB153: 0.15 | AC153: 0 | AE153: =IF($U$60,AB153,0) -> 0.15 | AF153: =IF($U$60,AC153,0) -> 0
X154: 2025-01-01 | Y154: 2025-12-31 | Z154: Bupa Global Elite | AA154: 1 | AB154: 0.15 | AC154: 0 | AE154: 0.15 | AF154: 0
X155: 2025-01-01 | Y155: 2025-12-31 | Z155: Bupa Global Elite | AA155: 2 | AB155: 0.15 | AC155: 0 | AE155: 0.15 | AF155: 0
X156: 2025-01-01 | Y156: 2025-12-31 | Z156: Bupa Global Elite | AA156: 3 | AB156: 0.15 | AC156: 0 | AE156: 0.15 | AF156: 0
X157: 2025-01-01 | Y157: 2025-12-31 | Z157: Bupa Global Elite | AA157: 4 | AB157: 0.15 | AC157: 0 | AE157: 0.15 | AF157: 0
X158: 2025-01-01 | Y158: 2025-12-31 | Z158: Bupa Global Elite | AA158: 5 | AB158: 0.15 | AC158: 0 | AE158: 0.15 | AF158: 0
X159: 2025-01-01 | Y159: 2025-12-31 | Z159: Bupa Global Elite | AA159: 6 | AB159: 0.15 | AC159: 0 | AE159: 0.15 | AF159: 0
X160: 2025-01-01 | Y160: 2025-12-31 | Z160: Bupa Global Premier | AA160: 1 | AB160: 0.15 | AC160: 0.15 | AE160: 0.15 | AF160: 0.15
X161: 2025-01-01 | Y161: 2025-12-31 | Z161: Bupa Global Premier | AA161: 2 | AB161: 0.15 | AC161: 0.15 | AE161: 0.15 | AF161: 0.15
X162: 2025-01-01 | Y162: 2025-12-31 | Z162: Bupa Global Premier | AA162: 3 | AB162: 0.15 | AC162: 0.15 | AE162: 0.15 | AF162: 0.15
X163: 2025-01-01 | Y163: 2025-12-31 | Z163: Bupa Global Premier | AA163: 4 | AB163: 0.15 | AC163: 0.15 | AE163: 0.15 | AF163: 0.15
X164: 2025-01-01 | Y164: 2025-12-31 | Z164: Bupa Global Premier | AA164: 5 | AB164: 0.15 | AC164: 0.15 | AE164: 0.15 | AF164: 0.15
X165: 2025-01-01 | Y165: 2025-12-31 | Z165: Bupa Global Select | AA165: 1 | AB165: 0.15 | AC165: 0.15 | AE165: 0.15 | AF165: 0.15
X166: 2025-01-01 | Y166: 2025-12-31 | Z166: Bupa Global Select | AA166: 2 | AB166: 0.15 | AC166: 0.15 | AE166: 0.15 | AF166: 0.15
X167: 2025-01-01 | Y167: 2025-12-31 | Z167: Bupa Global Select | AA167: 3 | AB167: 0.15 | AC167: 0.15 | AE167: 0.15 | AF167: 0.15
X168: 2025-01-01 | Y168: 2025-12-31 | Z168: Bupa Global Select | AA168: 4 | AB168: 0.15 | AC168: 0.15 | AE168: 0.15 | AF168: 0.15
X169: 2025-01-01 | Y169: 2025-12-31 | Z169: Bupa Global Select | AA169: 5 | AB169: 0.15 | AC169: 0.15 | AE169: 0.15 | AF169: 0.15
X170: 2025-01-01 | Y170: 2025-12-31 | Z170: Bupa Global Major Medical | AA170: 1 | AB170: 0.15 | AC170: 0 | AE170: 0.15 | AF170: 0
X171: 2025-01-01 | Y171: 2025-12-31 | Z171: Bupa Global Major Medical | AA171: 2 | AB171: 0.15 | AC171: 0 | AE171: 0.15 | AF171: 0

Sheet Bupa Global Ultimate
C1: FALSE | H1: RESUMEN DE BENEFICIOS | W1: RESUMEN DE BENEFICIOS | AL1: RESUMEN DE BENEFICIOS
A5: Cotización de Seguro Médico Internacional Bupa Global Ultimate Health Plan Tarifas en US$ | Validas: 1 de noviembre de 2025
A13: Nombre del Asegurado Titular | B13: =+'INGRESO DE DATOS'!$C$37 -> John Doe
A15: Número de adultos en la póliza | B15: =+'INGRESO DE DATOS'!$C$39 -> 1
A17: Número de Dependientes en la póliza | B17: =+'INGRESO DE DATOS'!$C$41 -> 0 | C17: =IF('INGRESO DE DATOS'!$R$2=TRUE, "Cotización para dependiente de 24 años","") -> 
A19: Número de Dependientes menores de 16 años | B19: =+'INGRESO DE DATOS'!$E$42 -> 2
A21: Edad del Asegurado Titular | B21: =+'INGRESO DE DATOS'!$C$43 -> 61 | C21: Edad del/la conyuge | E21: =+'INGRESO DE DATOS'!$C$45 -> 0
A23: Fecha de la cotización | B23: =NOW() -> 2025-12-26T14:05:27.350
B25: Ajuste | C25: ='INGRESO DE DATOS'!T62 -> 0 | D25: ='INGRESO DE DATOS'!T63 -> 0.15 | E25: ='INGRESO DE DATOS'!T64 -> 0.15
B26: Descuento | C26: ='INGRESO DE DATOS'!U62 -> 0 | D26: ='INGRESO DE DATOS'!U63 -> 0 | E26: ='INGRESO DE DATOS'!U64 -> 0
A27: DEDUCIBLES | C27: PLAN 1 | D27: PLAN 2 | E27: PLAN 3
A28: En el país de residencia | C28: $0 | D28: 1000 | E28: 2000
A29: Fuera del país de residencia | C29: $0 | D29: 1000 | E29: 2000
A31: TARIFAS ANUALES
A32: Prima para Asegurado Titular | C32: =VLOOKUP($B$21,Tablas!$A$912:$G$978,3,TRUE)*(1-C25)*(1-C26) -> 47890.92 | D32: =VLOOKUP($B$21,Tablas!$A$912:$G$978,4,TRUE)*(1-D25)*(1-D26) -> 26261.11125 | E32: =VLOOKUP($B$21,Tablas!$A$912:$G$978,5,TRUE)*(1-E25)*(1-E26) -> 21776.75775
A33: Prima para conyuge | C33: =IF($B$15=1,0,(VLOOKUP($E$21,Tablas!$A$912:$G$978,3,TRUE)))*(1-C25)*(1-C26) -> 0 | D33: =IF($B$15=1,0,(VLOOKUP($E$21,Tablas!$A$912:$G$978,4,TRUE)))*(1-D25)*(1-D26) -> 0 | E33: =IF($B$15=1,0,(VLOOKUP($E$21,Tablas!$A$912:$G$978,5,TRUE)))*(1-E25)*(1-E26) -> 0
A34: Prima para hijo (s) | C34: =IF($B$15=1, (IF($B$17=0, 0, (IF($B$19>$B$17, (VLOOKUP($B$17,Tablas!$A$979:$G$981,3,TRUE)), (IF($B$17>4,(IF($B$19=0, (VLOOKUP(3,Tablas!$A$979:$G$981,3,TRUE)), (IF($B$19=1, (VLOOKUP(3,Tablas!$A$979:$G$981,3,TRUE)), (IF($B$19=2, (VLOOKUP(3,Tablas!$A$979:$G$981,3,TRUE)), (VLOOKUP(3,Tablas!$A$979:$G$981,3,TRUE)))))))), (IF($B$17=4,(IF(4-$B$19=0,(VLOOKUP(2,Tablas!$A$979:$G$981,3,TRUE)), (IF(4-$B$19=1,(VLOOKUP(2,Tablas!$A$979:$G$981,3,TRUE)), (IF(4-$B$19=2, (VLOOKUP(2,Tablas!$A$979:$G$981,3,TRUE)), (VLOOKUP(3,Tablas!$A$979:$G$981,3,TRUE)))))))), (IF($B$17=3,(IF(3-$B$19=0,(VLOOKUP(1,Tablas!$A$979:$G$981,3,TRUE)), (IF(3-$B$19=1,(VLOOKUP(1,Tablas!$A$979:$G$981,3,TRUE)), (IF(3-$B$19=2, (VLOOKUP(2,Tablas!$A$979:$G$981,3,TRUE)), (VLOOKUP(3,Tablas!$A$979:$G$981,3,TRUE)))))))), (IF($B$17=2,(IF(2-$B$19=0, 0, (IF(2-$B$19=1,(VLOOKUP(1,Tablas!$A$979:$G$981,3,TRUE)), (IF(2-$B$19=2, (VLOOKUP(2,Tablas!$A$979:$G$981,3,TRUE)), 0)))))), (IF($B$17=1,(IF(1-$B$19=0, 0, (IF(1-$B$19=1,(VLOOKUP(1,Tablas!$A$979:$G$981,3,TRUE)),0)))),0)))))))))))))), (IF($B$17=0, 0, (IF($B$19>$B$17, (VLOOKUP($B$17,Tablas!$A$979:$G$981,3,TRUE)), (IF($B$17=4,(IF(4-$B$19=0, 0, (IF(4-$B$19=1, (VLOOKUP(1,Tablas!$A$979:$G$981,3,TRUE)), (IF(4-$B$19=2, (VLOOKUP(2,Tablas!$A$979:$G$981,3,TRUE)), (IF(4-$B$19=3, (VLOOKUP(3,Tablas!$A$979:$G$981,3,TRUE)), (IF(4-$B$19=4, (VLOOKUP(3,Tablas!$A$979:$G$981,3,TRUE)), 0)))))))))), (IF($B$17=5,(IF(5-$B$19=0, (VLOOKUP(1,Tablas!$A$979:$G$981,3,TRUE)), (IF(5-$B$19=1, (VLOOKUP(1,Tablas!$A$979:$G$981,3,TRUE)), (IF(5-$B$19=2, (VLOOKUP(2,Tablas!$A$979:$G$981,3,TRUE)), (IF(5-$B$19=3, (VLOOKUP(3,Tablas!$A$979:$G$981,3,TRUE)), (IF(5-$B$19=4, (VLOOKUP(3,Tablas!$A$979:$G$981,3,TRUE)), (VLOOKUP(3,Tablas!$A$979:$G$981,3,TRUE)))))))))))), (IF($B$17=6,(IF(6-$B$19=0, (VLOOKUP(2,Tablas!$A$979:$G$981,3,TRUE)), (IF(6-$B$19=1, (VLOOKUP(2,Tablas!$A$979:$G$981,3,TRUE)), (IF(6-$B$19=2, (VLOOKUP(2,Tablas!$A$979:$G$981,3,TRUE)), (IF(6-$B$19=3, (VLOOKUP(3,Tablas!$A$979:$G$981,3,TRUE)), (IF(6-$B$19=4, (VLOOKUP(3,Tablas!$A$979:$G$981,3,TRUE)), (VLOOKUP(3,Tablas!$A$979:$G$981,3,TRUE)))))))))))), (IF($B$17>6,(IF(7-$B$19=0, (VLOOKUP(3,Tablas!$A$979:$G$981,3,TRUE)), (IF(7-$B$19=1, (VLOOKUP(3,Tablas!$A$979:$G$981,3,TRUE)), (IF(7-$B$19=2, (VLOOKUP(3,Tablas!$A$979:$G$981,3,TRUE)), (IF(7-$B$19=3, (VLOOKUP(3,Tablas!$A$979:$G$981,3,TRUE)), (IF(7-$B$19=4, (VLOOKUP(3,Tablas!$A$979:$G$981,3,TRUE)), (VLOOKUP(3,Tablas!$A$979:$G$981,3,TRUE)))))))))))), (IF($B$17=3,(IF(3-$B$19=0,0, (IF(3-$B$19=1,(VLOOKUP(1,Tablas!$A$979:$G$981,3,TRUE)), (IF(3-$B$19=2, (VLOOKUP(2,Tablas!$A$979:$G$981,3,TRUE)), (VLOOKUP(3,Tablas!$A$979:$G$981,3,TRUE)))))))), (IF($B$17=2,(IF(2-$B$19=0, 0, (IF(2-$B$19=1,(VLOOKUP(1,Tablas!$A$979:$G$981,3,TRUE)), (IF(2-$B$19=2, (VLOOKUP(2,Tablas!$A$979:$G$981,3,TRUE)), 0)))))), (IF($B$17=1,(IF(1-$B$19=0, 0, (IF(1-$B$19=1,(VLOOKUP(1,Tablas!$A$979:$G$981,3,TRUE)),0)))),0)))))))))))))))))))*(1-C25)*(1-C26) -> 0 | D34: =IF($B$15=1, (IF($B$17=0, 0, (IF($B$19>$B$17, (VLOOKUP($B$17,Tablas!$A$979:$G$981,4,TRUE)), (IF($B$17>4,(IF($B$19=0, (VLOOKUP(3,Tablas!$A$979:$G$981,4,TRUE)), (IF($B$19=1, (VLOOKUP(3,Tablas!$A$979:$G$981,4,TRUE)), (IF($B$19=2, (VLOOKUP(3,Tablas!$A$979:$G$981,4,TRUE)), (VLOOKUP(3,Tablas!$A$979:$G$981,4,TRUE)))))))), (IF($B$17=4,(IF(4-$B$19=0,(VLOOKUP(2,Tablas!$A$979:$G$981,4,TRUE)), (IF(4-$B$19=1,(VLOOKUP(2,Tablas!$A$979:$G$981,4,TRUE)), (IF(4-$B$19=2, (VLOOKUP(2,Tablas!$A$979:$G$981,4,TRUE)), (VLOOKUP(3,Tablas!$A$979:$G$981,4,TRUE)))))))), (IF($B$17=3,(IF(3-$B$19=0,(VLOOKUP(1,Tablas!$A$979:$G$981,4,TRUE)), (IF(3-$B$19=1,(VLOOKUP(1,Tablas!$A$979:$G$981,4,TRUE)), (IF(3-$B$19=2, (VLOOKUP(2,Tablas!$A$979:$G$981,4,TRUE)), (VLOOKUP(3,Tablas!$A$979:$G$981,4,TRUE)))))))), (IF($B$17=2,(IF(2-$B$19=0, 0, (IF(2-$B$19=1,(VLOOKUP(1,Tablas!$A$979:$G$981,4,TRUE)), (IF(2-$B$19=2, (VLOOKUP(2,Tablas!$A$979:$G$981,4,TRUE)), 0)))))), (IF($B$17=1,(IF(1-$B$19=0, 0, (IF(1-$B$19=1,(VLOOKUP(1,Tablas!$A$979:$G$981,4,TRUE)),0)))),0)))))))))))))), (IF($B$17=0, 0, (IF($B$19>$B$17, (VLOOKUP($B$17,Tablas!$A$979:$G$981,4,TRUE)), (IF($B$17=4,(IF(4-$B$19=0, 0, (IF(4-$B$19=1, (VLOOKUP(1,Tablas!$A$979:$G$981,4,TRUE)), (IF(4-$B$19=2, (VLOOKUP(2,Tablas!$A$979:$G$981,4,TRUE)), (IF(4-$B$19=3, (VLOOKUP(3,Tablas!$A$979:$G$981,4,TRUE)), (IF(4-$B$19=4, (VLOOKUP(3,Tablas!$A$979:$G$981,4,TRUE)), 0)))))))))), (IF($B$17=5,(IF(5-$B$19=0, (VLOOKUP(1,Tablas!$A$979:$G$981,4,TRUE)), (IF(5-$B$19=1, (VLOOKUP(1,Tablas!$A$979:$G$981,4,TRUE)), (IF(5-$B$19=2, (VLOOKUP(2,Tablas!$A$979:$G$981,4,TRUE)), (IF(5-$B$19=3, (VLOOKUP(3,Tablas!$A$979:$G$981,4,TRUE)), (IF(5-$B$19=4, (VLOOKUP(3,Tablas!$A$979:$G$981,4,TRUE)), (VLOOKUP(3,Tablas!$A$979:$G$981,4,TRUE)))))))))))), (IF($B$17=6,(IF(6-$B$19=0, (VLOOKUP(2,Tablas!$A$979:$G$981,4,TRUE)), (IF(6-$B$19=1, (VLOOKUP(2,Tablas!$A$979:$G$981,4,TRUE)), (IF(6-$B$19=2, (VLOOKUP(2,Tablas!$A$979:$G$981,4,TRUE)), (IF(6-$B$19=3, (VLOOKUP(3,Tablas!$A$979:$G$981,4,TRUE)), (IF(6-$B$19=4, (VLOOKUP(3,Tablas!$A$979:$G$981,4,TRUE)), (VLOOKUP(3,Tablas!$A$979:$G$981,4,TRUE)))))))))))), (IF($B$17>6,(IF(7-$B$19=0, (VLOOKUP(3,Tablas!$A$979:$G$981,4,TRUE)), (IF(7-$B$19=1, (VLOOKUP(3,Tablas!$A$979:$G$981,4,TRUE)), (IF(7-$B$19=2, (VLOOKUP(3,Tablas!$A$979:$G$981,4,TRUE)), (IF(7-$B$19=3, (VLOOKUP(3,Tablas!$A$979:$G$981,4,TRUE)), (IF(7-$B$19=4, (VLOOKUP(3,Tablas!$A$979:$G$981,4,TRUE)), (VLOOKUP(3,Tablas!$A$979:$G$981,4,TRUE)))))))))))), (IF($B$17=3,(IF(3-$B$19=0,0, (IF(3-$B$19=1,(VLOOKUP(1,Tablas!$A$979:$G$981,4,TRUE)), (IF(3-$B$19=2, (VLOOKUP(2,Tablas!$A$979:$G$981,4,TRUE)), (VLOOKUP(3,Tablas!$A$979:$G$981,4,TRUE)))))))), (IF($B$17=2,(IF(2-$B$19=0, 0, (IF(2-$B$19=1,(VLOOKUP(1,Tablas!$A$979:$G$981,4,TRUE)), (IF(2-$B$19=2, (VLOOKUP(2,Tablas!$A$979:$G$981,4,TRUE)), 0)))))), (IF($B$17=1,(IF(1-$B$19=0, 0, (IF(1-$B$19=1,(VLOOKUP(1,Tablas!$A$979:$G$981,4,TRUE)),0)))),0)))))))))))))))))))*(1-D25)*(1-D26) -> 0 | E34: =IF($B$15=1, (IF($B$17=0, 0, (IF($B$19>$B$17, (VLOOKUP($B$17,Tablas!$A$979:$G$981,5,TRUE)), (IF($B$17>4,(IF($B$19=0, (VLOOKUP(3,Tablas!$A$979:$G$981,5,TRUE)), (IF($B$19=1, (VLOOKUP(3,Tablas!$A$979:$G$981,5,TRUE)), (IF($B$19=2, (VLOOKUP(3,Tablas!$A$979:$G$981,5,TRUE)), (VLOOKUP(3,Tablas!$A$979:$G$981,5,TRUE)))))))), (IF($B$17=4,(IF(4-$B$19=0,(VLOOKUP(2,Tablas!$A$979:$G$981,5,TRUE)), (IF(4-$B$19=1,(VLOOKUP(2,Tablas!$A$979:$G$981,5,TRUE)), (IF(4-$B$19=2, (VLOOKUP(2,Tablas!$A$979:$G$981,5,TRUE)), (VLOOKUP(3,Tablas!$A$979:$G$981,5,TRUE)))))))), (IF($B$17=3,(IF(3-$B$19=0,(VLOOKUP(1,Tablas!$A$979:$G$981,5,TRUE)), (IF(3-$B$19=1,(VLOOKUP(1,Tablas!$A$979:$G$981,5,TRUE)), (IF(3-$B$19=2, (VLOOKUP(2,Tablas!$A$979:$G$981,5,TRUE)), (VLOOKUP(3,Tablas!$A$979:$G$981,5,TRUE)))))))), (IF($B$17=2,(IF(2-$B$19=0, 0, (IF(2-$B$19=1,(VLOOKUP(1,Tablas!$A$979:$G$981,5,TRUE)), (IF(2-$B$19=2, (VLOOKUP(2,Tablas!$A$979:$G$981,5,TRUE)), 0)))))), (IF($B$17=1,(IF(1-$B$19=0, 0, (IF(1-$B$19=1,(VLOOKUP(1,Tablas!$A$979:$G$981,5,TRUE)),0)))),0)))))))))))))), (IF($B$17=0, 0, (IF($B$19>$B$17, (VLOOKUP($B$17,Tablas!$A$979:$G$981,5,TRUE)), (IF($B$17=4,(IF(4-$B$19=0, 0, (IF(4-$B$19=1, (VLOOKUP(1,Tablas!$A$979:$G$981,5,TRUE)), (IF(4-$B$19=2, (VLOOKUP(2,Tablas!$A$979:$G$981,5,TRUE)), (IF(4-$B$19=3, (VLOOKUP(3,Tablas!$A$979:$G$981,5,TRUE)), (IF(4-$B$19=4, (VLOOKUP(3,Tablas!$A$979:$G$981,5,TRUE)), 0)))))))))), (IF($B$17=5,(IF(5-$B$19=0, (VLOOKUP(1,Tablas!$A$979:$G$981,5,TRUE)), (IF(5-$B$19=1, (VLOOKUP(1,Tablas!$A$979:$G$981,5,TRUE)), (IF(5-$B$19=2, (VLOOKUP(2,Tablas!$A$979:$G$981,5,TRUE)), (IF(5-$B$19=3, (VLOOKUP(3,Tablas!$A$979:$G$981,5,TRUE)), (IF(5-$B$19=4, (VLOOKUP(3,Tablas!$A$979:$G$981,5,TRUE)), (VLOOKUP(3,Tablas!$A$979:$G$981,5,TRUE)))))))))))), (IF($B$17=6,(IF(6-$B$19=0, (VLOOKUP(2,Tablas!$A$979:$G$981,5,TRUE)), (IF(6-$B$19=1, (VLOOKUP(2,Tablas!$A$979:$G$981,5,TRUE)), (IF(6-$B$19=2, (VLOOKUP(2,Tablas!$A$979:$G$981,5,TRUE)), (IF(6-$B$19=3, (VLOOKUP(3,Tablas!$A$979:$G$981,5,TRUE)), (IF(6-$B$19=4, (VLOOKUP(3,Tablas!$A$979:$G$981,5,TRUE)), (VLOOKUP(3,Tablas!$A$979:$G$981,5,TRUE)))))))))))), (IF($B$17>6,(IF(7-$B$19=0, (VLOOKUP(3,Tablas!$A$979:$G$981,5,TRUE)), (IF(7-$B$19=1, (VLOOKUP(3,Tablas!$A$979:$G$981,5,TRUE)), (IF(7-$B$19=2, (VLOOKUP(3,Tablas!$A$979:$G$981,5,TRUE)), (IF(7-$B$19=3, (VLOOKUP(3,Tablas!$A$979:$G$981,5,TRUE)), (IF(7-$B$19=4, (VLOOKUP(3,Tablas!$A$979:$G$981,5,TRUE)), (VLOOKUP(3,Tablas!$A$979:$G$981,5,TRUE)))))))))))), (IF($B$17=3,(IF(3-$B$19=0,0, (IF(3-$B$19=1,(VLOOKUP(1,Tablas!$A$979:$G$981,5,TRUE)), (IF(3-$B$19=2, (VLOOKUP(2,Tablas!$A$979:$G$981,5,TRUE)), (VLOOKUP(3,Tablas!$A$979:$G$981,5,TRUE)))))))), (IF($B$17=2,(IF(2-$B$19=0, 0, (IF(2-$B$19=1,(VLOOKUP(1,Tablas!$A$979:$G$981,5,TRUE)), (IF(2-$B$19=2, (VLOOKUP(2,Tablas!$A$979:$G$981,5,TRUE)), 0)))))), (IF($B$17=1,(IF(1-$B$19=0, 0, (IF(1-$B$19=1,(VLOOKUP(1,Tablas!$A$979:$G$981,5,TRUE)),0)))),0)))))))))))))))))))*(1-E25)*(1-E26) -> 0
A35: Total de Prima neta | C35: =SUM(C32:C34) -> 47890.92 | D35: =SUM(D32:D34) -> 26261.11125 | E35: =SUM(E32:E34) -> 21776.75775
A36: Tarifa administrativa anual | C36: 75 | D36: 75 | E36: 75
A37: VAT (5%) | C37: =(C35+C36)*5% -> 2398.296 | D37: =(D35+D36)*5% -> 1316.805562 | E37: =(E35+E36)*5% -> 1092.587888
A38: ITBMS (7%) | C38: 0 | D38: 0 | E38: 0
A39: TOTAL ANUAL | C39: =SUM(C35:C38) -> 50364.216 | D39: =SUM(D35:D38) -> 27652.91681 | E39: =SUM(E35:E38) -> 22944.34564
A40: Ahorros en tarifas de prima para Dependientes | C40: =IF($B$15=1,IF($B$17=0,0,IF($B$19=0,0,IF($B$19=1,(VLOOKUP(1,Tablas!$A$979:$G$981,3,TRUE)),(VLOOKUP(2,Tablas!$A$979:$G$981,3,TRUE))))), IF($B$17=0,0,IF($B$19=0,0,IF($B$19=1,(VLOOKUP(1,Tablas!$A$979:$G$981,3,TRUE)),IF($B$19=2,(VLOOKUP(2,Tablas!$A$979:$G$981,3,TRUE)), (VLOOKUP(3,Tablas!$A$979:$G$981,3,TRUE))))))) -> 0 | D40: =IF($B$15=1,IF($B$17=0,0,IF($B$19=0,0,IF($B$19=1,(VLOOKUP(1,Tablas!$A$979:$G$981,4,TRUE)),(VLOOKUP(2,Tablas!$A$979:$G$981,4,TRUE))))), IF($B$17=0,0,IF($B$19=0,0,IF($B$19=1,(VLOOKUP(1,Tablas!$A$979:$G$981,4,TRUE)),IF($B$19=2,(VLOOKUP(2,Tablas!$A$979:$G$981,4,TRUE)), (VLOOKUP(3,Tablas!$A$979:$G$981,4,TRUE))))))) -> 0 | E40: =IF($B$15=1,IF($B$17=0,0,IF($B$19=0,0,IF($B$19=1,(VLOOKUP(1,Tablas!$A$979:$G$981,5,TRUE)),(VLOOKUP(2,Tablas!$A$979:$G$981,5,TRUE))))), IF($B$17=0,0,IF($B$19=0,0,IF($B$19=1,(VLOOKUP(1,Tablas!$A$979:$G$981,5,TRUE)),IF($B$19=2,(VLOOKUP(2,Tablas!$A$979:$G$981,5,TRUE)), (VLOOKUP(3,Tablas!$A$979:$G$981,5,TRUE))))))) -> 0
A42: TARIFAS SEMIANUALES
A43: Prima para Asegurado Titular | C43: =C32*Tablas!$K$4 -> 25382.1876 | D43: =D32*Tablas!$K$4 -> 13918.38896 | E43: =E32*Tablas!$K$4 -> 11541.68161
A44: Prima para conyuge | C44: =C33*Tablas!$K$4 -> 0 | D44: =D33*Tablas!$K$4 -> 0 | E44: =E33*Tablas!$K$4 -> 0
A45: Prima para hijo (s) | C45: =C34*Tablas!$K$4 -> 0 | D45: =D34*Tablas!$K$4 -> 0 | E45: =E34*Tablas!$K$4 -> 0
A46: Total de Prima neta | C46: =SUM(C43:C45) -> 25382.1876 | D46: =SUM(D43:D45) -> 13918.38896 | E46: =SUM(E43:E45) -> 11541.68161
A47: Tarifa administrativa anual | C47: 75 | D47: 75 | E47: 75
A48: VAT (5%) | C48: =(C46+C47)*5% -> 1272.85938 | D48: =(D46+D47)*5% -> 699.6694481 | E48: =(E46+E47)*5% -> 580.8340804
A49: ITBMS (7%) | C49: 0 | D49: 0 | E49: 0
A50: TOTAL de primera cuota | C50: =SUM(C46:C49) -> 26730.04698 | D50: =SUM(D46:D49) -> 14693.05841 | E50: =SUM(E46:E49) -> 12197.51569
A51: Costo de segunda cuota | C51: =C46*1.05 -> 26651.29698 | D51: =D46*1.05 -> 14614.30841 | E51: =E46*1.05 -> 12118.76569
A52: TOTAL ANUAL | C52: =C50+C51 -> 53381.34396 | D52: =D50+D51 -> 29307.36682 | E52: =E50+E51 -> 24316.28138
A53: Ahorros en tarifas de prima para Dependientes | C53: =IF($B$15=1,IF($B$17=0,0,IF($B$19=0,0,IF($B$19=1,(VLOOKUP(1,Tablas!$A$1506:$G$1508,3,TRUE)),(VLOOKUP(2,Tablas!$A$1506:$G$1508,3,TRUE))))), IF($B$17=0,0,IF($B$19=0,0,IF($B$19=1,(VLOOKUP(1,Tablas!$A$1506:$G$1508,3,TRUE)),IF($B$19=2,(VLOOKUP(2,Tablas!$A$1506:$G$1508,3,TRUE)), (VLOOKUP(3,Tablas!$A$1506:$G$1508,3,TRUE))))))) -> 0 | D53: =IF($B$15=1,IF($B$17=0,0,IF($B$19=0,0,IF($B$19=1,(VLOOKUP(1,Tablas!$A$1506:$G$1508,4,TRUE)),(VLOOKUP(2,Tablas!$A$1506:$G$1508,4,TRUE))))), IF($B$17=0,0,IF($B$19=0,0,IF($B$19=1,(VLOOKUP(1,Tablas!$A$1506:$G$1508,4,TRUE)),IF($B$19=2,(VLOOKUP(2,Tablas!$A$1506:$G$1508,4,TRUE)), (VLOOKUP(3,Tablas!$A$1506:$G$1508,4,TRUE))))))) -> 0 | E53: =IF($B$15=1,IF($B$17=0,0,IF($B$19=0,0,IF($B$19=1,(VLOOKUP(1,Tablas!$A$1506:$G$1508,5,TRUE)),(VLOOKUP(2,Tablas!$A$1506:$G$1508,5,TRUE))))), IF($B$17=0,0,IF($B$19=0,0,IF($B$19=1,(VLOOKUP(1,Tablas!$A$1506:$G$1508,5,TRUE)),IF($B$19=2,(VLOOKUP(2,Tablas!$A$1506:$G$1508,5,TRUE)), (VLOOKUP(3,Tablas!$A$1506:$G$1508,5,TRUE))))))) -> 0
A55: TARIFAS TRIMESTRALES
A56: Prima para Asegurado Titular | C56: =C32*Tablas!$K$3 -> 13170.003 | D56: =D32*Tablas!$K$3 -> 7221.805594 | E56: =E32*Tablas!$K$3 -> 5988.608381
A57: Prima para conyuge | C57: =C33*Tablas!$K$3 -> 0 | D57: =D33*Tablas!$K$3 -> 0 | E57: =E33*Tablas!$K$3 -> 0
A58: Prima para hijo (s) | C58: =C34*Tablas!$K$3 -> 0 | D58: =D34*Tablas!$K$3 -> 0 | E58: =E34*Tablas!$K$3 -> 0
A59: Total de Prima neta | C59: =SUM(C56:C58) -> 13170.003 | D59: =SUM(D56:D58) -> 7221.805594 | E59: =SUM(E56:E58) -> 5988.608381
A60: Tarifa administrativa anual | C60: 75 | D60: 75 | E60: 75
A61: VAT (5%) | C61: =(C59+C60)*5% -> 662.25015 | D61: =(D59+D60)*5% -> 364.8402797 | E61: =(E59+E60)*5% -> 303.1804191
A62: ITBMS (7%) | C62: 0 | D62: 0 | E62: 0
A63: TOTAL de primera cuota | C63: =SUM(C59:C62) -> 13907.25315 | D63: =SUM(D59:D62) -> 7661.645873 | E63: =SUM(E59:E62) -> 6366.7888
A64: Costo de tarifa trimestral 2 a 4 | C64: =C59*1.05 -> 13828.50315 | D64: =D59*1.05 -> 7582.895873 | E64: =E59*1.05 -> 6288.0388
A65: TOTAL ANUAL | C65: =C63+(C64*3) -> 55392.7626 | D65: =D63+(D64*3) -> 30410.33349 | E65: =E63+(E64*3) -> 25230.9052
A66: Ahorros en tarifas de prima para Dependientes | C66: =IF($B$15=1,IF($B$17=0,0,IF($B$19=0,0,IF($B$19=1,(VLOOKUP(1,Tablas!$A$1128:$G$1130,3,TRUE)),(VLOOKUP(2,Tablas!$A$1128:$G$1130,3,TRUE))))), IF($B$17=0,0,IF($B$19=0,0,IF($B$19=1,(VLOOKUP(1,Tablas!$A$1128:$G$1130,3,TRUE)),IF($B$19=2,(VLOOKUP(2,Tablas!$A$1128:$G$1130,3,TRUE)), (VLOOKUP(3,Tablas!$A$1128:$G$1130,3,TRUE))))))) -> 0 | D66: =IF($B$15=1,IF($B$17=0,0,IF($B$19=0,0,IF($B$19=1,(VLOOKUP(1,Tablas!$A$1128:$G$1130,4,TRUE)),(VLOOKUP(2,Tablas!$A$1128:$G$1130,4,TRUE))))), IF($B$17=0,0,IF($B$19=0,0,IF($B$19=1,(VLOOKUP(1,Tablas!$A$1128:$G$1130,4,TRUE)),IF($B$19=2,(VLOOKUP(2,Tablas!$A$1128:$G$1130,4,TRUE)), (VLOOKUP(3,Tablas!$A$1128:$G$1130,4,TRUE))))))) -> 0 | E66: =IF($B$15=1,IF($B$17=0,0,IF($B$19=0,0,IF($B$19=1,(VLOOKUP(1,Tablas!$A$1128:$G$1130,5,TRUE)),(VLOOKUP(2,Tablas!$A$1128:$G$1130,5,TRUE))))), IF($B$17=0,0,IF($B$19=0,0,IF($B$19=1,(VLOOKUP(1,Tablas!$A$1128:$G$1130,5,TRUE)),IF($B$19=2,(VLOOKUP(2,Tablas!$A$1128:$G$1130,5,TRUE)), (VLOOKUP(3,Tablas!$A$1128:$G$1130,5,TRUE))))))) -> 0
A68: TARIFAS MENSUALES
A69: Prima para Asegurado Titular | C69: =C32*Tablas!$K$2 -> 4469.8192 | D69: =D32*Tablas!$K$2 -> 2451.03705 | E69: =E32*Tablas!$K$2 -> 2032.49739
A70: Prima para conyuge | C70: =C33*Tablas!$K$2 -> 0 | D70: =D33*Tablas!$K$2 -> 0 | E70: =E33*Tablas!$K$2 -> 0
A71: Prima para hijo (s) | C71: =C34*Tablas!$K$2 -> 0 | D71: =D34*Tablas!$K$2 -> 0 | E71: =E34*Tablas!$K$2 -> 0
A72: Total de Prima neta | C72: =SUM(C69:C71) -> 4469.8192 | D72: =SUM(D69:D71) -> 2451.03705 | E72: =SUM(E69:E71) -> 2032.49739
A73: Tarifa administrativa anual | C73: 75 | D73: 75 | E73: 75
A74: VAT (5%) | C74: =(C72+C73)*5% -> 227.24096 | D74: =(D72+D73)*5% -> 126.3018525 | E74: =(E72+E73)*5% -> 105.3748695
A75: ITBMS (7%) | C75: 0 | D75: 0 | E75: 0
A76: TOTAL de primera cuota | C76: =SUM(C72:C75) -> 4772.06016 | D76: =SUM(D72:D75) -> 2652.338902 | E76: =SUM(E72:E75) -> 2212.87226
A77: Costo de Tarifa mensual de 2 a 12 | C77: =C72*1.05 -> 4693.31016 | D77: =D72*1.05 -> 2573.588903 | E77: =E72*1.05 -> 2134.12226
A78: TOTAL ANUAL | C78: =C76+(C77*11) -> 56398.47192 | D78: =D76+(D77*11) -> 30961.81683 | E78: =E76+(E77*11) -> 25688.21711
A79: Ahorros en tarifas de prima para Dependientes | C79: =IF($B$15=1,IF($B$17=0,0,IF($B$19=0,0,IF($B$19=1,(VLOOKUP(1,Tablas!$A$1053:$G$1055,3,TRUE)),(VLOOKUP(2,Tablas!$A$1053:$G$1055,3,TRUE))))), IF($B$17=0,0,IF($B$19=0,0,IF($B$19=1,(VLOOKUP(1,Tablas!$A$1053:$G$1055,3,TRUE)),IF($B$19=2,(VLOOKUP(2,Tablas!$A$1053:$G$1055,3,TRUE)), (VLOOKUP(3,Tablas!$A$1053:$G$1055,3,TRUE))))))) -> 0 | D79: =IF($B$15=1,IF($B$17=0,0,IF($B$19=0,0,IF($B$19=1,(VLOOKUP(1,Tablas!$A$1053:$G$1055,4,TRUE)),(VLOOKUP(2,Tablas!$A$1053:$G$1055,4,TRUE))))), IF($B$17=0,0,IF($B$19=0,0,IF($B$19=1,(VLOOKUP(1,Tablas!$A$1053:$G$1055,4,TRUE)),IF($B$19=2,(VLOOKUP(2,Tablas!$A$1053:$G$1055,4,TRUE)), (VLOOKUP(3,Tablas!$A$1053:$G$1055,4,TRUE))))))) -> 0 | E79: =IF($B$15=1,IF($B$17=0,0,IF($B$19=0,0,IF($B$19=1,(VLOOKUP(1,Tablas!$A$1053:$G$1055,5,TRUE)),(VLOOKUP(2,Tablas!$A$1053:$G$1055,5,TRUE))))), IF($B$17=0,0,IF($B$19=0,0,IF($B$19=1,(VLOOKUP(1,Tablas!$A$1053:$G$1055,5,TRUE)),IF($B$19=2,(VLOOKUP(2,Tablas!$A$1053:$G$1055,5,TRUE)), (VLOOKUP(3,Tablas!$A$1053:$G$1055,5,TRUE))))))) -> 0
A81: Este presupuesto solamente tiene carácter informativo y en ningún momento expresa compromiso legal para suministrarle cobertura de seguro. La emisión de una póliza de seguro Bupa está sujeta a todas las evaluaciones de riesgo por parte de Bupa y a la recepción de todos los pagos de prima requeridos.

Sheet Bupa Global Elite
K1: RESUMEN DE BENEFICIOS | Z1: RESUMEN DE BENEFICIOS | AO1: RESUMEN DE BENEFICIOS
A5: Cotización de Seguro Médico Internacional Bupa Global Elite Health Plan Tarifas en US$ | Validas: 1 de noviembre de 2025
A13: Nombre del Asegurado Titular | B13: =+'INGRESO DE DATOS'!$C$37 -> John Doe
A15: Número de adultos en la póliza | B15: =+'INGRESO DE DATOS'!$C$39 -> 1
A17: Número de Dependientes en la póliza | B17: =+'INGRESO DE DATOS'!$C$41 -> 0 | C17: =IF('INGRESO DE DATOS'!$R$2=TRUE, "Cotización para dependiente de 24 años","") -> 
A19: Número de Dependientes menores de 10 años | B19: =+'INGRESO DE DATOS'!$H$42 -> 2
A21: Edad del Asegurado Titular | B21: =+'INGRESO DE DATOS'!$C$43 -> 61 | E21: Edad del/la conyuge | G21: =+'INGRESO DE DATOS'!$C$45 -> 0
A23: Fecha de la cotización | B23: =NOW() -> 2025-12-26T14:05:27.350
A25: =IF('INGRESO DE DATOS'!R3=TRUE,"Variante con coaseguro fuera del país de residencia: SI","Variante con coaseguro fuera del país de residencia: NO") -> Variante con coaseguro fuera del país de residencia: NO
B26: Ajuste | C26: ='INGRESO DE DATOS'!T65 -> 0.15 | D26: ='INGRESO DE DATOS'!T66 -> 0.15 | E26: ='INGRESO DE DATOS'!T67 -> 0.15 | F26: ='INGRESO DE DATOS'!T68 -> 0.15 | G26: ='INGRESO DE DATOS'!T69 -> 0.15 | H26: ='INGRESO DE DATOS'!T70 -> 0.15
B27: Descuento | C27: ='INGRESO DE DATOS'!U65 -> 0 | D27: ='INGRESO DE DATOS'!U66 -> 0 | E27: ='INGRESO DE DATOS'!U67 -> 0 | F27: ='INGRESO DE DATOS'!U68 -> 0 | G27: ='INGRESO DE DATOS'!U69 -> 0 | H27: ='INGRESO DE DATOS'!U70 -> 0
A28: DEDUCIBlES | C28: PLAN 1 | D28: PLAN 2 | E28: PLAN 3 | F28: PLAN 4 | G28: PLAN 5 | H28: PLAN 6
A29: En el país de residencia | C29: 1000 | D29: 2000 | E29: 3500 | F29: 5000 | G29: 10000 | H29: 20000
A30: Fuera del país de residencia | C30: 1000 | D30: 2000 | E30: 3500 | F30: 5000 | G30: 10000 | H30: 20000
A32: TARIFAS ANUALES
A33: Prima para Asegurado Titular | C33: =VLOOKUP($B$21,Tablas!$A$6:$G$72,3,TRUE)*(1-C26)*(1-C27) -> 21423.07275 | D33: =VLOOKUP($B$21,Tablas!$A$6:$G$72,4,TRUE)*(1-D26)*(1-D27) -> 15181.46325 | E33: =VLOOKUP($B$21,Tablas!$A$6:$G$72,5,TRUE)*(1-E26)*(1-E27) -> 12153.7335 | F33: =VLOOKUP($B$21,Tablas!$A$6:$G$72,6,TRUE)*(1-F26)*(1-F27) -> 10538.88225 | G33: =VLOOKUP($B$21,Tablas!$A$6:$G$72,7,TRUE)*(1-G26)*(1-G27) -> 8031.44175 | H33: =VLOOKUP($B$21,Tablas!$A$6:$H$72,8,TRUE)*(1-H26)*(1-H27) -> 6425.898
A34: Prima para conyuge | C34: =IF($B$15=1,0,(VLOOKUP($G$21,Tablas!$A$6:$G$72,3,TRUE)))*(1-C26)*(1-C27) -> 0 | D34: =IF($B$15=1,0,(VLOOKUP($G$21,Tablas!$A$6:$G$72,4,TRUE)))*(1-D26)*(1-D27) -> 0 | E34: =IF($B$15=1,0,(VLOOKUP($G$21,Tablas!$A$6:$G$72,5,TRUE)))*(1-E26)*(1-E27) -> 0 | F34: =IF($B$15=1,0,(VLOOKUP($G$21,Tablas!$A$6:$G$72,6,TRUE)))*(1-F26)*(1-F27) -> 0 | G34: =IF($B$15=1,0,(VLOOKUP($G$21,Tablas!$A$6:$G$72,7,TRUE)))*(1-G26)*(1-G27) -> 0 | H34: =IF($B$15=1,0,(VLOOKUP($G$21,Tablas!$A$6:$H$72,8,TRUE)))*(1-H26)*(1-H27) -> 0
A35: Prima para hijo (s) | C35: =IF($B$15=1, (IF($B$17=0, 0, (IF($B$19>$B$17, (VLOOKUP($B$17,Tablas!$A$73:$G$75,3,TRUE)), (IF($B$17>4,(IF($B$19=0, (VLOOKUP(3,Tablas!$A$73:$G$75,3,TRUE)), (IF($B$19=1, (VLOOKUP(3,Tablas!$A$73:$G$75,3,TRUE)), (IF($B$19=2, (VLOOKUP(3,Tablas!$A$73:$G$75,3,TRUE)), (VLOOKUP(3,Tablas!$A$73:$G$75,3,TRUE)))))))), (IF($B$17=4,(IF(4-$B$19=0,(VLOOKUP(2,Tablas!$A$73:$G$75,3,TRUE)), (IF(4-$B$19=1,(VLOOKUP(2,Tablas!$A$73:$G$75,3,TRUE)), (IF(4-$B$19=2, (VLOOKUP(2,Tablas!$A$73:$G$75,3,TRUE)), (VLOOKUP(3,Tablas!$A$73:$G$75,3,TRUE)))))))), (IF($B$17=3,(IF(3-$B$19=0,(VLOOKUP(1,Tablas!$A$73:$G$75,3,TRUE)), (IF(3-$B$19=1,(VLOOKUP(1,Tablas!$A$73:$G$75,3,TRUE)), (IF(3-$B$19=2, (VLOOKUP(2,Tablas!$A$73:$G$75,3,TRUE)), (VLOOKUP(3,Tablas!$A$73:$G$75,3,TRUE)))))))), (IF($B$17=2,(IF(2-$B$19=0, 0, (IF(2-$B$19=1,(VLOOKUP(1,Tablas!$A$73:$G$75,3,TRUE)), (IF(2-$B$19=2, (VLOOKUP(2,Tablas!$A$73:$G$75,3,TRUE)), 0)))))), (IF($B$17=1,(IF(1-$B$19=0, 0, (IF(1-$B$19=1,(VLOOKUP(1,Tablas!$A$73:$G$75,3,TRUE)),0)))),0)))))))))))))), (IF($B$17=0, 0, (IF($B$19>$B$17, (VLOOKUP($B$17,Tablas!$A$73:$G$75,3,TRUE)), (IF($B$17=4,(IF(4-$B$19=0, 0, (IF(4-$B$19=1, (VLOOKUP(1,Tablas!$A$73:$G$75,3,TRUE)), (IF(4-$B$19=2, (VLOOKUP(2,Tablas!$A$73:$G$75,3,TRUE)), (IF(4-$B$19=3, (VLOOKUP(3,Tablas!$A$73:$G$75,3,TRUE)), (IF(4-$B$19=4, (VLOOKUP(3,Tablas!$A$73:$G$75,3,TRUE)), 0)))))))))), (IF($B$17=5,(IF(5-$B$19=0, (VLOOKUP(1,Tablas!$A$73:$G$75,3,TRUE)), (IF(5-$B$19=1, (VLOOKUP(1,Tablas!$A$73:$G$75,3,TRUE)), (IF(5-$B$19=2, (VLOOKUP(2,Tablas!$A$73:$G$75,3,TRUE)), (IF(5-$B$19=3, (VLOOKUP(3,Tablas!$A$73:$G$75,3,TRUE)), (IF(5-$B$19=4, (VLOOKUP(3,Tablas!$A$73:$G$75,3,TRUE)), (VLOOKUP(3,Tablas!$A$73:$G$75,3,TRUE)))))))))))), (IF($B$17=6,(IF(6-$B$19=0, (VLOOKUP(2,Tablas!$A$73:$G$75,3,TRUE)), (IF(6-$B$19=1, (VLOOKUP(2,Tablas!$A$73:$G$75,3,TRUE)), (IF(6-$B$19=2, (VLOOKUP(2,Tablas!$A$73:$G$75,3,TRUE)), (IF(6-$B$19=3, (VLOOKUP(3,Tablas!$A$73:$G$75,3,TRUE)), (IF(6-$B$19=4, (VLOOKUP(3,Tablas!$A$73:$G$75,3,TRUE)), (VLOOKUP(3,Tablas!$A$73:$G$75,3,TRUE)))))))))))), (IF($B$17>6,(IF(7-$B$19=0, (VLOOKUP(3,Tablas!$A$73:$G$75,3,TRUE)), (IF(7-$B$19=1, (VLOOKUP(3,Tablas!$A$73:$G$75,3,TRUE)), (IF(7-$B$19=2, (VLOOKUP(3,Tablas!$A$73:$G$75,3,TRUE)), (IF(7-$B$19=3, (VLOOKUP(3,Tablas!$A$73:$G$75,3,TRUE)), (IF(7-$B$19=4, (VLOOKUP(3,Tablas!$A$73:$G$75,3,TRUE)), (VLOOKUP(3,Tablas!$A$73:$G$75,3,TRUE)))))))))))), (IF($B$17=3,(IF(3-$B$19=0,0, (IF(3-$B$19=1,(VLOOKUP(1,Tablas!$A$73:$G$75,3,TRUE)), (IF(3-$B$19=2, (VLOOKUP(2,Tablas!$A$73:$G$75,3,TRUE)), (VLOOKUP(3,Tablas!$A$73:$G$75,3,TRUE)))))))), (IF($B$17=2,(IF(2-$B$19=0, 0, (IF(2-$B$19=1,(VLOOKUP(1,Tablas!$A$73:$G$75,3,TRUE)), (IF(2-$B$19=2, (VLOOKUP(2,Tablas!$A$73:$G$75,3,TRUE)), 0)))))), (IF($B$17=1,(IF(1-$B$19=0, 0, (IF(1-$B$19=1,(VLOOKUP(1,Tablas!$A$73:$G$75,3,TRUE)),0)))),0)))))))))))))))))))*(1-C26)*(1-C27) -> 0 | D35: =IF($B$15=1, (IF($B$17=0, 0, (IF($B$19>$B$17, (VLOOKUP($B$17,Tablas!$A$73:$G$75,4,TRUE)), (IF($B$17>4,(IF($B$19=0, (VLOOKUP(3,Tablas!$A$73:$G$75,4,TRUE)), (IF($B$19=1, (VLOOKUP(3,Tablas!$A$73:$G$75,4,TRUE)), (IF($B$19=2, (VLOOKUP(3,Tablas!$A$73:$G$75,4,TRUE)), (VLOOKUP(3,Tablas!$A$73:$G$75,4,TRUE)))))))), (IF($B$17=4,(IF(4-$B$19=0,(VLOOKUP(2,Tablas!$A$73:$G$75,4,TRUE)), (IF(4-$B$19=1,(VLOOKUP(2,Tablas!$A$73:$G$75,4,TRUE)), (IF(4-$B$19=2, (VLOOKUP(2,Tablas!$A$73:$G$75,4,TRUE)), (VLOOKUP(3,Tablas!$A$73:$G$75,4,TRUE)))))))), (IF($B$17=3,(IF(3-$B$19=0,(VLOOKUP(1,Tablas!$A$73:$G$75,4,TRUE)), (IF(3-$B$19=1,(VLOOKUP(1,Tablas!$A$73:$G$75,4,TRUE)), (IF(3-$B$19=2, (VLOOKUP(2,Tablas!$A$73:$G$75,4,TRUE)), (VLOOKUP(3,Tablas!$A$73:$G$75,4,TRUE)))))))), (IF($B$17=2,(IF(2-$B$19=0, 0, (IF(2-$B$19=1,(VLOOKUP(1,Tablas!$A$73:$G$75,4,TRUE)), (IF(2-$B$19=2, (VLOOKUP(2,Tablas!$A$73:$G$75,4,TRUE)), 0)))))), (IF($B$17=1,(IF(1-$B$19=0, 0, (IF(1-$B$19=1,(VLOOKUP(1,Tablas!$A$73:$G$75,4,TRUE)),0)))),0)))))))))))))), (IF($B$17=0, 0, (IF($B$19>$B$17, (VLOOKUP($B$17,Tablas!$A$73:$G$75,4,TRUE)), (IF($B$17=4,(IF(4-$B$19=0, 0, (IF(4-$B$19=1, (VLOOKUP(1,Tablas!$A$73:$G$75,4,TRUE)), (IF(4-$B$19=2, (VLOOKUP(2,Tablas!$A$73:$G$75,4,TRUE)), (IF(4-$B$19=3, (VLOOKUP(3,Tablas!$A$73:$G$75,4,TRUE)), (IF(4-$B$19=4, (VLOOKUP(3,Tablas!$A$73:$G$75,4,TRUE)), 0)))))))))), (IF($B$17=5,(IF(5-$B$19=0, (VLOOKUP(1,Tablas!$A$73:$G$75,4,TRUE)), (IF(5-$B$19=1, (VLOOKUP(1,Tablas!$A$73:$G$75,4,TRUE)), (IF(5-$B$19=2, (VLOOKUP(2,Tablas!$A$73:$G$75,4,TRUE)), (IF(5-$B$19=3, (VLOOKUP(3,Tablas!$A$73:$G$75,4,TRUE)), (IF(5-$B$19=4, (VLOOKUP(3,Tablas!$A$73:$G$75,4,TRUE)), (VLOOKUP(3,Tablas!$A$73:$G$75,4,TRUE)))))))))))), (IF($B$17=6,(IF(6-$B$19=0, (VLOOKUP(2,Tablas!$A$73:$G$75,4,TRUE)), (IF(6-$B$19=1, (VLOOKUP(2,Tablas!$A$73:$G$75,4,TRUE)), (IF(6-$B$19=2, (VLOOKUP(2,Tablas!$A$73:$G$75,4,TRUE)), (IF(6-$B$19=3, (VLOOKUP(3,Tablas!$A$73:$G$75,4,TRUE)), (IF(6-$B$19=4, (VLOOKUP(3,Tablas!$A$73:$G$75,4,TRUE)), (VLOOKUP(3,Tablas!$A$73:$G$75,4,TRUE)))))))))))), (IF($B$17>6,(IF(7-$B$19=0, (VLOOKUP(3,Tablas!$A$73:$G$75,4,TRUE)), (IF(7-$B$19=1, (VLOOKUP(3,Tablas!$A$73:$G$75,4,TRUE)), (IF(7-$B$19=2, (VLOOKUP(3,Tablas!$A$73:$G$75,4,TRUE)), (IF(7-$B$19=3, (VLOOKUP(3,Tablas!$A$73:$G$75,4,TRUE)), (IF(7-$B$19=4, (VLOOKUP(3,Tablas!$A$73:$G$75,4,TRUE)), (VLOOKUP(3,Tablas!$A$73:$G$75,4,TRUE)))))))))))), (IF($B$17=3,(IF(3-$B$19=0,0, (IF(3-$B$19=1,(VLOOKUP(1,Tablas!$A$73:$G$75,4,TRUE)), (IF(3-$B$19=2, (VLOOKUP(2,Tablas!$A$73:$G$75,4,TRUE)), (VLOOKUP(3,Tablas!$A$73:$G$75,4,TRUE)))))))), (IF($B$17=2,(IF(2-$B$19=0, 0, (IF(2-$B$19=1,(VLOOKUP(1,Tablas!$A$73:$G$75,4,TRUE)), (IF(2-$B$19=2, (VLOOKUP(2,Tablas!$A$73:$G$75,4,TRUE)), 0)))))), (IF($B$17=1,(IF(1-$B$19=0, 0, (IF(1-$B$19=1,(VLOOKUP(1,Tablas!$A$73:$G$75,4,TRUE)),0)))),0)))))))))))))))))))*(1-D26)*(1-D27) -> 0 | E35: =IF($B$15=1, (IF($B$17=0, 0, (IF($B$19>$B$17, (VLOOKUP($B$17,Tablas!$A$73:$G$75,5,TRUE)), (IF($B$17>4,(IF($B$19=0, (VLOOKUP(3,Tablas!$A$73:$G$75,5,TRUE)), (IF($B$19=1, (VLOOKUP(3,Tablas!$A$73:$G$75,5,TRUE)), (IF($B$19=2, (VLOOKUP(3,Tablas!$A$73:$G$75,5,TRUE)), (VLOOKUP(3,Tablas!$A$73:$G$75,5,TRUE)))))))), (IF($B$17=4,(IF(4-$B$19=0,(VLOOKUP(2,Tablas!$A$73:$G$75,5,TRUE)), (IF(4-$B$19=1,(VLOOKUP(2,Tablas!$A$73:$G$75,5,TRUE)), (IF(4-$B$19=2, (VLOOKUP(2,Tablas!$A$73:$G$75,5,TRUE)), (VLOOKUP(3,Tablas!$A$73:$G$75,5,TRUE)))))))), (IF($B$17=3,(IF(3-$B$19=0,(VLOOKUP(1,Tablas!$A$73:$G$75,5,TRUE)), (IF(3-$B$19=1,(VLOOKUP(1,Tablas!$A$73:$G$75,5,TRUE)), (IF(3-$B$19=2, (VLOOKUP(2,Tablas!$A$73:$G$75,5,TRUE)), (VLOOKUP(3,Tablas!$A$73:$G$75,5,TRUE)))))))), (IF($B$17=2,(IF(2-$B$19=0, 0, (IF(2-$B$19=1,(VLOOKUP(1,Tablas!$A$73:$G$75,5,TRUE)), (IF(2-$B$19=2, (VLOOKUP(2,Tablas!$A$73:$G$75,5,TRUE)), 0)))))), (IF($B$17=1,(IF(1-$B$19=0, 0, (IF(1-$B$19=1,(VLOOKUP(1,Tablas!$A$73:$G$75,5,TRUE)),0)))),0)))))))))))))), (IF($B$17=0, 0, (IF($B$19>$B$17, (VLOOKUP($B$17,Tablas!$A$73:$G$75,5,TRUE)), (IF($B$17=4,(IF(4-$B$19=0, 0, (IF(4-$B$19=1, (VLOOKUP(1,Tablas!$A$73:$G$75,5,TRUE)), (IF(4-$B$19=2, (VLOOKUP(2,Tablas!$A$73:$G$75,5,TRUE)), (IF(4-$B$19=3, (VLOOKUP(3,Tablas!$A$73:$G$75,5,TRUE)), (IF(4-$B$19=4, (VLOOKUP(3,Tablas!$A$73:$G$75,5,TRUE)), 0)))))))))), (IF($B$17=5,(IF(5-$B$19=0, (VLOOKUP(1,Tablas!$A$73:$G$75,5,TRUE)), (IF(5-$B$19=1, (VLOOKUP(1,Tablas!$A$73:$G$75,5,TRUE)), (IF(5-$B$19=2, (VLOOKUP(2,Tablas!$A$73:$G$75,5,TRUE)), (IF(5-$B$19=3, (VLOOKUP(3,Tablas!$A$73:$G$75,5,TRUE)), (IF(5-$B$19=4, (VLOOKUP(3,Tablas!$A$73:$G$75,5,TRUE)), (VLOOKUP(3,Tablas!$A$73:$G$75,5,TRUE)))))))))))), (IF($B$17=6,(IF(6-$B$19=0, (VLOOKUP(2,Tablas!$A$73:$G$75,5,TRUE)), (IF(6-$B$19=1, (VLOOKUP(2,Tablas!$A$73:$G$75,5,TRUE)), (IF(6-$B$19=2, (VLOOKUP(2,Tablas!$A$73:$G$75,5,TRUE)), (IF(6-$B$19=3, (VLOOKUP(3,Tablas!$A$73:$G$75,5,TRUE)), (IF(6-$B$19=4, (VLOOKUP(3,Tablas!$A$73:$G$75,5,TRUE)), (VLOOKUP(3,Tablas!$A$73:$G$75,5,TRUE)))))))))))), (IF($B$17>6,(IF(7-$B$19=0, (VLOOKUP(3,Tablas!$A$73:$G$75,5,TRUE)), (IF(7-$B$19=1, (VLOOKUP(3,Tablas!$A$73:$G$75,5,TRUE)), (IF(7-$B$19=2, (VLOOKUP(3,Tablas!$A$73:$G$75,5,TRUE)), (IF(7-$B$19=3, (VLOOKUP(3,Tablas!$A$73:$G$75,5,TRUE)), (IF(7-$B$19=4, (VLOOKUP(3,Tablas!$A$73:$G$75,5,TRUE)), (VLOOKUP(3,Tablas!$A$73:$G$75,5,TRUE)))))))))))), (IF($B$17=3,(IF(3-$B$19=0,0, (IF(3-$B$19=1,(VLOOKUP(1,Tablas!$A$73:$G$75,5,TRUE)), (IF(3-$B$19=2, (VLOOKUP(2,Tablas!$A$73:$G$75,5,TRUE)), (VLOOKUP(3,Tablas!$A$73:$G$75,5,TRUE)))))))), (IF($B$17=2,(IF(2-$B$19=0, 0, (IF(2-$B$19=1,(VLOOKUP(1,Tablas!$A$73:$G$75,5,TRUE)), (IF(2-$B$19=2, (VLOOKUP(2,Tablas!$A$73:$G$75,5,TRUE)), 0)))))), (IF($B$17=1,(IF(1-$B$19=0, 0, (IF(1-$B$19=1,(VLOOKUP(1,Tablas!$A$73:$G$75,5,TRUE)),0)))),0)))))))))))))))))))*(1-E26)*(1-E27) -> 0 | F35: =IF($B$15=1, (IF($B$17=0, 0, (IF($B$19>$B$17, (VLOOKUP($B$17,Tablas!$A$73:$G$75,6,TRUE)), (IF($B$17>4,(IF($B$19=0, (VLOOKUP(3,Tablas!$A$73:$G$75,6,TRUE)), (IF($B$19=1, (VLOOKUP(3,Tablas!$A$73:$G$75,6,TRUE)), (IF($B$19=2, (VLOOKUP(3,Tablas!$A$73:$G$75,6,TRUE)), (VLOOKUP(3,Tablas!$A$73:$G$75,6,TRUE)))))))), (IF($B$17=4,(IF(4-$B$19=0,(VLOOKUP(2,Tablas!$A$73:$G$75,6,TRUE)), (IF(4-$B$19=1,(VLOOKUP(2,Tablas!$A$73:$G$75,6,TRUE)), (IF(4-$B$19=2, (VLOOKUP(2,Tablas!$A$73:$G$75,6,TRUE)), (VLOOKUP(3,Tablas!$A$73:$G$75,6,TRUE)))))))), (IF($B$17=3,(IF(3-$B$19=0,(VLOOKUP(1,Tablas!$A$73:$G$75,6,TRUE)), (IF(3-$B$19=1,(VLOOKUP(1,Tablas!$A$73:$G$75,6,TRUE)), (IF(3-$B$19=2, (VLOOKUP(2,Tablas!$A$73:$G$75,6,TRUE)), (VLOOKUP(3,Tablas!$A$73:$G$75,6,TRUE)))))))), (IF($B$17=2,(IF(2-$B$19=0, 0, (IF(2-$B$19=1,(VLOOKUP(1,Tablas!$A$73:$G$75,6,TRUE)), (IF(2-$B$19=2, (VLOOKUP(2,Tablas!$A$73:$G$75,6,TRUE)), 0)))))), (IF($B$17=1,(IF(1-$B$19=0, 0, (IF(1-$B$19=1,(VLOOKUP(1,Tablas!$A$73:$G$75,6,TRUE)),0)))),0)))))))))))))), (IF($B$17=0, 0, (IF($B$19>$B$17, (VLOOKUP($B$17,Tablas!$A$73:$G$75,6,TRUE)), (IF($B$17=4,(IF(4-$B$19=0, 0, (IF(4-$B$19=1, (VLOOKUP(1,Tablas!$A$73:$G$75,6,TRUE)), (IF(4-$B$19=2, (VLOOKUP(2,Tablas!$A$73:$G$75,6,TRUE)), (IF(4-$B$19=3, (VLOOKUP(3,Tablas!$A$73:$G$75,6,TRUE)), (IF(4-$B$19=4, (VLOOKUP(3,Tablas!$A$73:$G$75,6,TRUE)), 0)))))))))), (IF($B$17=5,(IF(5-$B$19=0, (VLOOKUP(1,Tablas!$A$73:$G$75,6,TRUE)), (IF(5-$B$19=1, (VLOOKUP(1,Tablas!$A$73:$G$75,6,TRUE)), (IF(5-$B$19=2, (VLOOKUP(2,Tablas!$A$73:$G$75,6,TRUE)), (IF(5-$B$19=3, (VLOOKUP(3,Tablas!$A$73:$G$75,6,TRUE)), (IF(5-$B$19=4, (VLOOKUP(3,Tablas!$A$73:$G$75,6,TRUE)), (VLOOKUP(3,Tablas!$A$73:$G$75,6,TRUE)))))))))))), (IF($B$17=6,(IF(6-$B$19=0, (VLOOKUP(2,Tablas!$A$73:$G$75,6,TRUE)), (IF(6-$B$19=1, (VLOOKUP(2,Tablas!$A$73:$G$75,6,TRUE)), (IF(6-$B$19=2, (VLOOKUP(2,Tablas!$A$73:$G$75,6,TRUE)), (IF(6-$B$19=3, (VLOOKUP(3,Tablas!$A$73:$G$75,6,TRUE)), (IF(6-$B$19=4, (VLOOKUP(3,Tablas!$A$73:$G$75,6,TRUE)), (VLOOKUP(3,Tablas!$A$73:$G$75,6,TRUE)))))))))))), (IF($B$17>6,(IF(7-$B$19=0, (VLOOKUP(3,Tablas!$A$73:$G$75,6,TRUE)), (IF(7-$B$19=1, (VLOOKUP(3,Tablas!$A$73:$G$75,6,TRUE)), (IF(7-$B$19=2, (VLOOKUP(3,Tablas!$A$73:$G$75,6,TRUE)), (IF(7-$B$19=3, (VLOOKUP(3,Tablas!$A$73:$G$75,6,TRUE)), (IF(7-$B$19=4, (VLOOKUP(3,Tablas!$A$73:$G$75,6,TRUE)), (VLOOKUP(3,Tablas!$A$73:$G$75,6,TRUE)))))))))))), (IF($B$17=3,(IF(3-$B$19=0,0, (IF(3-$B$19=1,(VLOOKUP(1,Tablas!$A$73:$G$75,6,TRUE)), (IF(3-$B$19=2, (VLOOKUP(2,Tablas!$A$73:$G$75,6,TRUE)), (VLOOKUP(3,Tablas!$A$73:$G$75,6,TRUE)))))))), (IF($B$17=2,(IF(2-$B$19=0, 0, (IF(2-$B$19=1,(VLOOKUP(1,Tablas!$A$73:$G$75,6,TRUE)), (IF(2-$B$19=2, (VLOOKUP(2,Tablas!$A$73:$G$75,6,TRUE)), 0)))))), (IF($B$17=1,(IF(1-$B$19=0, 0, (IF(1-$B$19=1,(VLOOKUP(1,Tablas!$A$73:$G$75,6,TRUE)),0)))),0)))))))))))))))))))*(1-F26)*(1-F27) -> 0 | G35: =IF($B$15=1, (IF($B$17=0, 0, (IF($B$19>$B$17, (VLOOKUP($B$17,Tablas!$A$73:$G$75,7,TRUE)), (IF($B$17>4,(IF($B$19=0, (VLOOKUP(3,Tablas!$A$73:$G$75,7,TRUE)), (IF($B$19=1, (VLOOKUP(3,Tablas!$A$73:$G$75,7,TRUE)), (IF($B$19=2, (VLOOKUP(3,Tablas!$A$73:$G$75,7,TRUE)), (VLOOKUP(3,Tablas!$A$73:$G$75,7,TRUE)))))))), (IF($B$17=4,(IF(4-$B$19=0,(VLOOKUP(2,Tablas!$A$73:$G$75,7,TRUE)), (IF(4-$B$19=1,(VLOOKUP(2,Tablas!$A$73:$G$75,7,TRUE)), (IF(4-$B$19=2, (VLOOKUP(2,Tablas!$A$73:$G$75,7,TRUE)), (VLOOKUP(3,Tablas!$A$73:$G$75,7,TRUE)))))))), (IF($B$17=3,(IF(3-$B$19=0,(VLOOKUP(1,Tablas!$A$73:$G$75,7,TRUE)), (IF(3-$B$19=1,(VLOOKUP(1,Tablas!$A$73:$G$75,7,TRUE)), (IF(3-$B$19=2, (VLOOKUP(2,Tablas!$A$73:$G$75,7,TRUE)), (VLOOKUP(3,Tablas!$A$73:$G$75,7,TRUE)))))))), (IF($B$17=2,(IF(2-$B$19=0, 0, (IF(2-$B$19=1,(VLOOKUP(1,Tablas!$A$73:$G$75,7,TRUE)), (IF(2-$B$19=2, (VLOOKUP(2,Tablas!$A$73:$G$75,7,TRUE)), 0)))))), (IF($B$17=1,(IF(1-$B$19=0, 0, (IF(1-$B$19=1,(VLOOKUP(1,Tablas!$A$73:$G$75,7,TRUE)),0)))),0)))))))))))))), (IF($B$17=0, 0, (IF($B$19>$B$17, (VLOOKUP($B$17,Tablas!$A$73:$G$75,7,TRUE)), (IF($B$17=4,(IF(4-$B$19=0, 0, (IF(4-$B$19=1, (VLOOKUP(1,Tablas!$A$73:$G$75,7,TRUE)), (IF(4-$B$19=2, (VLOOKUP(2,Tablas!$A$73:$G$75,7,TRUE)), (IF(4-$B$19=3, (VLOOKUP(3,Tablas!$A$73:$G$75,7,TRUE)), (IF(4-$B$19=4, (VLOOKUP(3,Tablas!$A$73:$G$75,7,TRUE)), 0)))))))))), (IF($B$17=5,(IF(5-$B$19=0, (VLOOKUP(1,Tablas!$A$73:$G$75,7,TRUE)), (IF(5-$B$19=1, (VLOOKUP(1,Tablas!$A$73:$G$75,7,TRUE)), (IF(5-$B$19=2, (VLOOKUP(2,Tablas!$A$73:$G$75,7,TRUE)), (IF(5-$B$19=3, (VLOOKUP(3,Tablas!$A$73:$G$75,7,TRUE)), (IF(5-$B$19=4, (VLOOKUP(3,Tablas!$A$73:$G$75,7,TRUE)), (VLOOKUP(3,Tablas!$A$73:$G$75,7,TRUE)))))))))))), (IF($B$17=6,(IF(6-$B$19=0, (VLOOKUP(2,Tablas!$A$73:$G$75,7,TRUE)), (IF(6-$B$19=1, (VLOOKUP(2,Tablas!$A$73:$G$75,7,TRUE)), (IF(6-$B$19=2, (VLOOKUP(2,Tablas!$A$73:$G$75,7,TRUE)), (IF(6-$B$19=3, (VLOOKUP(3,Tablas!$A$73:$G$75,7,TRUE)), (IF(6-$B$19=4, (VLOOKUP(3,Tablas!$A$73:$G$75,7,TRUE)), (VLOOKUP(3,Tablas!$A$73:$G$75,7,TRUE)))))))))))), (IF($B$17>6,(IF(7-$B$19=0, (VLOOKUP(3,Tablas!$A$73:$G$75,7,TRUE)), (IF(7-$B$19=1, (VLOOKUP(3,Tablas!$A$73:$G$75,7,TRUE)), (IF(7-$B$19=2, (VLOOKUP(3,Tablas!$A$73:$G$75,7,TRUE)), (IF(7-$B$19=3, (VLOOKUP(3,Tablas!$A$73:$G$75,7,TRUE)), (IF(7-$B$19=4, (VLOOKUP(3,Tablas!$A$73:$G$75,7,TRUE)), (VLOOKUP(3,Tablas!$A$73:$G$75,7,TRUE)))))))))))), (IF($B$17=3,(IF(3-$B$19=0,0, (IF(3-$B$19=1,(VLOOKUP(1,Tablas!$A$73:$G$75,7,TRUE)), (IF(3-$B$19=2, (VLOOKUP(2,Tablas!$A$73:$G$75,7,TRUE)), (VLOOKUP(3,Tablas!$A$73:$G$75,7,TRUE)))))))), (IF($B$17=2,(IF(2-$B$19=0, 0, (IF(2-$B$19=1,(VLOOKUP(1,Tablas!$A$73:$G$75,7,TRUE)), (IF(2-$B$19=2, (VLOOKUP(2,Tablas!$A$73:$G$75,7,TRUE)), 0)))))), (IF($B$17=1,(IF(1-$B$19=0, 0, (IF(1-$B$19=1,(VLOOKUP(1,Tablas!$A$73:$G$75,7,TRUE)),0)))),0)))))))))))))))))))*(1-G26)*(1-G27) -> 0 | H35: =IF($B$15=1, (IF($B$17=0, 0, (IF($B$19>$B$17, (VLOOKUP($B$17,Tablas!$A$73:$H$75,8,TRUE)), (IF($B$17>4,(IF($B$19=0, (VLOOKUP(3,Tablas!$A$73:$H$75,8,TRUE)), (IF($B$19=1, (VLOOKUP(3,Tablas!$A$73:$H$75,8,TRUE)), (IF($B$19=2, (VLOOKUP(3,Tablas!$A$73:$H$75,8,TRUE)), (VLOOKUP(3,Tablas!$A$73:$H$75,8,TRUE)))))))), (IF($B$17=4,(IF(4-$B$19=0,(VLOOKUP(2,Tablas!$A$73:$H$75,8,TRUE)), (IF(4-$B$19=1,(VLOOKUP(2,Tablas!$A$73:$H$75,8,TRUE)), (IF(4-$B$19=2, (VLOOKUP(2,Tablas!$A$73:$H$75,8,TRUE)), (VLOOKUP(3,Tablas!$A$73:$H$75,8,TRUE)))))))), (IF($B$17=3,(IF(3-$B$19=0,(VLOOKUP(1,Tablas!$A$73:$H$75,8,TRUE)), (IF(3-$B$19=1,(VLOOKUP(1,Tablas!$A$73:$H$75,8,TRUE)), (IF(3-$B$19=2, (VLOOKUP(2,Tablas!$A$73:$H$75,8,TRUE)), (VLOOKUP(3,Tablas!$A$73:$H$75,8,TRUE)))))))), (IF($B$17=2,(IF(2-$B$19=0, 0, (IF(2-$B$19=1,(VLOOKUP(1,Tablas!$A$73:$H$75,8,TRUE)), (IF(2-$B$19=2, (VLOOKUP(2,Tablas!$A$73:$H$75,8,TRUE)), 0)))))), (IF($B$17=1,(IF(1-$B$19=0, 0, (IF(1-$B$19=1,(VLOOKUP(1,Tablas!$A$73:$H$75,8,TRUE)),0)))),0)))))))))))))), (IF($B$17=0, 0, (IF($B$19>$B$17, (VLOOKUP($B$17,Tablas!$A$73:$H$75,8,TRUE)), (IF($B$17=4,(IF(4-$B$19=0, 0, (IF(4-$B$19=1, (VLOOKUP(1,Tablas!$A$73:$H$75,8,TRUE)), (IF(4-$B$19=2, (VLOOKUP(2,Tablas!$A$73:$H$75,8,TRUE)), (IF(4-$B$19=3, (VLOOKUP(3,Tablas!$A$73:$H$75,8,TRUE)), (IF(4-$B$19=4, (VLOOKUP(3,Tablas!$A$73:$H$75,8,TRUE)), 0)))))))))), (IF($B$17=5,(IF(5-$B$19=0, (VLOOKUP(1,Tablas!$A$73:$H$75,8,TRUE)), (IF(5-$B$19=1, (VLOOKUP(1,Tablas!$A$73:$H$75,8,TRUE)), (IF(5-$B$19=2, (VLOOKUP(2,Tablas!$A$73:$H$75,8,TRUE)), (IF(5-$B$19=3, (VLOOKUP(3,Tablas!$A$73:$H$75,8,TRUE)), (IF(5-$B$19=4, (VLOOKUP(3,Tablas!$A$73:$H$75,8,TRUE)), (VLOOKUP(3,Tablas!$A$73:$H$75,8,TRUE)))))))))))), (IF($B$17=6,(IF(6-$B$19=0, (VLOOKUP(2,Tablas!$A$73:$H$75,8,TRUE)), (IF(6-$B$19=1, (VLOOKUP(2,Tablas!$A$73:$H$75,8,TRUE)), (IF(6-$B$19=2, (VLOOKUP(2,Tablas!$A$73:$H$75,8,TRUE)), (IF(6-$B$19=3, (VLOOKUP(3,Tablas!$A$73:$H$75,8,TRUE)), (IF(6-$B$19=4, (VLOOKUP(3,Tablas!$A$73:$H$75,8,TRUE)), (VLOOKUP(3,Tablas!$A$73:$H$75,8,TRUE)))))))))))), (IF($B$17>6,(IF(7-$B$19=0, (VLOOKUP(3,Tablas!$A$73:$H$75,8,TRUE)), (IF(7-$B$19=1, (VLOOKUP(3,Tablas!$A$73:$H$75,8,TRUE)), (IF(7-$B$19=2, (VLOOKUP(3,Tablas!$A$73:$H$75,8,TRUE)), (IF(7-$B$19=3, (VLOOKUP(3,Tablas!$A$73:$H$75,8,TRUE)), (IF(7-$B$19=4, (VLOOKUP(3,Tablas!$A$73:$H$75,8,TRUE)), (VLOOKUP(3,Tablas!$A$73:$H$75,8,TRUE)))))))))))), (IF($B$17=3,(IF(3-$B$19=0,0, (IF(3-$B$19=1,(VLOOKUP(1,Tablas!$A$73:$H$75,8,TRUE)), (IF(3-$B$19=2, (VLOOKUP(2,Tablas!$A$73:$H$75,8,TRUE)), (VLOOKUP(3,Tablas!$A$73:$H$75,8,TRUE)))))))), (IF($B$17=2,(IF(2-$B$19=0, 0, (IF(2-$B$19=1,(VLOOKUP(1,Tablas!$A$73:$H$75,8,TRUE)), (IF(2-$B$19=2, (VLOOKUP(2,Tablas!$A$73:$H$75,8,TRUE)), 0)))))), (IF($B$17=1,(IF(1-$B$19=0, 0, (IF(1-$B$19=1,(VLOOKUP(1,Tablas!$A$73:$H$75,8,TRUE)),0)))),0)))))))))))))))))))*(1-H26)*(1-H27) -> 0
A36: Total de Prima neta | C36: =SUM(C33:C35) -> 21423.07275 | D36: =SUM(D33:D35) -> 15181.46325 | E36: 12153.7335 | F36: 10538.88225 | G36: 8031.44175 | H36: =SUM(H33:H35) -> 6425.898
A37: Ajuste por la variante con coaseguro fuera del país de residencia | C37: =IF('INGRESO DE DATOS'!$R$3,C36*-15%,0) -> 0 | D37: =IF('INGRESO DE DATOS'!$R$3,D36*-15%,0) -> 0 | E37: =IF('INGRESO DE DATOS'!$R$3,E36*-15%,0) -> 0 | F37: =IF('INGRESO DE DATOS'!$R$3,F36*-15%,0) -> 0 | G37: =IF('INGRESO DE DATOS'!$R$3,G36*-15%,0) -> 0 | H37: =IF('INGRESO DE DATOS'!$R$3,H36*-15%,0) -> 0
A38: Tarifa administrativa annual | C38: 75 | D38: 75 | E38: 75 | F38: 75 | G38: 75 | H38: 75
A39: VAT (5%) : | C39: =(C36+C37+C38)*5% -> 1074.903638 | D39: =(D36+D37+D38)*5% -> 762.8231625 | E39: 611.436675 | F39: 530.6941125 | G39: 405.3220875 | H39: 325.0449
A40: ITBMS (7%) | C40: 0 | D40: 0 | E40: 0 | F40: 0 | G40: 0 | H40: 0
A41: TOTAL ANUAL | C41: =SUM(C36:C40) -> 22572.97639 | D41: =SUM(D36:D40) -> 16019.28641 | E41: 12840.17018 | F41: 11144.57636 | G41: 8511.763837 | H41: 6825.9429
A42: Ahorros en tarifas de prima para Dependientes | C42: =IF($B$15=1,IF($B$17=0,0,IF($B$19=0,0,IF($B$19=1,(VLOOKUP(1,Tablas!$A$73:$G$75,3,TRUE)),(VLOOKUP(2,Tablas!$A$73:$G$75,3,TRUE))))), IF($B$17=0,0,IF($B$19=0,0,IF($B$19=1,(VLOOKUP(1,Tablas!$A$73:$G$75,3,TRUE)),IF($B$19=2,(VLOOKUP(2,Tablas!$A$73:$G$75,3,TRUE)), (VLOOKUP(3,Tablas!$A$73:$G$75,3,TRUE))))))) -> 0 | D42: =IF($B$15=1,IF($B$17=0,0,IF($B$19=0,0,IF($B$19=1,(VLOOKUP(1,Tablas!$A$73:$G$75,4,TRUE)),(VLOOKUP(2,Tablas!$A$73:$G$75,4,TRUE))))), IF($B$17=0,0,IF($B$19=0,0,IF($B$19=1,(VLOOKUP(1,Tablas!$A$73:$G$75,4,TRUE)),IF($B$19=2,(VLOOKUP(2,Tablas!$A$73:$G$75,4,TRUE)), (VLOOKUP(3,Tablas!$A$73:$G$75,4,TRUE))))))) -> 0 | E42: =IF($B$15=1,IF($B$17=0,0,IF($B$19=0,0,IF($B$19=1,(VLOOKUP(1,Tablas!$A$73:$G$75,5,TRUE)),(VLOOKUP(2,Tablas!$A$73:$G$75,5,TRUE))))), IF($B$17=0,0,IF($B$19=0,0,IF($B$19=1,(VLOOKUP(1,Tablas!$A$73:$G$75,5,TRUE)),IF($B$19=2,(VLOOKUP(2,Tablas!$A$73:$G$75,5,TRUE)), (VLOOKUP(3,Tablas!$A$73:$G$75,5,TRUE))))))) -> 0 | F42: =IF($B$15=1,IF($B$17=0,0,IF($B$19=0,0,IF($B$19=1,(VLOOKUP(1,Tablas!$A$73:$G$75,6,TRUE)),(VLOOKUP(2,Tablas!$A$73:$G$75,6,TRUE))))), IF($B$17=0,0,IF($B$19=0,0,IF($B$19=1,(VLOOKUP(1,Tablas!$A$73:$G$75,6,TRUE)),IF($B$19=2,(VLOOKUP(2,Tablas!$A$73:$G$75,6,TRUE)), (VLOOKUP(3,Tablas!$A$73:$G$75,6,TRUE))))))) -> 0 | G42: =IF($B$15=1,IF($B$17=0,0,IF($B$19=0,0,IF($B$19=1,(VLOOKUP(1,Tablas!$A$73:$G$75,7,TRUE)),(VLOOKUP(2,Tablas!$A$73:$G$75,7,TRUE))))), IF($B$17=0,0,IF($B$19=0,0,IF($B$19=1,(VLOOKUP(1,Tablas!$A$73:$G$75,7,TRUE)),IF($B$19=2,(VLOOKUP(2,Tablas!$A$73:$G$75,7,TRUE)), (VLOOKUP(3,Tablas!$A$73:$G$75,7,TRUE))))))) -> 0 | H42: =IF($B$15=1,IF($B$17=0,0,IF($B$19=0,0,IF($B$19=1,(VLOOKUP(1,Tablas!$A$73:$H$75,8,TRUE)),(VLOOKUP(2,Tablas!$A$73:$H$75,8,TRUE))))), IF($B$17=0,0,IF($B$19=0,0,IF($B$19=1,(VLOOKUP(1,Tablas!$A$73:$H$75,8,TRUE)),IF($B$19=2,(VLOOKUP(2,Tablas!$A$73:$H$75,8,TRUE)), (VLOOKUP(3,Tablas!$A$73:$H$75,8,TRUE))))))) -> 0
A44: TARIFAS SEMIANUALES
A45: Prima para Asegurado Titular | C45: =C33*Tablas!$K$4 -> 11354.22856 | D45: =D33*Tablas!$K$4 -> 8046.175522 | E45: =E33*Tablas!$K$4 -> 6441.478755 | F45: =F33*Tablas!$K$4 -> 5585.607592 | G45: =G33*Tablas!$K$4 -> 4256.664127 | H45: =H33*Tablas!$K$4 -> 3405.72594
A46: Prima para conyuge | C46: =C34*Tablas!$K$4 -> 0 | D46: =D34*Tablas!$K$4 -> 0 | E46: =E34*Tablas!$K$4 -> 0 | F46: =F34*Tablas!$K$4 -> 0 | G46: =G34*Tablas!$K$4 -> 0 | H46: =H34*Tablas!$K$4 -> 0
A47: Prima para hijo (s) | C47: =C35*Tablas!$K$4 -> 0 | D47: =D35*Tablas!$K$4 -> 0 | E47: =E35*Tablas!$K$4 -> 0 | F47: =F35*Tablas!$K$4 -> 0 | G47: =G35*Tablas!$K$4 -> 0 | H47: =H35*Tablas!$K$4 -> 0
A48: Total de Prima neta | C48: =SUM(C45:C47) -> 11354.22856 | D48: 8046.175522 | E48: 6441.478755 | F48: 5585.607592 | G48: 4256.664127 | H48: 3405.72594
A49: Ajuste por la variante con coaseguro fuera del país de residencia | C49: =IF('INGRESO DE DATOS'!$R$3,C48*-15%,0) -> 0 | D49: =IF('INGRESO DE DATOS'!$R$3,D48*-15%,0) -> 0 | E49: =IF('INGRESO DE DATOS'!$R$3,E48*-15%,0) -> 0 | F49: =IF('INGRESO DE DATOS'!$R$3,F48*-15%,0) -> 0 | G49: =IF('INGRESO DE DATOS'!$R$3,G48*-15%,0) -> 0 | H49: =IF('INGRESO DE DATOS'!$R$3,H48*-15%,0) -> 0
A50: Tarifa administrativa anual | C50: 75 | D50: 75 | E50: 75 | F50: 75 | G50: 75 | H50: 75
A51: VAT (5%) : | C51: =(C48+C49+C50)*5% -> 571.4614279 | D51: 406.0587761 | E51: 325.8239378 | F51: 283.0303796 | G51: 216.5832064 | H51: 174.036297
A52: ITBMS (7%) | C52: 0 | D52: 0 | E52: 0 | F52: 0 | G52: 0 | H52: 0
A53: TOTAL de primera cuota | C53: =SUM(C48:C52) -> 12000.68999 | D53: 8527.234299 | E53: 6842.302693 | F53: 5943.637972 | G53: 4548.247334 | H53: 3654.762237
A54: Costo de segunda cuota | C54: =(C48+C49)*1.05 -> 11921.93999 | D54: 8448.484299 | E54: 6763.552693 | F54: 5864.887972 | G54: 4469.497334 | H54: 3576.012237
A55: TOTAL ANUAL | C55: =C53+C54 -> 23922.62997 | D55: 16975.7186 | E55: 13605.85539 | F55: 11808.52594 | G55: 9017.744668 | H55: 7230.774474
A56: Ahorros en tarifas de prima para Dependientes | C56: =IF($B$15=1,IF($B$17=0,0,IF($B$19=0,0,IF($B$19=1,(VLOOKUP(1,Tablas!$A$525:$G$527,3,TRUE)),(VLOOKUP(2,Tablas!$A$525:$G$527,3,TRUE))))), IF($B$17=0,0,IF($B$19=0,0,IF($B$19=1,(VLOOKUP(1,Tablas!$A$525:$G$527,3,TRUE)),IF($B$19=2,(VLOOKUP(2,Tablas!$A$525:$G$527,3,TRUE)), (VLOOKUP(3,Tablas!$A$525:$G$527,3,TRUE))))))) -> 0 | D56: =IF($B$15=1,IF($B$17=0,0,IF($B$19=0,0,IF($B$19=1,(VLOOKUP(1,Tablas!$A$525:$G$527,4,TRUE)),(VLOOKUP(2,Tablas!$A$525:$G$527,4,TRUE))))), IF($B$17=0,0,IF($B$19=0,0,IF($B$19=1,(VLOOKUP(1,Tablas!$A$525:$G$527,4,TRUE)),IF($B$19=2,(VLOOKUP(2,Tablas!$A$525:$G$527,4,TRUE)), (VLOOKUP(3,Tablas!$A$525:$G$527,4,TRUE))))))) -> 0 | E56: =IF($B$15=1,IF($B$17=0,0,IF($B$19=0,0,IF($B$19=1,(VLOOKUP(1,Tablas!$A$525:$G$527,5,TRUE)),(VLOOKUP(2,Tablas!$A$525:$G$527,5,TRUE))))), IF($B$17=0,0,IF($B$19=0,0,IF($B$19=1,(VLOOKUP(1,Tablas!$A$525:$G$527,5,TRUE)),IF($B$19=2,(VLOOKUP(2,Tablas!$A$525:$G$527,5,TRUE)), (VLOOKUP(3,Tablas!$A$525:$G$527,5,TRUE))))))) -> 0 | F56: =IF($B$15=1,IF($B$17=0,0,IF($B$19=0,0,IF($B$19=1,(VLOOKUP(1,Tablas!$A$525:$G$527,7,TRUE)),(VLOOKUP(2,Tablas!$A$525:$G$527,7,TRUE))))), IF($B$17=0,0,IF($B$19=0,0,IF($B$19=1,(VLOOKUP(1,Tablas!$A$525:$G$527,7,TRUE)),IF($B$19=2,(VLOOKUP(2,Tablas!$A$525:$G$527,7,TRUE)), (VLOOKUP(3,Tablas!$A$525:$G$527,7,TRUE))))))) -> 0 | G56: =IF($B$15=1,IF($B$17=0,0,IF($B$19=0,0,IF($B$19=1,(VLOOKUP(1,Tablas!$A$525:$G$527,7,TRUE)),(VLOOKUP(2,Tablas!$A$525:$G$527,7,TRUE))))), IF($B$17=0,0,IF($B$19=0,0,IF($B$19=1,(VLOOKUP(1,Tablas!$A$525:$G$527,7,TRUE)),IF($B$19=2,(VLOOKUP(2,Tablas!$A$525:$G$527,7,TRUE)), (VLOOKUP(3,Tablas!$A$525:$G$527,7,TRUE))))))) -> 0 | H56: =IF($B$15=1,IF($B$17=0,0,IF($B$19=0,0,IF($B$19=1,(VLOOKUP(1,Tablas!$A$525:$H$527,8,TRUE)),(VLOOKUP(2,Tablas!$A$525:$H$527,8,TRUE))))), IF($B$17=0,0,IF($B$19=0,0,IF($B$19=1,(VLOOKUP(1,Tablas!$A$525:$H$527,8,TRUE)),IF($B$19=2,(VLOOKUP(2,Tablas!$A$525:$H$527,8,TRUE)), (VLOOKUP(3,Tablas!$A$525:$H$527,8,TRUE))))))) -> 0
A58: TARIFAS TRIMESTRALES
A59: Prima para Asegurado Titular | C59: =C33*Tablas!$K$3 -> 5891.345006 | D59: =D33*Tablas!$K$3 -> 4174.902394 | E59: =E33*Tablas!$K$3 -> 3342.276713 | F59: =F33*Tablas!$K$3 -> 2898.192619 | G59: =G33*Tablas!$K$3 -> 2208.646481 | H59: =H33*Tablas!$K$3 -> 1767.12195
A60: Prima para conyuge | C60: =C34*Tablas!$K$3 -> 0 | D60: =D34*Tablas!$K$3 -> 0 | E60: =E34*Tablas!$K$3 -> 0 | F60: =F34*Tablas!$K$3 -> 0 | G60: =G34*Tablas!$K$3 -> 0 | H60: =H34*Tablas!$K$3 -> 0
A61: Prima para hijo (s) | C61: =C35*Tablas!$K$3 -> 0 | D61: =D35*Tablas!$K$3 -> 0 | E61: =E35*Tablas!$K$3 -> 0 | F61: =F35*Tablas!$K$3 -> 0 | G61: =G35*Tablas!$K$3 -> 0 | H61: =H35*Tablas!$K$3 -> 0
A62: Total de Prima neta | C62: =SUM(C59:C61) -> 5891.345006 | D62: 4174.902394 | E62: 3342.276713 | F62: 2898.192619 | G62: 2208.646481 | H62: 1767.12195
A63: Ajuste por la variante con coaseguro fuera del país de residencia | C63: =IF('INGRESO DE DATOS'!$R$3,C62*-15%,0) -> 0 | D63: =IF('INGRESO DE DATOS'!$R$3,D62*-15%,0) -> 0 | E63: =IF('INGRESO DE DATOS'!$R$3,E62*-15%,0) -> 0 | F63: =IF('INGRESO DE DATOS'!$R$3,F62*-15%,0) -> 0 | G63: =IF('INGRESO DE DATOS'!$R$3,G62*-15%,0) -> 0 | H63: =IF('INGRESO DE DATOS'!$R$3,H62*-15%,0) -> 0
A64: Tarifa administrativa anual | C64: 75 | D64: 75 | E64: 75 | F64: 75 | G64: 75 | H64: 75
A65: VAT (5%) : | C65: =(C62+C63+C64)*5% -> 298.3172503 | D65: 212.4951197 | E65: 170.8638356 | F65: 148.6596309 | G65: 114.1823241 | H65: 92.1060975
A66: ITBMS (7%) | C66: 0 | D66: 0 | E66: 0 | F66: 0 | G66: 0 | H66: 0
A67: TOTAL de primera cuota | C67: =SUM(C62:C66) -> 6264.662257 | D67: 4462.397513 | E67: 3588.140548 | F67: 3121.85225 | G67: 2397.828805 | H67: 1934.228048
A68: Costo de tarifa trimestral 2 a 4 | C68: =(C62+C63)*1.05 -> 6185.912257 | D68: 4383.647513 | E68: 3509.390548 | F68: 3043.10225 | G68: 2319.078805 | H68: 1855.478048
A69: TOTAL ANUAL | C69: =C67+(C68*3) -> 24822.39903 | D69: 17613.34005 | E69: 14116.31219 | F69: 12251.159 | G69: 9355.065221 | H69: 7500.66219
A70: Ahorros en tarifas de prima para Dependientes | C70: =IF($B$15=1,IF($B$17=0,0,IF($B$19=0,0,IF($B$19=1,(VLOOKUP(1,Tablas!$A$752:$G$754,3,TRUE)),(VLOOKUP(2,Tablas!$A$752:$G$754,3,TRUE))))), IF($B$17=0,0,IF($B$19=0,0,IF($B$19=1,(VLOOKUP(1,Tablas!$A$752:$G$754,3,TRUE)),IF($B$19=2,(VLOOKUP(2,Tablas!$A$752:$G$754,3,TRUE)), (VLOOKUP(3,Tablas!$A$752:$G$754,3,TRUE))))))) -> 0 | D70: =IF($B$15=1,IF($B$17=0,0,IF($B$19=0,0,IF($B$19=1,(VLOOKUP(1,Tablas!$A$752:$G$754,4,TRUE)),(VLOOKUP(2,Tablas!$A$752:$G$754,4,TRUE))))), IF($B$17=0,0,IF($B$19=0,0,IF($B$19=1,(VLOOKUP(1,Tablas!$A$752:$G$754,4,TRUE)),IF($B$19=2,(VLOOKUP(2,Tablas!$A$752:$G$754,4,TRUE)), (VLOOKUP(3,Tablas!$A$752:$G$754,4,TRUE))))))) -> 0 | E70: =IF($B$15=1,IF($B$17=0,0,IF($B$19=0,0,IF($B$19=1,(VLOOKUP(1,Tablas!$A$752:$G$754,5,TRUE)),(VLOOKUP(2,Tablas!$A$752:$G$754,5,TRUE))))), IF($B$17=0,0,IF($B$19=0,0,IF($B$19=1,(VLOOKUP(1,Tablas!$A$752:$G$754,5,TRUE)),IF($B$19=2,(VLOOKUP(2,Tablas!$A$752:$G$754,5,TRUE)), (VLOOKUP(3,Tablas!$A$752:$G$754,5,TRUE))))))) -> 0 | F70: =IF($B$15=1,IF($B$17=0,0,IF($B$19=0,0,IF($B$19=1,(VLOOKUP(1,Tablas!$A$752:$G$754,6,TRUE)),(VLOOKUP(2,Tablas!$A$752:$G$754,6,TRUE))))), IF($B$17=0,0,IF($B$19=0,0,IF($B$19=1,(VLOOKUP(1,Tablas!$A$752:$G$754,6,TRUE)),IF($B$19=2,(VLOOKUP(2,Tablas!$A$752:$G$754,6,TRUE)), (VLOOKUP(3,Tablas!$A$752:$G$754,6,TRUE))))))) -> 0 | G70: =IF($B$15=1,IF($B$17=0,0,IF($B$19=0,0,IF($B$19=1,(VLOOKUP(1,Tablas!$A$752:$G$754,7,TRUE)),(VLOOKUP(2,Tablas!$A$752:$G$754,7,TRUE))))), IF($B$17=0,0,IF($B$19=0,0,IF($B$19=1,(VLOOKUP(1,Tablas!$A$752:$G$754,7,TRUE)),IF($B$19=2,(VLOOKUP(2,Tablas!$A$752:$G$754,7,TRUE)), (VLOOKUP(3,Tablas!$A$752:$G$754,7,TRUE))))))) -> 0 | H70: =IF($B$15=1,IF($B$17=0,0,IF($B$19=0,0,IF($B$19=1,(VLOOKUP(1,Tablas!$A$752:$H$754,8,TRUE)),(VLOOKUP(2,Tablas!$A$752:$H$754,8,TRUE))))), IF($B$17=0,0,IF($B$19=0,0,IF($B$19=1,(VLOOKUP(1,Tablas!$A$752:$H$754,8,TRUE)),IF($B$19=2,(VLOOKUP(2,Tablas!$A$752:$H$754,8,TRUE)), (VLOOKUP(3,Tablas!$A$752:$H$754,8,TRUE))))))) -> 0
A72: TARIFAS MENSUALES
A73: Prima para Asegurado Titular | C73: =C33*Tablas!$K$2 -> 1999.48679 | D73: =D33*Tablas!$K$2 -> 1416.93657 | E73: =E33*Tablas!$K$2 -> 1134.34846 | F73: =F33*Tablas!$K$2 -> 983.62901 | G73: =G33*Tablas!$K$2 -> 749.60123 | H73: =H33*Tablas!$K$2 -> 599.75048
A74: Prima para conyuge | C74: =C34*Tablas!$K$2 -> 0 | D74: =D34*Tablas!$K$2 -> 0 | E74: =E34*Tablas!$K$2 -> 0 | F74: =F34*Tablas!$K$2 -> 0 | G74: =G34*Tablas!$K$2 -> 0 | H74: =H34*Tablas!$K$2 -> 0
A75: Prima para hijo (s) | C75: =C35*Tablas!$K$2 -> 0 | D75: =D35*Tablas!$K$2 -> 0 | E75: =E35*Tablas!$K$2 -> 0 | F75: =F35*Tablas!$K$2 -> 0 | G75: =G35*Tablas!$K$2 -> 0 | H75: =H35*Tablas!$K$2 -> 0
A76: Total de Prima neta | C76: =SUM(C73:C75) -> 1999.48679 | D76: 1416.93657 | E76: 1134.34846 | F76: 983.62901 | G76: 749.60123 | H76: 599.75048
A77: Ajuste por la variante con coaseguro fuera del país de residencia | C77: =IF('INGRESO DE DATOS'!$R$3,C76*-15%,0) -> 0 | D77: =IF('INGRESO DE DATOS'!$R$3,D76*-15%,0) -> 0 | E77: =IF('INGRESO DE DATOS'!$R$3,E76*-15%,0) -> 0 | F77: =IF('INGRESO DE DATOS'!$R$3,F76*-15%,0) -> 0 | G77: =IF('INGRESO DE DATOS'!$R$3,G76*-15%,0) -> 0 | H77: =IF('INGRESO DE DATOS'!$R$3,H76*-15%,0) -> 0
A78: Tarifa administrativa anual | C78: 75 | D78: 75 | E78: 75 | F78: 75 | G78: 75 | H78: 75
A79: VAT (5%) : | C79: =(C76+C77+C78)*5% -> 103.7243395 | D79: 74.5968285 | E79: 60.467423 | F79: 52.9314505 | G79: 41.2300615 | H79: 33.737524
A80: ITBMS (7%) | C80: 0 | D80: 0 | E80: 0 | F80: 0 | G80: 0 | H80: 0
A81: TOTAL de primera cuota | C81: =SUM(C76:C80) -> 2178.211129 | D81: 1566.533398 | E81: 1269.815883 | F81: 1111.56046 | G81: 865.8312915 | H81: 708.488004
A82: Costo de Tarifa mensual de 2 a 12 | C82: =(C76+C77)*1.05 -> 2099.461129 | D82: 1487.783398 | E82: 1191.065883 | F82: 1032.81046 | G82: 787.0812915 | H82: 629.738004
A83: TOTAL ANUAL | C83: =C81+(C82*11) -> 25272.28355 | D83: 17932.15078 | E83: 14371.5406 | F83: 12472.47553 | G83: 9523.725498 | H83: 7635.606048
A84: Ahorros en tarifas de prima para Dependientes | C84: =IF($B$15=1,IF($B$17=0,0,IF($B$19=0,0,IF($B$19=1,(VLOOKUP(1,Tablas!$A$147:$G$149,3,TRUE)),(VLOOKUP(2,Tablas!$A$147:$G$149,3,TRUE))))), IF($B$17=0,0,IF($B$19=0,0,IF($B$19=1,(VLOOKUP(1,Tablas!$A$147:$G$149,3,TRUE)),IF($B$19=2,(VLOOKUP(2,Tablas!$A$147:$G$149,3,TRUE)), (VLOOKUP(3,Tablas!$A$147:$G$149,3,TRUE))))))) -> 0 | D84: =IF($B$15=1,IF($B$17=0,0,IF($B$19=0,0,IF($B$19=1,(VLOOKUP(1,Tablas!$A$147:$G$149,4,TRUE)),(VLOOKUP(2,Tablas!$A$147:$G$149,4,TRUE))))), IF($B$17=0,0,IF($B$19=0,0,IF($B$19=1,(VLOOKUP(1,Tablas!$A$147:$G$149,4,TRUE)),IF($B$19=2,(VLOOKUP(2,Tablas!$A$147:$G$149,4,TRUE)), (VLOOKUP(3,Tablas!$A$147:$G$149,4,TRUE))))))) -> 0 | E84: =IF($B$15=1,IF($B$17=0,0,IF($B$19=0,0,IF($B$19=1,(VLOOKUP(1,Tablas!$A$147:$G$149,5,TRUE)),(VLOOKUP(2,Tablas!$A$147:$G$149,5,TRUE))))), IF($B$17=0,0,IF($B$19=0,0,IF($B$19=1,(VLOOKUP(1,Tablas!$A$147:$G$149,5,TRUE)),IF($B$19=2,(VLOOKUP(2,Tablas!$A$147:$G$149,5,TRUE)), (VLOOKUP(3,Tablas!$A$147:$G$149,5,TRUE))))))) -> 0 | F84: =IF($B$15=1,IF($B$17=0,0,IF($B$19=0,0,IF($B$19=1,(VLOOKUP(1,Tablas!$A$147:$G$149,6,TRUE)),(VLOOKUP(2,Tablas!$A$147:$G$149,6,TRUE))))), IF($B$17=0,0,IF($B$19=0,0,IF($B$19=1,(VLOOKUP(1,Tablas!$A$147:$G$149,6,TRUE)),IF($B$19=2,(VLOOKUP(2,Tablas!$A$147:$G$149,6,TRUE)), (VLOOKUP(3,Tablas!$A$147:$G$149,6,TRUE))))))) -> 0 | G84: =IF($B$15=1,IF($B$17=0,0,IF($B$19=0,0,IF($B$19=1,(VLOOKUP(1,Tablas!$A$147:$G$149,7,TRUE)),(VLOOKUP(2,Tablas!$A$147:$G$149,7,TRUE))))), IF($B$17=0,0,IF($B$19=0,0,IF($B$19=1,(VLOOKUP(1,Tablas!$A$147:$G$149,7,TRUE)),IF($B$19=2,(VLOOKUP(2,Tablas!$A$147:$G$149,7,TRUE)), (VLOOKUP(3,Tablas!$A$147:$G$149,7,TRUE))))))) -> 0 | H84: =IF($B$15=1,IF($B$17=0,0,IF($B$19=0,0,IF($B$19=1,(VLOOKUP(1,Tablas!$A$147:$H$149,8,TRUE)),(VLOOKUP(2,Tablas!$A$147:$H$149,8,TRUE))))), IF($B$17=0,0,IF($B$19=0,0,IF($B$19=1,(VLOOKUP(1,Tablas!$A$147:$H$149,8,TRUE)),IF($B$19=2,(VLOOKUP(2,Tablas!$A$147:$H$149,8,TRUE)), (VLOOKUP(3,Tablas!$A$147:$H$149,8,TRUE))))))) -> 0
A86: Este presupuesto solamente tiene carácter informativo y en ningún momento expresa compromiso legal para suministrarle cobertura de seguro. La emisión de una póliza de seguro Bupa está sujeta a todas las evaluaciones de riesgo por parte de Bupa y a la recepción de todos los pagos de prima requeridos.

Sheet Bupa Global Premier
J1: RESUMEN DE BENEFICIOS | Y1: RESUMEN DE BENEFICIOS | AN1: RESUMEN DE BENEFICIOS
A5: Cotización de Seguro Médico Internacional Bupa Global Premier Health Plan Tarifas en US$ | Validas: 1 de noviembre de 2025
A13: Nombre del Asegurado Titular | B13: =+'INGRESO DE DATOS'!$C$37 -> John Doe
A15: Número de adultos en la póliza | B15: =+'INGRESO DE DATOS'!$C$39 -> 1
A17: Número de Dependientes en la póliza | B17: =+'INGRESO DE DATOS'!$C$41 -> 0 | C17: =IF('INGRESO DE DATOS'!$R$2=TRUE, "Cotización para dependiente de 24 años","") -> 
A19: Edad del Asegurado Titular | B19: =+'INGRESO DE DATOS'!$C$43 -> 61 | D19: Edad del/la conyuge | F19: =+'INGRESO DE DATOS'!$C$45 -> 0
A21: Fecha de la cotización | B21: =NOW() -> 2025-12-26T14:05:27.350
A23: =IF('INGRESO DE DATOS'!R3=TRUE,"Variante con coaseguro fuera del país de residencia: SI","Variante con coaseguro fuera del país de residencia: NO") -> Variante con coaseguro fuera del país de residencia: NO
B24: Ajuste | C24: ='INGRESO DE DATOS'!T71 -> 0.15 | D24: ='INGRESO DE DATOS'!T72 -> 0.15 | E24: ='INGRESO DE DATOS'!T73 -> 0.15 | F24: ='INGRESO DE DATOS'!T74 -> 0.15 | G24: ='INGRESO DE DATOS'!T75 -> 0.15
B25: Descuento | C25: ='INGRESO DE DATOS'!U71 -> 0.15 | D25: ='INGRESO DE DATOS'!U72 -> 0.15 | E25: ='INGRESO DE DATOS'!U73 -> 0.15 | F25: ='INGRESO DE DATOS'!U74 -> 0.15 | G25: ='INGRESO DE DATOS'!U75 -> 0.15
A26: Deducibles | C26: PLAN 1 | D26: PLAN 2 | E26: PLAN 3 | F26: PLAN 4 | G26: PLAN 5
A27: En el país de residencia | C27: 2000 | D27: 3500 | E27: 5000 | F27: 10000 | G27: 20000
A28: Fuera del país de residencia | C28: 2000 | D28: 3500 | E28: 5000 | F28: 10000 | G28: 20000
A30: TARIFAS ANUALES
A31: Prima para Asegurado Titular | C31: =VLOOKUP($B$19,Tablas!$A$156:$G$222,3,TRUE)*(1-C24)*(1-C25) -> 10439.05931 | D31: =VLOOKUP($B$19,Tablas!$A$156:$G$222,4,TRUE)*(1-D24)*(1-D25) -> 8377.354988 | E31: =VLOOKUP($B$19,Tablas!$A$156:$G$222,5,TRUE)*(1-E24)*(1-E25) -> 7641.597112 | F31: =VLOOKUP($B$19,Tablas!$A$156:$G$222,6,TRUE)*(1-F24)*(1-F25) -> 5585.43075 | G31: =VLOOKUP($B$19,Tablas!$A$156:$H$222,7,TRUE)*(1-G24)*(1-G25) -> 4468.3446
A32: Prima para conyuge | C32: =IF($B$15=1,0,(VLOOKUP($F$19,Tablas!$A$156:$G$222,3,TRUE)))*(1-C24)*(1-C25) -> 0 | D32: =IF($B$15=1,0,(VLOOKUP($F$19,Tablas!$A$156:$G$222,4,TRUE)))*(1-D24)*(1-D25) -> 0 | E32: =IF($B$15=1,0,(VLOOKUP($F$19,Tablas!$A$156:$G$222,5,TRUE)))*(1-E24)*(1-E25) -> 0 | F32: =IF($B$15=1,0,(VLOOKUP($F$19,Tablas!$A$156:$G$222,6,TRUE)))*(1-F24)*(1-F25) -> 0 | G32: =IF($B$15=1,0,(VLOOKUP($F$19,Tablas!$A$156:$H$222,7,TRUE)))*(1-G24)*(1-G25) -> 0
A33: Prima para hijo (s) | C33: =IF($B$17=0,0,(VLOOKUP($B$17,Tablas!$A$223:$G$225,3,TRUE)))*(1-C24)*(1-C25) -> 0 | D33: =IF($B$17=0,0,(VLOOKUP($B$17,Tablas!$A$223:$G$225,4,TRUE)))*(1-D24)*(1-D25) -> 0 | E33: =IF($B$17=0,0,(VLOOKUP($B$17,Tablas!$A$223:$G$225,5,TRUE)))*(1-E24)*(1-E25) -> 0 | F33: =IF($B$17=0,0,(VLOOKUP($B$17,Tablas!$A$223:$G$225,6,TRUE)))*(1-F24)*(1-F25) -> 0 | G33: =IF($B$17=0,0,(VLOOKUP($B$17,Tablas!$A$223:$H$225,7,TRUE)))*(1-G24)*(1-G25) -> 0
A34: Total de Prima neta | C34: =SUM(C31:C33) -> 10439.05931 | D34: =SUM(D31:D33) -> 8377.354988 | E34: =SUM(E31:E33) -> 7641.597112 | F34: =SUM(F31:F33) -> 5585.43075 | G34: =SUM(G31:G33) -> 4468.3446
A35: Ajuste por la variante con coaseguro fuera del país de residencia | C35: =IF('INGRESO DE DATOS'!$R$3,C34*-15%,0) -> 0 | D35: =IF('INGRESO DE DATOS'!$R$3,D34*-15%,0) -> 0 | E35: =IF('INGRESO DE DATOS'!$R$3,E34*-15%,0) -> 0 | F35: =IF('INGRESO DE DATOS'!$R$3,F34*-15%,0) -> 0 | G35: =IF('INGRESO DE DATOS'!$R$3,G34*-15%,0) -> 0
A36: Tarifa administrativa anual | C36: 75 | D36: 75 | E36: 75 | F36: 75 | G36: 75
A37: VAT (5%) : | C37: =(C34+C35+C36)*5% -> 525.7029656 | D37: =(D34+D35+D36)*5% -> 422.6177494 | E37: =(E34+E35+E36)*5% -> 385.8298556 | F37: =(F34+F35+F36)*5% -> 283.0215375 | G37: =(G34+G35+G36)*5% -> 227.16723
A38: ITBMS (7%) | C38: 0 | D38: 0 | E38: 0 | F38: 0 | G38: 0
A39: TOTAL ANUAL | C39: =SUM(C34:C38) -> 11039.76228 | D39: =SUM(D34:D38) -> 8874.972737 | E39: =SUM(E34:E38) -> 8102.426968 | F39: =SUM(F34:F38) -> 5943.452287 | G39: =SUM(G34:G38) -> 4770.51183
A41: TARIFAS SEMESTRALES
A42: Prima para Asegurado Titular | C42: =C31*Tablas!$K$4 -> 5532.701436 | D42: =D31*Tablas!$K$4 -> 4439.998143 | E42: =E31*Tablas!$K$4 -> 4050.04647 | F42: =F31*Tablas!$K$4 -> 2960.278298 | G42: =G31*Tablas!$K$4 -> 2368.222638
A43: Prima para conyuge | C43: =C32*Tablas!$K$4 -> 0 | D43: =D32*Tablas!$K$4 -> 0 | E43: =E32*Tablas!$K$4 -> 0 | F43: =F32*Tablas!$K$4 -> 0 | G43: =G32*Tablas!$K$4 -> 0
A44: Prima para hijo (s) | C44: =C33*Tablas!$K$4 -> 0 | D44: =D33*Tablas!$K$4 -> 0 | E44: =E33*Tablas!$K$4 -> 0 | F44: =F33*Tablas!$K$4 -> 0 | G44: =G33*Tablas!$K$4 -> 0
A45: Total de Prima neta | C45: =SUM(C42:C44) -> 5532.701436 | D45: =SUM(D42:D44) -> 4439.998143 | E45: =SUM(E42:E44) -> 4050.04647 | F45: =SUM(F42:F44) -> 2960.278298 | G45: =SUM(G42:G44) -> 2368.222638
A46: Ajuste por la variante con coaseguro fuera del país de residencia | C46: =IF('INGRESO DE DATOS'!$R$3,C45*-15%,0) -> 0 | D46: =IF('INGRESO DE DATOS'!$R$3,D45*-15%,0) -> 0 | E46: =IF('INGRESO DE DATOS'!$R$3,E45*-15%,0) -> 0 | F46: =IF('INGRESO DE DATOS'!$R$3,F45*-15%,0) -> 0 | G46: =IF('INGRESO DE DATOS'!$R$3,G45*-15%,0) -> 0
A47: Tarifa administrativa anual | C47: 75 | D47: 75 | E47: 75 | F47: 75 | G47: 75
A48: VAT (5%) : | C48: =(C45+C46+C47)*5% -> 280.3850718 | D48: =(D45+D46+D47)*5% -> 225.7499072 | E48: =(E45+E46+E47)*5% -> 206.2523235 | F48: =(F45+F46+F47)*5% -> 151.7639149 | G48: =(G45+G46+G47)*5% -> 122.1611319
A49: ITBMS (7%) | C49: 0 | D49: 0 | E49: 0 | F49: 0 | G49: 0
A50: TOTAL de primera cuota | C50: =SUM(C45:C49) -> 5888.086507 | D50: =SUM(D45:D49) -> 4740.748051 | E50: =SUM(E45:E49) -> 4331.298793 | F50: =SUM(F45:F49) -> 3187.042212 | G50: =SUM(G45:G49) -> 2565.38377
A51: Costo de segunda cuota | C51: =(C45+C46)*1.05 -> 5809.336507 | D51: =(D45+D46)*1.05 -> 4661.998051 | E51: =(E45+E46)*1.05 -> 4252.548793 | F51: =(F45+F46)*1.05 -> 3108.292212 | G51: =(G45+G46)*1.05 -> 2486.63377
A52: TOTAL ANUAL | C52: =C50+C51 -> 11697.42301 | D52: =D50+D51 -> 9402.746101 | E52: =E50+E51 -> 8583.847586 | F52: =F50+F51 -> 6295.334425 | G52: =G50+G51 -> 5052.01754
A54: TARIFAS TRIMESTRALES
A55: Prima para Asegurado Titular | C55: =C31*Tablas!$K$3 -> 2870.741311 | D55: =D31*Tablas!$K$3 -> 2303.772622 | E55: =E31*Tablas!$K$3 -> 2101.439206 | F55: =F31*Tablas!$K$3 -> 1535.993456 | G55: =G31*Tablas!$K$3 -> 1228.794765
A56: Prima para conyuge | C56: =C32*Tablas!$K$3 -> 0 | D56: =D32*Tablas!$K$3 -> 0 | E56: =E32*Tablas!$K$3 -> 0 | F56: =F32*Tablas!$K$3 -> 0 | G56: =G32*Tablas!$K$3 -> 0
A57: Prima para hijo (s) | C57: =C33*Tablas!$K$3 -> 0 | D57: =D33*Tablas!$K$3 -> 0 | E57: =E33*Tablas!$K$3 -> 0 | F57: =F33*Tablas!$K$3 -> 0 | G57: =G33*Tablas!$K$3 -> 0
A58: Total de Prima neta | C58: =SUM(C55:C57) -> 2870.741311 | D58: =SUM(D55:D57) -> 2303.772622 | E58: =SUM(E55:E57) -> 2101.439206 | F58: =SUM(F55:F57) -> 1535.993456 | G58: =SUM(G55:G57) -> 1228.794765
A59: Ajuste por la variante con coaseguro fuera del país de residencia | C59: =IF('INGRESO DE DATOS'!$R$3,C58*-15%,0) -> 0 | D59: =IF('INGRESO DE DATOS'!$R$3,D58*-15%,0) -> 0 | E59: =IF('INGRESO DE DATOS'!$R$3,E58*-15%,0) -> 0 | F59: =IF('INGRESO DE DATOS'!$R$3,F58*-15%,0) -> 0 | G59: =IF('INGRESO DE DATOS'!$R$3,G58*-15%,0) -> 0
A60: Tarifa administrativa anual | C60: 75 | D60: 75 | E60: 75 | F60: 75 | G60: 75
A61: VAT (5%) : | C61: =(C58+C59+C60)*5% -> 147.2870655 | D61: =(D58+D59+D60)*5% -> 118.9386311 | E61: =(E58+E59+E60)*5% -> 108.8219603 | F61: =(F58+F59+F60)*5% -> 80.54967281 | G61: =(G58+G59+G60)*5% -> 65.18973825
A62: ITBMS (7%) | C62: 0 | D62: 0 | E62: 0 | F62: 0 | G62: 0
A63: TOTAL de primera cuota | C63: =SUM(C58:C62) -> 3093.028376 | D63: =SUM(D58:D62) -> 2497.711253 | E63: =SUM(E58:E62) -> 2285.261166 | F63: =SUM(F58:F62) -> 1691.543129 | G63: =SUM(G58:G62) -> 1368.984503
A64: Costo de tarifa trimestral 2 a 4 | C64: =(C58+C59)*1.05 -> 3014.278376 | D64: =(D58+D59)*1.05 -> 2418.961253 | E64: =(E58+E59)*1.05 -> 2206.511166 | F64: =(F58+F59)*1.05 -> 1612.793129 | G64: =(G58+G59)*1.05 -> 1290.234503
A65: TOTAL ANUAL | C65: =C63+(C64*3) -> 12135.86351 | D65: =D63+(D64*3) -> 9754.595011 | E65: =E63+(E64*3) -> 8904.794665 | F65: =F63+(F64*3) -> 6529.922516 | G65: =G63+(G64*3) -> 5239.688013
A67: TARIFAS MENSUALES
A68: Prima para Asegurado Titular | C68: =C31*Tablas!$K$2 -> 974.3122025 | D68: =D31*Tablas!$K$2 -> 781.8864655 | E68: =E31*Tablas!$K$2 -> 713.2157305 | F68: =F31*Tablas!$K$2 -> 521.30687 | G68: =G31*Tablas!$K$2 -> 417.045496
A69: Prima para conyuge | C69: =C32*Tablas!$K$2 -> 0 | D69: =D32*Tablas!$K$2 -> 0 | E69: =E32*Tablas!$K$2 -> 0 | F69: =F32*Tablas!$K$2 -> 0 | G69: =G32*Tablas!$K$2 -> 0
A70: Prima para hijo (s) | C70: =C33*Tablas!$K$2 -> 0 | D70: =D33*Tablas!$K$2 -> 0 | E70: =E33*Tablas!$K$2 -> 0 | F70: =F33*Tablas!$K$2 -> 0 | G70: =G33*Tablas!$K$2 -> 0
A71: Total de Prima neta | C71: =SUM(C68:C70) -> 974.3122025 | D71: =SUM(D68:D70) -> 781.8864655 | E71: =SUM(E68:E70) -> 713.2157305 | F71: =SUM(F68:F70) -> 521.30687 | G71: =SUM(G68:G70) -> 417.045496
A72: Ajuste por la variante con coaseguro fuera del país de residencia | C72: =IF('INGRESO DE DATOS'!$R$3,C71*-15%,0) -> 0 | D72: =IF('INGRESO DE DATOS'!$R$3,D71*-15%,0) -> 0 | E72: =IF('INGRESO DE DATOS'!$R$3,E71*-15%,0) -> 0 | F72: =IF('INGRESO DE DATOS'!$R$3,F71*-15%,0) -> 0 | G72: =IF('INGRESO DE DATOS'!$R$3,G71*-15%,0) -> 0
A73: Tarifa administrativa anual | C73: 75 | D73: 75 | E73: 75 | F73: 75 | G73: 75
A74: VAT (5%) : | C74: =(C71+C72+C73)*5% -> 52.46561013 | D74: =(D71+D72+D73)*5% -> 42.84432328 | E74: =(E71+E72+E73)*5% -> 39.41078652 | F74: =(F71+F72+F73)*5% -> 29.8153435 | G74: =(G71+G72+G73)*5% -> 24.6022748
A75: ITBMS (7%) | C75: 0 | D75: 0 | E75: 0 | F75: 0 | G75: 0
A76: TOTAL de primera cuota | C76: =SUM(C71:C75) -> 1101.777813 | D76: =SUM(D71:D75) -> 899.7307888 | E76: =SUM(E71:E75) -> 827.626517 | F76: =SUM(F71:F75) -> 626.1222135 | G76: =SUM(G71:G75) -> 516.6477708
A77: Costo de Tarifa mensual de 2 a 12 | C77: =(C71+C72)*1.05 -> 1023.027813 | D77: =(D71+D72)*1.05 -> 820.9807888 | E77: =(E71+E72)*1.05 -> 748.876517 | F77: =(F71+F72)*1.05 -> 547.3722135 | G77: =(G71+G72)*1.05 -> 437.8977708
A78: TOTAL ANUAL | C78: =C76+(C77*11) -> 12355.08375 | D78: =D76+(D77*11) -> 9930.519465 | E78: =E76+(E77*11) -> 9065.268204 | F78: =F76+(F77*11) -> 6647.216562 | G78: =G76+(G77*11) -> 5333.52325
A80: Este presupuesto solamente tiene carácter informativo y en ningún momento expresa compromiso legal para suministrarle cobertura de seguro. La emisión de una póliza de seguro Bupa está sujeta a todas las evaluaciones de riesgo por parte de Bupa y a la recepción de todos los pagos de prima requeridos.

Sheet Bupa Global Select
J1: RESUMEN DE BENEFICIOS | Y1: RESUMEN DE BENEFICIOS | AN1: RESUMEN DE BENEFICIOS
A5: Cotización de Seguro Médico Internacional Bupa Global Select Health Plan Tarifas en US$ | Validas: 1 de noviembre de 2025
A13: Nombre del Asegurado Titular | B13: =+'INGRESO DE DATOS'!$C$37 -> John Doe
A15: Número de adultos en la póliza | B15: =+'INGRESO DE DATOS'!$C$39 -> 1
A17: Número de Dependientes en la póliza | B17: =+'INGRESO DE DATOS'!$C$41 -> 0 | C17: =IF('INGRESO DE DATOS'!$R$2=TRUE, "Cotización para dependiente de 24 años","") -> 
A19: Edad del Asegurado Titular | B19: =+'INGRESO DE DATOS'!$C$43 -> 61 | D19: Edad del/la conyuge | F19: =+'INGRESO DE DATOS'!$C$45 -> 0
A21: Fecha de la cotización | B21: =NOW() -> 2025-12-26T14:05:27.350
A23: =IF('INGRESO DE DATOS'!R3=TRUE,"Variante con coaseguro fuera del país de residencia: SI","Variante con coaseguro fuera del país de residencia: NO") -> Variante con coaseguro fuera del país de residencia: NO
B24: Ajuste | C24: ='INGRESO DE DATOS'!T76 -> 0.15 | D24: ='INGRESO DE DATOS'!T77 -> 0.15 | E24: ='INGRESO DE DATOS'!T78 -> 0.15 | F24: ='INGRESO DE DATOS'!T79 -> 0.15 | G24: ='INGRESO DE DATOS'!T80 -> 0.15
B25: Descuento | C25: ='INGRESO DE DATOS'!U76 -> 0.15 | D25: ='INGRESO DE DATOS'!U77 -> 0.15 | E25: ='INGRESO DE DATOS'!U78 -> 0.15 | F25: ='INGRESO DE DATOS'!U79 -> 0.15 | G25: ='INGRESO DE DATOS'!U80 -> 0.15
A26: DEDUCIBLES | C26: PLAN 1 | D26: PLAN 2 | E26: PLAN 3 | F26: PLAN 4 | G26: PLAN 5
A27: En el país de residencia | C27: 2000 | D27: 3500 | E27: 5000 | F27: 10000 | G27: 20000
A28: Fuera del país de residencia | C28: 2000 | D28: 3500 | E28: 5000 | F28: 10000 | G28: 20000
A30: TARIFAS ANUALES
A31: Prima para Asegurado Titular | C31: =VLOOKUP($B$19,Tablas!$A$307:$G$373,3,TRUE)*(1-C24)*(1-C25) -> 7774.508212 | D31: =VLOOKUP($B$19,Tablas!$A$307:$G$373,4,TRUE)*(1-D24)*(1-D25) -> 6246.030563 | E31: =VLOOKUP($B$19,Tablas!$A$307:$G$373,5,TRUE)*(1-E24)*(1-E25) -> 5493.6588 | F31: =VLOOKUP($B$19,Tablas!$A$307:$G$373,6,TRUE)*(1-F24)*(1-F25) -> 4015.022812 | G31: =VLOOKUP($B$19,Tablas!$A$307:$H$373,7,TRUE)*(1-G24)*(1-G25) -> 3212.01825
A32: Prima para conyuge | C32: =IF($B$15=1,0,(VLOOKUP($F$19,Tablas!$A$307:$G$373,3,TRUE)))*(1-C24)*(1-C25) -> 0 | D32: =IF($B$15=1,0,(VLOOKUP($F$19,Tablas!$A$307:$G$373,4,TRUE)))*(1-D24)*(1-D25) -> 0 | E32: =IF($B$15=1,0,(VLOOKUP($F$19,Tablas!$A$307:$G$373,5,TRUE)))*(1-E24)*(1-E25) -> 0 | F32: =IF($B$15=1,0,(VLOOKUP($F$19,Tablas!$A$307:$G$373,6,TRUE)))*(1-F24)*(1-F25) -> 0 | G32: =IF($B$15=1,0,(VLOOKUP($F$19,Tablas!$A$307:$H$373,7,TRUE)))*(1-G24)*(1-G25) -> 0
A33: Prima para hijo (s) | C33: =IF($B$17=0,0,(VLOOKUP($B$17,Tablas!$A$374:$G$376,3,TRUE)))*(1-C24)*(1-C25) -> 0 | D33: =IF($B$17=0,0,(VLOOKUP($B$17,Tablas!$A$374:$G$376,4,TRUE)))*(1-D24)*(1-D25) -> 0 | E33: =IF($B$17=0,0,(VLOOKUP($B$17,Tablas!$A$374:$G$376,5,TRUE)))*(1-E24)*(1-E25) -> 0 | F33: =IF($B$17=0,0,(VLOOKUP($B$17,Tablas!$A$374:$G$376,6,TRUE)))*(1-F24)*(1-F25) -> 0 | G33: =IF($B$17=0,0,(VLOOKUP($B$17,Tablas!$A$374:$H$376,7,TRUE)))*(1-G24)*(1-G25) -> 0
A34: Total de Prima neta | C34: =SUM(C31:C33) -> 7774.508212 | D34: =SUM(D31:D33) -> 6246.030563 | E34: =SUM(E31:E33) -> 5493.6588 | F34: =SUM(F31:F33) -> 4015.022812 | G34: =SUM(G31:G33) -> 3212.01825
A35: Ajuste por la variante con coaseguro fuera del país de residencia | C35: =IF('INGRESO DE DATOS'!$R$3,C34*-15%,0) -> 0 | D35: =IF('INGRESO DE DATOS'!$R$3,D34*-15%,0) -> 0 | E35: =IF('INGRESO DE DATOS'!$R$3,E34*-15%,0) -> 0 | F35: =IF('INGRESO DE DATOS'!$R$3,F34*-15%,0) -> 0 | G35: =IF('INGRESO DE DATOS'!$R$3,G34*-15%,0) -> 0
A36: Tarifa administrativa anual | C36: 75 | D36: 75 | E36: 75 | F36: 75 | G36: 76
A37: VAT (5%) : | C37: =(C34+C35+C36)*5% -> 392.4754106 | D37: =(D34+D35+D36)*5% -> 316.0515281 | E37: =(E34+E35+E36)*5% -> 278.43294 | F37: =(F34+F35+F36)*5% -> 204.5011406 | G37: =(G34+G35+G36)*5% -> 164.4009125
A38: ITBMS (7%) | C38: 0 | D38: 0 | E38: 0 | F38: 0 | G38: 0
A39: TOTAL ANUAL | C39: =SUM(C34:C38) -> 8241.983623 | D39: =SUM(D34:D38) -> 6637.082091 | E39: =SUM(E34:E38) -> 5847.09174 | F39: =SUM(F34:F38) -> 4294.523953 | G39: =SUM(G34:G38) -> 3452.419162
A41: TARIFAS SEMESTRALES
A42: Prima para Asegurado Titular | C42: =C31*Tablas!$K$4 -> 4120.489353 | D42: =D31*Tablas!$K$4 -> 3310.396198 | E42: =E31*Tablas!$K$4 -> 2911.639164 | F42: =F31*Tablas!$K$4 -> 2127.962091 | G42: =G31*Tablas!$K$4 -> 1702.369672
A43: Prima para conyuge | C43: =C32*Tablas!$K$4 -> 0 | D43: =D32*Tablas!$K$4 -> 0 | E43: =E32*Tablas!$K$4 -> 0 | F43: =F32*Tablas!$K$4 -> 0 | G43: =G32*Tablas!$K$4 -> 0
A44: Prima para hijo (s) | C44: =C33*Tablas!$K$4 -> 0 | D44: =D33*Tablas!$K$4 -> 0 | E44: =E33*Tablas!$K$4 -> 0 | F44: =F33*Tablas!$K$4 -> 0 | G44: =G33*Tablas!$K$4 -> 0
A45: Total de Prima neta | C45: =SUM(C42:C44) -> 4120.489353 | D45: =SUM(D42:D44) -> 3310.396198 | E45: =SUM(E42:E44) -> 2911.639164 | F45: =SUM(F42:F44) -> 2127.962091 | G45: =SUM(G42:G44) -> 1702.369672
A46: Ajuste por la variante con coaseguro fuera del país de residencia | C46: =IF('INGRESO DE DATOS'!$R$3,C45*-15%,0) -> 0 | D46: =IF('INGRESO DE DATOS'!$R$3,D45*-15%,0) -> 0 | E46: =IF('INGRESO DE DATOS'!$R$3,E45*-15%,0) -> 0 | F46: =IF('INGRESO DE DATOS'!$R$3,F45*-15%,0) -> 0 | G46: =IF('INGRESO DE DATOS'!$R$3,G45*-15%,0) -> 0
A47: Tarifa administrativa anual | C47: 75 | D47: 75 | E47: 75 | F47: 75 | G47: 76
A48: VAT (5%) : | C48: =(C45+C46+C47)*5% -> 209.7744676 | D48: =(D45+D46+D47)*5% -> 169.2698099 | E48: =(E45+E46+E47)*5% -> 149.3319582 | F48: =(F45+F46+F47)*5% -> 110.1481045 | G48: =(G45+G46+G47)*5% -> 88.91848363
A49: ITBMS (7%) | C49: 0 | D49: 0 | E49: 0 | F49: 0 | G49: 0
A50: TOTAL de primera cuota | C50: =SUM(C45:C49) -> 4405.26382 | D50: =SUM(D45:D49) -> 3554.666008 | E50: =SUM(E45:E49) -> 3135.971122 | F50: =SUM(F45:F49) -> 2313.110195 | G50: =SUM(G45:G49) -> 1867.288156
A51: Costo de segunda cuota | C51: =(C45+C46)*1.05 -> 4326.51382 | D51: =(D45+D46)*1.05 -> 3475.916008 | E51: =(E45+E46)*1.05 -> 3057.221122 | F51: =(F45+F46)*1.05 -> 2234.360195 | G51: =(G45+G46)*1.05 -> 1787.488156
A52: TOTAL ANUAL | C52: =C50+C51 -> 8731.777641 | D52: =D50+D51 -> 7030.582016 | E52: =E50+E51 -> 6193.192244 | F52: =F50+F51 -> 4547.47039 | G52: =G50+G51 -> 3654.776312
A54: TARIFAS TRIMESTRALES
A55: Prima para Asegurado Titular | C55: =C31*Tablas!$K$3 -> 2137.989758 | D55: =D31*Tablas!$K$3 -> 1717.658405 | E55: =E31*Tablas!$K$3 -> 1510.75617 | F55: =F31*Tablas!$K$3 -> 1104.131273 | G55: =G31*Tablas!$K$3 -> 883.3050187
A56: Prima para conyuge | C56: =C32*Tablas!$K$3 -> 0 | D56: =D32*Tablas!$K$3 -> 0 | E56: =E32*Tablas!$K$3 -> 0 | F56: =F32*Tablas!$K$3 -> 0 | G56: =G32*Tablas!$K$3 -> 0
A57: Prima para hijo (s) | C57: =C33*Tablas!$K$3 -> 0 | D57: =D33*Tablas!$K$3 -> 0 | E57: =E33*Tablas!$K$3 -> 0 | F57: =F33*Tablas!$K$3 -> 0 | G57: =G33*Tablas!$K$3 -> 0
A58: Total de Prima neta | C58: =SUM(C55:C57) -> 2137.989758 | D58: =SUM(D55:D57) -> 1717.658405 | E58: =SUM(E55:E57) -> 1510.75617 | F58: =SUM(F55:F57) -> 1104.131273 | G58: =SUM(G55:G57) -> 883.3050187
A59: Ajuste por la variante con coaseguro fuera del país de residencia | C59: =IF('INGRESO DE DATOS'!$R$3,C58*-15%,0) -> 0 | D59: =IF('INGRESO DE DATOS'!$R$3,D58*-15%,0) -> 0 | E59: =IF('INGRESO DE DATOS'!$R$3,E58*-15%,0) -> 0 | F59: =IF('INGRESO DE DATOS'!$R$3,F58*-15%,0) -> 0 | G59: =IF('INGRESO DE DATOS'!$R$3,G58*-15%,0) -> 0
A60: Tarifa administrativa anual | C60: 75 | D60: 75 | E60: 75 | F60: 75 | G60: 76
A61: VAT (5%) : | C61: =(C58+C59+C60)*5% -> 110.6494879 | D61: =(D58+D59+D60)*5% -> 89.63292023 | E61: =(E58+E59+E60)*5% -> 79.2878085 | F61: =(F58+F59+F60)*5% -> 58.95656367 | G61: =(G58+G59+G60)*5% -> 47.96525094
A62: ITBMS (7%) | C62: 0 | D62: 0 | E62: 0 | F62: 0 | G62: 0
A63: TOTAL de primera cuota | C63: =SUM(C58:C62) -> 2323.639246 | D63: =SUM(D58:D62) -> 1882.291325 | E63: =SUM(E58:E62) -> 1665.043978 | F63: =SUM(F58:F62) -> 1238.087837 | G63: =SUM(G58:G62) -> 1007.27027
A64: Costo de tarifa trimestral 2 a 4 | C64: =(C58+C59)*1.05 -> 2244.889246 | D64: =(D58+D59)*1.05 -> 1803.541325 | E64: =(E58+E59)*1.05 -> 1586.293978 | F64: =(F58+F59)*1.05 -> 1159.337837 | G64: =(G58+G59)*1.05 -> 927.4702697
A65: TOTAL ANUAL | C65: =C63+(C64*3) -> 9058.306985 | D65: =D63+(D64*3) -> 7292.9153 | E65: =E63+(E64*3) -> 6423.925914 | F65: =F63+(F64*3) -> 4716.101348 | G65: =G63+(G64*3) -> 3789.681079
A67: TARIFAS MENSUALES
A68: Prima para Asegurado Titular | C68: =C31*Tablas!$K$2 -> 725.6207665 | D68: =D31*Tablas!$K$2 -> 582.9628525 | E68: =E31*Tablas!$K$2 -> 512.741488 | F68: =F31*Tablas!$K$2 -> 374.7354625 | G68: =G31*Tablas!$K$2 -> 299.78837
A69: Prima para conyuge | C69: =C32*Tablas!$K$2 -> 0 | D69: =D32*Tablas!$K$2 -> 0 | E69: =E32*Tablas!$K$2 -> 0 | F69: =F32*Tablas!$K$2 -> 0 | G69: =G32*Tablas!$K$2 -> 0
A70: Prima para hijo (s) | C70: =C33*Tablas!$K$2 -> 0 | D70: =D33*Tablas!$K$2 -> 0 | E70: =E33*Tablas!$K$2 -> 0 | F70: =F33*Tablas!$K$2 -> 0 | G70: =G33*Tablas!$K$2 -> 0
A71: Total de Prima neta | C71: =SUM(C68:C70) -> 725.6207665 | D71: =SUM(D68:D70) -> 582.9628525 | E71: =SUM(E68:E70) -> 512.741488 | F71: =SUM(F68:F70) -> 374.7354625 | G71: =SUM(G68:G70) -> 299.78837
A72: Ajuste por la variante con coaseguro fuera del país de residencia | C72: =IF('INGRESO DE DATOS'!$R$3,C71*-15%,0) -> 0 | D72: =IF('INGRESO DE DATOS'!$R$3,D71*-15%,0) -> 0 | E72: =IF('INGRESO DE DATOS'!$R$3,E71*-15%,0) -> 0 | F72: =IF('INGRESO DE DATOS'!$R$3,F71*-15%,0) -> 0 | G72: =IF('INGRESO DE DATOS'!$R$3,G71*-15%,0) -> 0
A73: Tarifa administrativa anual | C73: 75 | D73: 75 | E73: 75 | F73: 75 | G73: 76
A74: VAT (5%) : | C74: =(C71+C72+C73)*5% -> 40.03103833 | D74: =(D71+D72+D73)*5% -> 32.89814263 | E74: =(E71+E72+E73)*5% -> 29.3870744 | F74: =(F71+F72+F73)*5% -> 22.48677312 | G74: =(G71+G72+G73)*5% -> 18.7894185
A75: ITBMS (7%) | C75: 0 | D75: 0 | E75: 0 | F75: 0 | G75: 0
A76: TOTAL de primera cuota | C76: =SUM(C71:C75) -> 840.6518048 | D76: =SUM(D71:D75) -> 690.8609951 | E76: =SUM(E71:E75) -> 617.1285624 | F76: =SUM(F71:F75) -> 472.2222356 | G76: =SUM(G71:G75) -> 394.5777885
A77: Costo de Tarifa mensual de 2 a 12 | C77: =(C71+C72)*1.05 -> 761.9018048 | D77: =(D71+D72)*1.05 -> 612.1109951 | E77: =(E71+E72)*1.05 -> 538.3785624 | F77: =(F71+F72)*1.05 -> 393.4722356 | G77: =(G71+G72)*1.05 -> 314.7777885
A78: TOTAL ANUAL | C78: =C76+(C77*11) -> 9221.571658 | D78: =D76+(D77*11) -> 7424.081942 | E78: =E76+(E77*11) -> 6539.292749 | F78: =F76+(F77*11) -> 4800.416828 | G78: =G76+(G77*11) -> 3857.133462
A80: Este presupuesto solamente tiene carácter informativo y en ningún momento expresa compromiso legal para suministrarle cobertura de seguro. La emisión de una póliza de seguro Bupa está sujeta a todas las evaluaciones de riesgo por parte de Bupa y a la recepción de todos los pagos de prima requeridos.

Sheet Bupa Global Major Medical
G1: RESUMEN DE BENEFICIOS | V1: RESUMEN DE BENEFICIOS
A5: Cotización de Seguro Médico Internacional Bupa Global Major Medical Health Plan Tarifas en US$ | Validas: 1 de noviembre de 2025
A13: Nombre del Asegurado Titular | B13: =+'INGRESO DE DATOS'!$C$37 -> John Doe
A15: Número de adultos en la póliza | B15: =+'INGRESO DE DATOS'!$C$39 -> 1
A17: Número de Dependientes en la póliza | B17: =+'INGRESO DE DATOS'!$C$41 -> 0 | C17: =IF('INGRESO DE DATOS'!$R$2=TRUE, "Cotización para dependiente de 24 años","") -> 
A19: Edad del Asegurado Titular | B19: =+'INGRESO DE DATOS'!$C$43 -> 61 | C19: Edad del/la conyuge | D19: =+'INGRESO DE DATOS'!$C$45 -> 0
A21: Fecha de la cotización | B21: =NOW() -> 2025-12-26T14:05:27.350
B22: Ajuste | C22: ='INGRESO DE DATOS'!T81 -> 0.15 | D22: ='INGRESO DE DATOS'!T82 -> 0.15
B23: Descuento | C23: ='INGRESO DE DATOS'!U81 -> 0 | D23: ='INGRESO DE DATOS'!U82 -> 0
A24: DEDUCIBLeS | C24: PLAN 1 | D24: PLAN 2
A25: En el país de residencia | C25: 10000 | D25: 20000
A26: Fuera del país de residencia | C26: 10000 | D26: 20000
A28: TARIFAS ANUALES
A29: Prima para Asegurado Titular | C29: =VLOOKUP($B$19,Tablas!$A$1138:$G$1204,3,TRUE)*(1-C22)*(1-C23) -> 4486.215 | D29: =VLOOKUP($B$19,Tablas!$A$1138:$G$1204,4,TRUE)*(1-D22)*(1-D23) -> 3454.944
A30: Prima para conyuge | C30: =IF($B$15=1,0,(VLOOKUP($D$19,Tablas!$A$1138:$G$1204,3,TRUE)))*(1-C22)*(1-C23) -> 0 | D30: =IF($B$15=1,0,(VLOOKUP($D$19,Tablas!$A$1138:$G$1204,4,TRUE)))*(1-D22)*(1-D23) -> 0
A31: Prima para hijo (s) | C31: =IF($B$17=0,0,(VLOOKUP($B$17,Tablas!$A$1205:$G$1207,3,TRUE)))*(1-C22)*(1-C23) -> 0 | D31: =IF($B$17=0,0,(VLOOKUP($B$17,Tablas!$A$1205:$G$1207,4,TRUE)))*(1-D22)*(1-D23) -> 0
A32: Total de Prima neta | C32: =SUM(C29:C31) -> 4486.215 | D32: =SUM(D29:D31) -> 3454.944
A33: Tarifa administrativa anual | C33: 75 | D33: 75
A34: VAT (5%) : | C34: =(C32+C33)*5% -> 228.06075 | D34: =(D32+D33)*5% -> 176.4972
A35: ITBMS (7%) | C35: 0 | D35: 0
A36: TOTAL ANUAL | C36: =SUM(C32:C35) -> 4789.27575 | D36: =SUM(D32:D35) -> 3706.4412
A38: TARIFAS SEMESTRALES
A39: Prima para Asegurado Titular | C39: =C29*Tablas!$K$4 -> 2377.69395 | D39: =D29*Tablas!$K$4 -> 1831.12032
A40: Prima para conyuge | C40: =C30*Tablas!$K$4 -> 0 | D40: =D30*Tablas!$K$4 -> 0
A41: Prima para hijo (s) | C41: =C31*Tablas!$K$4 -> 0 | D41: =D31*Tablas!$K$4 -> 0
A42: Total de Prima neta | C42: =SUM(C39:C41) -> 2377.69395 | D42: =SUM(D39:D41) -> 1831.12032
A43: Tarifa administrativa anual | C43: 75 | D43: 75
A44: VAT (5%) : | C44: =(C42+C43)*5% -> 122.6346975 | D44: =(D42+D43)*5% -> 95.306016
A45: ITBMS (7%) | C45: 0 | D45: 0
A46: TOTAL de primera cuota | C46: =SUM(C42:C45) -> 2575.328647 | D46: =SUM(D42:D45) -> 2001.426336
A47: Costo de segunda cuota | C47: =C42*1.05 -> 2496.578647 | D47: =D42*1.05 -> 1922.676336
A48: TOTAL ANUAL | C48: =C46+C47 -> 5071.907295 | D48: =D46+D47 -> 3924.102672
A50: TARIFAS TRIMESTRALES
A51: Prima para Asegurado Titular | C51: =C29*Tablas!$K$3 -> 1233.709125 | D51: =D29*Tablas!$K$3 -> 950.1096
A52: Prima para conyuge | C52: =C30*Tablas!$K$3 -> 0 | D52: =D30*Tablas!$K$3 -> 0
A53: Prima para hijo (s) | C53: =C31*Tablas!$K$3 -> 0 | D53: =D31*Tablas!$K$3 -> 0
A54: Total de Prima neta | C54: =SUM(C51:C53) -> 1233.709125 | D54: =SUM(D51:D53) -> 950.1096
A55: Tarifa administrativa anual | C55: 75 | D55: 75
A56: VAT (5%) : | C56: =(C54+C55)*5% -> 65.43545625 | D56: =(D54+D55)*5% -> 51.25548
A57: ITBMS (7%) | C57: 0 | D57: 0
A58: TOTAL de primera cuota | C58: =SUM(C54:C57) -> 1374.144581 | D58: =SUM(D54:D57) -> 1076.36508
A59: Costo de tarifa trimestral 2 a 4 | C59: =C54*1.05 -> 1295.394581 | D59: =D54*1.05 -> 997.61508
A60: TOTAL ANUAL | C60: =C58+(C59*3) -> 5260.328325 | D60: =D58+(D59*3) -> 4069.21032
A62: TARIFAS MENSUALES
A63: Prima para Asegurado Titular | C63: =C29*Tablas!$K$2 -> 418.7134 | D63: =D29*Tablas!$K$2 -> 322.46144
A64: Prima para conyuge | C64: =C30*Tablas!$K$2 -> 0 | D64: =D30*Tablas!$K$2 -> 0
A65: Prima para hijo (s) | C65: =C31*Tablas!$K$2 -> 0 | D65: =D31*Tablas!$K$2 -> 0
A66: Total de Prima neta | C66: =SUM(C63:C65) -> 418.7134 | D66: =SUM(D63:D65) -> 322.46144
A67: Tarifa administrativa anual | C67: 75 | D67: 75
A68: VAT (5%) : | C68: =(C66+C67)*5% -> 24.68567 | D68: =(D66+D67)*5% -> 19.873072
A69: ITBMS (7%) | C69: 0 | D69: 0
A70: TOTAL de primera cuota | C70: =SUM(C66:C69) -> 518.39907 | D70: =SUM(D66:D69) -> 417.334512
A71: Costo de Tarifa mensual de 2 a 12 | C71: =C66*1.05 -> 439.64907 | D71: =D66*1.05 -> 338.584512
A72: TOTAL ANUAL | C72: =C70+(C71*11) -> 5354.53884 | D72: =D70+(D71*11) -> 4141.764144
A74: Este presupuesto solamente tiene carácter informativo y en ningún momento expresa compromiso legal para suministrarle cobertura de seguro. La emisión de una póliza de seguro Bupa está sujeta a todas las evaluaciones de riesgo por parte de Bupa y a la recepción de todos los pagos de prima requeridos.

Sheet Resumen Tarifas
A5: Cotización de Seguro Médico Internacional Bupa Global Major Health Plans Resumen de Tarifas Tarifas en US$ | Validas: 1 de noviembre de 2025
A13: Nombre del Asegurado Titular | B13: =+'INGRESO DE DATOS'!$C$37 -> John Doe
A15: Número de adultos en la póliza | B15: =+'INGRESO DE DATOS'!$C$39 -> 1
A17: Número de Dependientes en la póliza | B17: =+'INGRESO DE DATOS'!$C$41 -> 0 | C17: =IF('INGRESO DE DATOS'!$R$2=TRUE, "Cotización para dependiente de 24 años","") -> 
A19: Edad del Asegurado Titular | B19: =+'INGRESO DE DATOS'!$C$43 -> 61 | E19: Edad del/la conyuge | F19: =+'INGRESO DE DATOS'!$C$45 -> 0
A21: Fecha de la cotización | B21: =NOW() -> 2025-12-26T14:05:27.350
A23: BUPA GLOBAL ULTIMATE HEALTH PLAN
A24: DEDUCIBLES | B24: PLAN 1 | C24: PLAN 2 | D24: PLAN 3
A25: En el país de residencia | B25: $0 | C25: 1000 | D25: 2000
A26: Fuera del país de residencia | B26: $0 | C26: 1000 | D26: 2000
B27: TARIFAS ANUALES
B28: ='Bupa Global Ultimate'!C39 -> 50364.216 | C28: ='Bupa Global Ultimate'!D39 -> 27652.91681 | D28: ='Bupa Global Ultimate'!E39 -> 22944.34564
B29: TArIFAS SEMESTRALES
B30: ='Bupa Global Ultimate'!C51 -> 26651.29698 | C30: ='Bupa Global Ultimate'!D51 -> 14614.30841 | D30: ='Bupa Global Ultimate'!E51 -> 12118.76569
B31: TARIFAS TRIMESTRALES
B32: ='Bupa Global Ultimate'!C64 -> 13828.50315 | C32: ='Bupa Global Ultimate'!D64 -> 7582.895873 | D32: ='Bupa Global Ultimate'!E64 -> 6288.0388
B33: TARIFAS MENSUALES
B34: ='Bupa Global Ultimate'!C77 -> 4693.31016 | C34: ='Bupa Global Ultimate'!D77 -> 2573.588903 | D34: ='Bupa Global Ultimate'!E77 -> 2134.12226
A35: Ahorros en tarifas de prima para Dependientes* | B35: ='Bupa Global Ultimate'!C40 -> 0 | C35: ='Bupa Global Ultimate'!D40 -> 0 | D35: ='Bupa Global Ultimate'!E40 -> 0
A37: BUPA GLOBAL ELITE HEALTH PLAN
A38: DEDUCIBLES | B38: PLAN 1 | C38: PLAN 2 | D38: PLAN 3 | E38: PLAN 4 | F38: PLAN 5 | G38: PLAN 6
A39: En el país de residencia | B39: 1000 | C39: 2000 | D39: 3500 | E39: 5000 | F39: 10000 | G39: 20000
A40: Fuera del país de residencia | B40: 1000 | C40: 2000 | D40: 3500 | E40: 5000 | F40: 10000 | G40: 20000
A41: =IF('INGRESO DE DATOS'!R3=TRUE,"Variante con coaseguro fuera del país de residencia: SI","Variante con coaseguro fuera del país de residencia: NO") -> Variante con coaseguro fuera del país de residencia: NO | B41: TARIFAS ANUALES
B42: =+'Bupa Global Elite'!C41 -> 22572.97639 | C42: =+'Bupa Global Elite'!D41 -> 16019.28641 | D42: =+'Bupa Global Elite'!E41 -> 12840.17018 | E42: =+'Bupa Global Elite'!F41 -> 11144.57636 | F42: =+'Bupa Global Elite'!G41 -> 8511.763837 | G42: =+'Bupa Global Elite'!H41 -> 6825.9429
B43: TARIFAS SEMESTRALES
B44: =+'Bupa Global Elite'!C54 -> 11921.93999 | C44: =+'Bupa Global Elite'!D54 -> 8448.484299 | D44: =+'Bupa Global Elite'!E54 -> 6763.552693 | E44: =+'Bupa Global Elite'!F54 -> 5864.887972 | F44: =+'Bupa Global Elite'!G54 -> 4469.497334 | G44: =+'Bupa Global Elite'!H54 -> 3576.012237
B45: TARIFAS TRIMESTRALES
B46: =+'Bupa Global Elite'!C68 -> 6185.912257 | C46: =+'Bupa Global Elite'!D68 -> 4383.647513 | D46: =+'Bupa Global Elite'!E68 -> 3509.390548 | E46: =+'Bupa Global Elite'!F68 -> 3043.10225 | F46: =+'Bupa Global Elite'!G68 -> 2319.078805 | G46: =+'Bupa Global Elite'!H68 -> 1855.478048
B47: TARIFAS MENSUALES
B48: =+'Bupa Global Elite'!C82 -> 2099.461129 | C48: =+'Bupa Global Elite'!D82 -> 1487.783398 | D48: =+'Bupa Global Elite'!E82 -> 1191.065883 | E48: =+'Bupa Global Elite'!F82 -> 1032.81046 | F48: =+'Bupa Global Elite'!G82 -> 787.0812915 | G48: =+'Bupa Global Elite'!H82 -> 629.738004
A49: Ahorros en tarifas de prima para Dependientes* | B49: =+'Bupa Global Elite'!C42 -> 0 | C49: =+'Bupa Global Elite'!D42 -> 0 | D49: =+'Bupa Global Elite'!E42 -> 0 | E49: =+'Bupa Global Elite'!F42 -> 0 | F49: =+'Bupa Global Elite'!G42 -> 0 | G49: =+'Bupa Global Elite'!H42 -> 0
A51: BUPA GLOBAL PREMIER HEALTH PLAN
A52: DEDUCIBLES | B52: PLAN 1 | C52: PLAN 2 | D52: PLAN 3 | E52: PLAN 4 | F52: PLAN 5
A53: En el país de residencia | B53: 2000 | C53: 3500 | D53: 5000 | E53: 10000 | F53: 20000
A54: Fuera del país de residencia | B54: 2000 | C54: 3500 | D54: 5000 | E54: 10000 | F54: 20000
A55: =IF('INGRESO DE DATOS'!R3=TRUE,"Variante con coaseguro fuera del país de residencia: SI","Variante con coaseguro fuera del país de residencia: NO") -> Variante con coaseguro fuera del país de residencia: NO | B55: TARIFAS ANUALES
B56: =+'Bupa Global Premier'!C39 -> 11039.76228 | C56: =+'Bupa Global Premier'!D39 -> 8874.972737 | D56: =+'Bupa Global Premier'!E39 -> 8102.426968 | E56: =+'Bupa Global Premier'!F39 -> 5943.452287 | F56: =+'Bupa Global Premier'!G39 -> 4770.51183
B57: TARIFAS SEMESTRALES
B58: =+'Bupa Global Premier'!C51 -> 5809.336507 | C58: =+'Bupa Global Premier'!D51 -> 4661.998051 | D58: =+'Bupa Global Premier'!E51 -> 4252.548793 | E58: =+'Bupa Global Premier'!F51 -> 3108.292212 | F58: =+'Bupa Global Premier'!G51 -> 2486.63377
B59: TARIFAS TRIMESTRALES
B60: =+'Bupa Global Premier'!C64 -> 3014.278376 | C60: =+'Bupa Global Premier'!D64 -> 2418.961253 | D60: =+'Bupa Global Premier'!E64 -> 2206.511166 | E60: =+'Bupa Global Premier'!F64 -> 1612.793129 | F60: =+'Bupa Global Premier'!G64 -> 1290.234503
B61: TARIFAS MENSUALES
B62: =+'Bupa Global Premier'!C77 -> 1023.027813 | C62: =+'Bupa Global Premier'!D77 -> 820.9807888 | D62: =+'Bupa Global Premier'!E77 -> 748.876517 | E62: =+'Bupa Global Premier'!F77 -> 547.3722135 | F62: =+'Bupa Global Premier'!G77 -> 437.8977708
A64: BUPA GLOBAL SELECT HEALTH PLAN
A65: DEDUCIBLES | B65: PLAN 1 | C65: PLAN 2 | D65: PLAN 3 | E65: PLAN 4 | F65: PLAN 5
A66: En el país de residencia | B66: 2000 | C66: 3500 | D66: 5000 | E66: 10000 | F66: 20000
A67: Fuera del país de residencia | B67: 2000 | C67: 3500 | D67: 5000 | E67: 10000 | F67: 20000
A68: =IF('INGRESO DE DATOS'!R3=TRUE,"Variante con coaseguro fuera del país de residencia: SI","Variante con coaseguro fuera del país de residencia: NO") -> Variante con coaseguro fuera del país de residencia: NO | B68: TARIFAS ANUALES
B69: =+'Bupa Global Select'!C39 -> 8241.983623 | C69: =+'Bupa Global Select'!D39 -> 6637.082091 | D69: =+'Bupa Global Select'!E39 -> 5847.09174 | E69: =+'Bupa Global Select'!F39 -> 4294.523953 | F69: =+'Bupa Global Select'!G39 -> 3452.419162
B70: TARIFAS SEMESTRALES
B71: =+'Bupa Global Select'!C51 -> 4326.51382 | C71: =+'Bupa Global Select'!D51 -> 3475.916008 | D71: =+'Bupa Global Select'!E51 -> 3057.221122 | E71: =+'Bupa Global Select'!F51 -> 2234.360195 | F71: =+'Bupa Global Select'!G51 -> 1787.488156
B72: TARIFAS TRIMESTRALES
B73: =+'Bupa Global Select'!C64 -> 2244.889246 | C73: =+'Bupa Global Select'!D64 -> 1803.541325 | D73: =+'Bupa Global Select'!E64 -> 1586.293978 | E73: =+'Bupa Global Select'!F64 -> 1159.337837 | F73: =+'Bupa Global Select'!G64 -> 927.4702697
B74: TARIFAS MENSUALES
B75: =+'Bupa Global Select'!C77 -> 761.9018048 | C75: =+'Bupa Global Select'!D77 -> 612.1109951 | D75: =+'Bupa Global Select'!E77 -> 538.3785624 | E75: =+'Bupa Global Select'!F77 -> 393.4722356 | F75: =+'Bupa Global Select'!G77 -> 314.7777885
A77: BUPA GLOBAL MAJOR MEDICAL HEALTH PLAN
A78: DEDUCIBLES | B78: PLAN 1 | C78: PLAN 2
A79: En el país de residencia | B79: 10000 | C79: 20000
A80: Fuera del país de residencia | B80: 10000 | C80: 20000
B81: TARIFAS ANUALES
B82: ='Bupa Global Major Medical'!C36 -> 4789.27575 | C82: ='Bupa Global Major Medical'!D36 -> 3706.4412
B83: TARIFAS SEMESTRALES
B84: ='Bupa Global Major Medical'!C47 -> 2496.578647 | C84: ='Bupa Global Major Medical'!D47 -> 1922.676336
B85: TARIFAS TRIMESTRALES
B86: ='Bupa Global Major Medical'!C59 -> 1295.394581 | C86: ='Bupa Global Major Medical'!D59 -> 997.61508
B87: TARIFAS MENSUALES
B88: ='Bupa Global Major Medical'!C71 -> 439.64907 | C88: ='Bupa Global Major Medical'!D71 -> 338.584512
A90: Este presupuesto solamente tiene carácter informativo y en ningún momento expresa compromiso legal para suministrarle cobertura de seguro. La emisión de una póliza de seguro Bupa está sujeta a todas las evaluaciones de riesgo por parte de Bupa y a la recepción de todos los pagos de prima requeridos. Una tarifa administrativa de US$75 se cargará automáticamente al primer pago. *Basado en un modo de pago anual

Sheet Tablas (hidden)
A2: BUPA GLOBAL ELITE | I2: FACTOR MENSUAL: | K2: 0.09333333333 | M2: Descuento de 24 años | N2: ='INGRESO DE DATOS'!R30 -> 1 | O2: Ultimate | P2: Elite | Q2: Premier | R2: Select | S2: Major Medical
A3: TARIFAS ANUALES | I3: FACTOR TRIMESTRAL: | K3: 0.275 | M3: Descuento de producto (%) | O3: ='INGRESO DE DATOS'!Q39 -> 0 | P3: ='INGRESO DE DATOS'!R39 -> 0 | Q3: ='INGRESO DE DATOS'!S39 -> 0 | R3: ='INGRESO DE DATOS'!T39 -> 0 | S3: ='INGRESO DE DATOS'!U39 -> 0
I4: FACTOR SEMIANUAL: | K4: 0.53 | M4: Factor para el descuento combinado | O4: ='INGRESO DE DATOS'!Q47 -> 1 | P4: ='INGRESO DE DATOS'!R47 -> 1 | Q4: ='INGRESO DE DATOS'!S47 -> 1 | R4: ='INGRESO DE DATOS'!T47 -> 1 | S4: ='INGRESO DE DATOS'!U47 -> 1
A5: EDAD | C5: 1000 | D5: 2000 | E5: 3500 | F5: 5000 | G5: 10000 | I5: TARIFAS BASE | O5: TARIFAS BASE CON DESCUENTO
A6: 18 | C6: =O6 -> 9422.475 | D6: =P6 -> 6749.58 | E6: 5616.255 | F6: 4870.56 | G6: 3712.05 | H6: 2969.64 | I6: 9422.475 | J6: 6749.58 | K6: 5616.255 | L6: 4870.56 | M6: 3712.05 | N6: 2969.64 | O6: =I6*$P$4 -> 9422.475 | P6: =J6*$P$4 -> 6749.58 | Q6: 5616.255 | R6: 4870.56 | S6: 3712.05 | T6: 2969.64
A7: 19 | C7: =O7 -> 9547.305 | D7: =P7 -> 6830.61 | E7: =Q7 -> 5675.385 | F7: =R7 -> 4923.12 | G7: =S7 -> 3750.375 | H7: =T7 -> 3000.3 | I7: 9547.305 | J7: 6830.61 | K7: 5675.385 | L7: 4923.12 | M7: 3750.375 | N7: 3000.3 | O7: =I7*$P$4 -> 9547.305 | P7: =J7*$P$4 -> 6830.61 | Q7: =K7*$P$4 -> 5675.385 | R7: =L7*$P$4 -> 4923.12 | S7: =M7*$P$4 -> 3750.375 | T7: =N7*$P$4 -> 3000.3
A8: 20 | C8: 9674.325 | D8: 6917.115 | E8: 5738.895 | F8: 4976.775 | G8: 3790.89 | H8: 3033.15 | I8: 9674.325 | J8: 6917.115 | K8: 5738.895 | L8: 4976.775 | M8: 3790.89 | N8: 3033.15 | O8: 9674.325 | P8: 6917.115 | Q8: 5738.895 | R8: 4976.775 | S8: 3790.89 | T8: 3033.15
A9: 21 | C9: 9805.725 | D9: 7004.715 | E9: 5803.5 | F9: 5032.62 | G9: 3834.69 | H9: 3068.19 | I9: 9805.725 | J9: 7004.715 | K9: 5803.5 | L9: 5032.62 | M9: 3834.69 | N9: 3068.19 | O9: 9805.725 | P9: 7004.715 | Q9: 5803.5 | R9: 5032.62 | S9: 3834.69 | T9: 3068.19
A10: 22 | C10: 9941.505 | D10: 7095.6 | E10: 5870.295 | F10: 5089.56 | G10: 3877.395 | H10: 3102.135 | I10: 9941.505 | J10: 7095.6 | K10: 5870.295 | L10: 5089.56 | M10: 3877.395 | N10: 3102.135 | O10: 9941.505 | P10: 7095.6 | Q10: 5870.295 | R10: 5089.56 | S10: 3877.395 | T10: 3102.135
A11: 23 | C11: 10084.95 | D11: 7187.58 | E11: 5941.47 | F11: 5151.975 | G11: 3926.67 | H11: 3141.555 | I11: 10084.95 | J11: 7187.58 | K11: 5941.47 | L11: 5151.975 | M11: 3926.67 | N11: 3141.555 | O11: 10084.95 | P11: 7187.58 | Q11: 5941.47 | R11: 5151.975 | S11: 3926.67 | T11: 3141.555
A12: 24 | C12: 10227.3 | D12: 7285.035 | E12: 6012.645 | F12: 5213.295 | G12: 3972.66 | H12: 3178.785 | I12: 10227.3 | J12: 7285.035 | K12: 6012.645 | L12: 5213.295 | M12: 3972.66 | N12: 3178.785 | O12: 10227.3 | P12: 7285.035 | Q12: 6012.645 | R12: 5213.295 | S12: 3972.66 | T12: 3178.785
A13: 25 | C13: 10375.125 | D13: 7386.87 | E13: 6086.01 | F13: 5277.9 | G13: 4021.935 | H13: 3218.205 | I13: 10375.125 | J13: 7386.87 | K13: 6086.01 | L13: 5277.9 | M13: 4021.935 | N13: 3218.205 | O13: 10375.125 | P13: 7386.87 | Q13: 6086.01 | R13: 5277.9 | S13: 4021.935 | T13: 3218.205
A14: 26 | C14: 10588.65 | D14: 7531.41 | E14: 6194.415 | F14: 5373.165 | G14: 4093.11 | H14: 3275.145 | I14: 10588.65 | J14: 7531.41 | K14: 6194.415 | L14: 5373.165 | M14: 4093.11 | N14: 3275.145 | O14: 10588.65 | P14: 7531.41 | Q14: 6194.415 | R14: 5373.165 | S14: 4093.11 | T14: 3275.145
A15: 27 | C15: 10810.935 | D15: 7682.52 | E15: 6309.39 | F15: 5469.525 | G15: 4168.665 | H15: 3335.37 | I15: 10810.935 | J15: 7682.52 | K15: 6309.39 | L15: 5469.525 | M15: 4168.665 | N15: 3335.37 | O15: 10810.935 | P15: 7682.52 | Q15: 6309.39 | R15: 5469.525 | S15: 4168.665 | T15: 3335.37
A16: 28 | C16: 11039.79 | D16: 7838.01 | E16: 6426.555 | F16: 5572.455 | G16: 4245.315 | H16: 3396.69 | I16: 11039.79 | J16: 7838.01 | K16: 6426.555 | L16: 5572.455 | M16: 4245.315 | N16: 3396.69 | O16: 11039.79 | P16: 7838.01 | Q16: 6426.555 | R16: 5572.455 | S16: 4245.315 | T16: 3396.69
A17: 29 | C17: 11279.595 | D17: 8000.07 | E17: 6550.29 | F17: 5679.765 | G17: 4328.535 | H17: 3463.485 | I17: 11279.595 | J17: 8000.07 | K17: 6550.29 | L17: 5679.765 | M17: 4328.535 | N17: 3463.485 | O17: 11279.595 | P17: 8000.07 | Q17: 6550.29 | R17: 5679.765 | S17: 4328.535 | T17: 3463.485
A18: 30 | C18: 11525.97 | D18: 8171.985 | E18: 6680.595 | F18: 5792.55 | G18: 4413.945 | H18: 3531.375 | I18: 11525.97 | J18: 8171.985 | K18: 6680.595 | L18: 5792.55 | M18: 4413.945 | N18: 3531.375 | O18: 11525.97 | P18: 8171.985 | Q18: 6680.595 | R18: 5792.55 | S18: 4413.945 | T18: 3531.375
A19: 31 | C19: 11781.105 | D19: 8346.09 | E19: 6815.28 | F19: 5908.62 | G19: 4503.735 | H19: 3603.645 | I19: 11781.105 | J19: 8346.09 | K19: 6815.28 | L19: 5908.62 | M19: 4503.735 | N19: 3603.645 | O19: 11781.105 | P19: 8346.09 | Q19: 6815.28 | R19: 5908.62 | S19: 4503.735 | T19: 3603.645
A20: 32 | C20: 12042.81 | D20: 8527.86 | E20: 6951.06 | F20: 6026.88 | G20: 4591.335 | H20: 3673.725 | I20: 12042.81 | J20: 8527.86 | K20: 6951.06 | L20: 6026.88 | M20: 4591.335 | N20: 3673.725 | O20: 12042.81 | P20: 8527.86 | Q20: 6951.06 | R20: 6026.88 | S20: 4591.335 | T20: 3673.725
A21: 33 | C21: 12314.37 | D21: 8714.01 | E21: 7095.6 | F21: 6151.71 | G21: 4688.79 | H21: 3751.47 | I21: 12314.37 | J21: 8714.01 | K21: 7095.6 | L21: 6151.71 | M21: 4688.79 | N21: 3751.47 | O21: 12314.37 | P21: 8714.01 | Q21: 7095.6 | R21: 6151.71 | S21: 4688.79 | T21: 3751.47
A22: 34 | C22: 12593.595 | D22: 8906.73 | E22: 7243.425 | F22: 6280.92 | G22: 4785.15 | H22: 3828.12 | I22: 12593.595 | J22: 8906.73 | K22: 7243.425 | L22: 6280.92 | M22: 4785.15 | N22: 3828.12 | O22: 12593.595 | P22: 8906.73 | Q22: 7243.425 | R22: 6280.92 | S22: 4785.15 | T22: 3828.12
A23: 35 | C23: 12878.295 | D23: 9104.925 | E23: 7397.82 | F23: 6415.605 | G23: 4889.175 | H23: 3911.34 | I23: 12878.295 | J23: 9104.925 | K23: 7397.82 | L23: 6415.605 | M23: 4889.175 | N23: 3911.34 | O23: 12878.295 | P23: 9104.925 | Q23: 7397.82 | R23: 6415.605 | S23: 4889.175 | T23: 3911.34
A24: 36 | C24: 13172.85 | D24: 9309.69 | E24: 7555.5 | F24: 6550.29 | G24: 4992.105 | H24: 3994.56 | I24: 13172.85 | J24: 9309.69 | K24: 7555.5 | L24: 6550.29 | M24: 4992.105 | N24: 3994.56 | O24: 13172.85 | P24: 9309.69 | Q24: 7555.5 | R24: 6550.29 | S24: 4992.105 | T24: 3994.56
A25: 37 | C25: 13476.165 | D25: 9523.215 | E25: 7717.56 | F25: 6693.735 | G25: 5099.415 | H25: 4079.97 | I25: 13476.165 | J25: 9523.215 | K25: 7717.56 | L25: 6693.735 | M25: 5099.415 | N25: 4079.97 | O25: 13476.165 | P25: 9523.215 | Q25: 7717.56 | R25: 6693.735 | S25: 5099.415 | T25: 4079.97
A26: 38 | C26: 13786.05 | D26: 9737.835 | E26: 7886.19 | F26: 6840.465 | G26: 5211.105 | H26: 4169.76 | I26: 13786.05 | J26: 9737.835 | K26: 7886.19 | L26: 6840.465 | M26: 5211.105 | N26: 4169.76 | O26: 13786.05 | P26: 9737.835 | Q26: 7886.19 | R26: 6840.465 | S26: 5211.105 | T26: 4169.76
A27: 39 | C27: 14105.79 | D27: 9962.31 | E27: 8059.2 | F27: 6988.29 | G27: 5323.89 | H27: 4259.55 | I27: 14105.79 | J27: 9962.31 | K27: 8059.2 | L27: 6988.29 | M27: 5323.89 | N27: 4259.55 | O27: 14105.79 | P27: 9962.31 | Q27: 8059.2 | R27: 6988.29 | S27: 5323.89 | T27: 4259.55
A28: 40 | C28: 14432.1 | D28: 10191.165 | E28: 8236.59 | F28: 7141.59 | G28: 5443.245 | H28: 4354.815 | I28: 14432.1 | J28: 10191.165 | K28: 8236.59 | L28: 7141.59 | M28: 5443.245 | N28: 4354.815 | O28: 14432.1 | P28: 10191.165 | Q28: 8236.59 | R28: 7141.59 | S28: 5443.245 | T28: 4354.815
A29: 41 | C29: 14768.265 | D29: 10426.59 | E29: 8420.55 | F29: 7301.46 | G29: 5564.79 | H29: 4452.27 | I29: 14768.265 | J29: 10426.59 | K29: 8420.55 | L29: 7301.46 | M29: 5564.79 | N29: 4452.27 | O29: 14768.265 | P29: 10426.59 | Q29: 8420.55 | R29: 7301.46 | S29: 5564.79 | T29: 4452.27
A30: 42 | C30: 15109.905 | D30: 10666.395 | E30: 8608.89 | F30: 7464.615 | G30: 5688.525 | H30: 4550.82 | I30: 15109.905 | J30: 10666.395 | K30: 8608.89 | L30: 7464.615 | M30: 5688.525 | N30: 4550.82 | O30: 15109.905 | P30: 10666.395 | Q30: 8608.89 | R30: 7464.615 | S30: 5688.525 | T30: 4550.82
A31: 43 | C31: 15459.21 | D31: 10914.96 | E31: 8802.705 | F31: 7632.15 | G31: 5816.64 | H31: 4653.75 | I31: 15459.21 | J31: 10914.96 | K31: 8802.705 | L31: 7632.15 | M31: 5816.64 | N31: 4653.75 | O31: 15459.21 | P31: 10914.96 | Q31: 8802.705 | R31: 7632.15 | S31: 5816.64 | T31: 4653.75
A32: 44 | C32: 15818.37 | D32: 11165.715 | E32: 8998.71 | F32: 7804.065 | G32: 5946.945 | H32: 4757.775 | I32: 15818.37 | J32: 11165.715 | K32: 8998.71 | L32: 7804.065 | M32: 5946.945 | N32: 4757.775 | O32: 15818.37 | P32: 11165.715 | Q32: 8998.71 | R32: 7804.065 | S32: 5946.945 | T32: 4757.775
A33: 45 | C33: 16185.195 | D33: 11426.325 | E33: 9203.475 | F33: 7978.17 | G33: 6079.44 | H33: 4863.99 | I33: 16185.195 | J33: 11426.325 | K33: 9203.475 | L33: 7978.17 | M33: 6079.44 | N33: 4863.99 | O33: 16185.195 | P33: 11426.325 | Q33: 9203.475 | R33: 7978.17 | S33: 6079.44 | T33: 4863.99
A34: 46 | C34: 16559.685 | D34: 11690.22 | E34: 9411.525 | F34: 8162.13 | G34: 6217.41 | H34: 4974.585 | I34: 16559.685 | J34: 11690.22 | K34: 9411.525 | L34: 8162.13 | M34: 6217.41 | N34: 4974.585 | O34: 16559.685 | P34: 11690.22 | Q34: 9411.525 | R34: 8162.13 | S34: 6217.41 | T34: 4974.585
A35: 47 | C35: 16942.935 | D35: 11962.875 | E35: 9622.86 | F35: 8342.805 | G35: 6358.665 | H35: 5087.37 | I35: 16942.935 | J35: 11962.875 | K35: 9622.86 | L35: 8342.805 | M35: 6358.665 | N35: 5087.37 | O35: 16942.935 | P35: 11962.875 | Q35: 9622.86 | R35: 8342.805 | S35: 6358.665 | T35: 5087.37
A36: 48 | C36: 17333.85 | D36: 12237.72 | E36: 9839.67 | F36: 8531.145 | G36: 6499.92 | H36: 5200.155 | I36: 17333.85 | J36: 12237.72 | K36: 9839.67 | L36: 8531.145 | M36: 6499.92 | N36: 5200.155 | O36: 17333.85 | P36: 12237.72 | Q36: 9839.67 | R36: 8531.145 | S36: 6499.92 | T36: 5200.155
A37: 49 | C37: 17733.525 | D37: 12522.42 | E37: 10063.05 | F37: 8726.055 | G37: 6647.745 | H37: 5318.415 | I37: 17733.525 | J37: 12522.42 | K37: 10063.05 | L37: 8726.055 | M37: 6647.745 | N37: 5318.415 | O37: 17733.525 | P37: 12522.42 | Q37: 10063.05 | R37: 8726.055 | S37: 6647.745 | T37: 5318.415
A38: 50 | C38: 18138.675 | D38: 12809.31 | E38: 10291.905 | F38: 8924.25 | G38: 6799.95 | H38: 5439.96 | I38: 18138.675 | J38: 12809.31 | K38: 10291.905 | L38: 8924.25 | M38: 6799.95 | N38: 5439.96 | O38: 18138.675 | P38: 12809.31 | Q38: 10291.905 | R38: 8924.25 | S38: 6799.95 | T38: 5439.96
A39: 51 | C39: 18554.775 | D39: 13103.865 | E39: 10526.235 | F39: 9126.825 | G39: 6953.25 | H39: 5562.6 | I39: 18554.775 | J39: 13103.865 | K39: 10526.235 | L39: 9126.825 | M39: 6953.25 | N39: 5562.6 | O39: 18554.775 | P39: 13103.865 | Q39: 10526.235 | R39: 9126.825 | S39: 6953.25 | T39: 5562.6
A40: 52 | C40: 18976.35 | D40: 13404.99 | E40: 10759.47 | F40: 9329.4 | G40: 7109.835 | H40: 5688.525 | I40: 18976.35 | J40: 13404.99 | K40: 10759.47 | L40: 9329.4 | M40: 7109.835 | N40: 5688.525 | O40: 18976.35 | P40: 13404.99 | Q40: 10759.47 | R40: 9329.4 | S40: 7109.835 | T40: 5688.525
A41: 53 | C41: 19407.78 | D41: 13714.875 | E41: 11004.75 | F41: 9541.83 | G41: 7270.8 | H41: 5816.64 | I41: 19407.78 | J41: 13714.875 | K41: 11004.75 | L41: 9541.83 | M41: 7270.8 | N41: 5816.64 | O41: 19407.78 | P41: 13714.875 | Q41: 11004.75 | R41: 9541.83 | S41: 7270.8 | T41: 5816.64
A42: 54 | C42: 19846.875 | D42: 14026.95 | E42: 11250.03 | F42: 9754.26 | G42: 7433.955 | H42: 5948.04 | I42: 19846.875 | J42: 14026.95 | K42: 11250.03 | L42: 9754.26 | M42: 7433.955 | N42: 5948.04 | O42: 19846.875 | P42: 14026.95 | Q42: 11250.03 | R42: 9754.26 | S42: 7433.955 | T42: 5948.04
A43: 55 | C43: 20294.73 | D43: 14344.5 | E43: 11504.07 | F43: 9974.355 | G43: 7600.395 | H43: 6080.535 | I43: 20294.73 | J43: 14344.5 | K43: 11504.07 | L43: 9974.355 | M43: 7600.395 | N43: 6080.535 | O43: 20294.73 | P43: 14344.5 | Q43: 11504.07 | R43: 9974.355 | S43: 7600.395 | T43: 6080.535
A44: 56 | C44: 20746.965 | D44: 14668.62 | E44: 11760.3 | F44: 10197.735 | G44: 7771.215 | H44: 6217.41 | I44: 20746.965 | J44: 14668.62 | K44: 11760.3 | L44: 10197.735 | M44: 7771.215 | N44: 6217.41 | O44: 20746.965 | P44: 14668.62 | Q44: 11760.3 | R44: 10197.735 | S44: 7771.215 | T44: 6217.41
A45: 57 | C45: 21211.245 | D45: 14999.31 | E45: 12023.1 | F45: 10423.305 | G45: 7943.13 | H45: 6355.38 | I45: 21211.245 | J45: 14999.31 | K45: 12023.1 | L45: 10423.305 | M45: 7943.13 | N45: 6355.38 | O45: 21211.245 | P45: 14999.31 | Q45: 12023.1 | R45: 10423.305 | S45: 7943.13 | T45: 6355.38
A46: 58 | C46: 21683.19 | D46: 15335.475 | E46: 12290.28 | F46: 10656.54 | G46: 8119.425 | H46: 6495.54 | I46: 21683.19 | J46: 15335.475 | K46: 12290.28 | L46: 10656.54 | M46: 8119.425 | N46: 6495.54 | O46: 21683.19 | P46: 15335.475 | Q46: 12290.28 | R46: 10656.54 | S46: 8119.425 | T46: 6495.54
A47: 59 | C47: 22160.61 | D47: 15678.21 | E47: 12560.745 | F47: 10891.965 | G47: 8297.91 | H47: 6638.985 | I47: 22160.61 | J47: 15678.21 | K47: 12560.745 | L47: 10891.965 | M47: 8297.91 | N47: 6638.985 | O47: 22160.61 | P47: 15678.21 | Q47: 12560.745 | R47: 10891.965 | S47: 8297.91 | T47: 6638.985
A48: 60 | C48: 22646.79 | D48: 16027.515 | E48: 12838.875 | F48: 11131.77 | G48: 8481.87 | H48: 6785.715 | I48: 22646.79 | J48: 16027.515 | K48: 12838.875 | L48: 11131.77 | M48: 8481.87 | N48: 6785.715 | O48: 22646.79 | P48: 16027.515 | Q48: 12838.875 | R48: 11131.77 | S48: 8481.87 | T48: 6785.715
A49: 61 | C49: 25203.615 | D49: 17860.545 | E49: 14298.51 | F49: 12398.685 | G49: 9448.755 | H49: 7559.88 | I49: 25203.615 | J49: 17860.545 | K49: 14298.51 | L49: 12398.685 | M49: 9448.755 | N49: 7559.88 | O49: 25203.615 | P49: 17860.545 | Q49: 14298.51 | R49: 12398.685 | S49: 9448.755 | T49: 7559.88
A50: 62 | C50: 27958.635 | D50: 19845.78 | E50: 15884.07 | F50: 13772.91 | G50: 10493.385 | H50: 8395.365 | I50: 27958.635 | J50: 19845.78 | K50: 15884.07 | L50: 13772.91 | M50: 10493.385 | N50: 8395.365 | O50: 27958.635 | P50: 19845.78 | Q50: 15884.07 | R50: 13772.91 | S50: 10493.385 | T50: 8395.365
A51: 63 | C51: 30916.23 | D51: 21977.745 | E51: 17590.08 | F51: 15252.255 | G51: 11622.33 | H51: 9298.74 | I51: 30916.23 | J51: 21977.745 | K51: 17590.08 | L51: 15252.255 | M51: 11622.33 | N51: 9298.74 | O51: 30916.23 | P51: 21977.745 | Q51: 17590.08 | R51: 15252.255 | S51: 11622.33 | T51: 9298.74
A52: 64 | C52: 34072.02 | D52: 24260.82 | E52: 19419.825 | F52: 16840.005 | G52: 12832.305 | H52: 10266.72 | I52: 34072.02 | J52: 24260.82 | K52: 19419.825 | L52: 16840.005 | M52: 12832.305 | N52: 10266.72 | O52: 34072.02 | P52: 24260.82 | Q52: 19419.825 | R52: 16840.005 | S52: 12832.305 | T52: 10266.72
A53: 65 | C53: 37428.195 | D53: 26693.91 | E53: 21375.495 | F53: 18533.97 | G53: 14122.215 | H53: 11298.21 | I53: 37428.195 | J53: 26693.91 | K53: 21375.495 | L53: 18533.97 | M53: 14122.215 | N53: 11298.21 | O53: 37428.195 | P53: 26693.91 | Q53: 21375.495 | R53: 18533.97 | S53: 14122.215 | T53: 11298.21
A54: 66 | C54: 40985.85 | D54: 29274.825 | E54: 23454.9 | F54: 20339.625 | G54: 15497.535 | H54: 12398.685 | I54: 40985.85 | J54: 29274.825 | K54: 23454.9 | L54: 20339.625 | M54: 15497.535 | N54: 12398.685 | O54: 40985.85 | P54: 29274.825 | Q54: 23454.9 | R54: 20339.625 | S54: 15497.535 | T54: 12398.685
A55: 67 | C55: 44744.985 | D55: 32005.755 | E55: 25656.945 | F55: 22248.21 | G55: 16951.695 | H55: 13561.575 | I55: 44744.985 | J55: 32005.755 | K55: 25656.945 | L55: 22248.21 | M55: 16951.695 | N55: 13561.575 | O55: 44744.985 | P55: 32005.755 | Q55: 25656.945 | R55: 22248.21 | S55: 16951.695 | T55: 13561.575
A56: 68 | C56: 48703.41 | D56: 34887.795 | E56: 27981.63 | F56: 24263.01 | G56: 18486.885 | H56: 14790.165 | I56: 48703.41 | J56: 34887.795 | K56: 27981.63 | L56: 24263.01 | M56: 18486.885 | N56: 14790.165 | O56: 48703.41 | P56: 34887.795 | Q56: 27981.63 | R56: 24263.01 | S56: 18486.885 | T56: 14790.165
A57: 69 | C57: 52861.125 | D57: 37918.755 | E57: 30433.335 | F57: 26388.405 | G57: 20106.39 | H57: 16085.55 | I57: 52861.125 | J57: 37918.755 | K57: 30433.335 | L57: 26388.405 | M57: 20106.39 | N57: 16085.55 | O57: 52861.125 | P57: 37918.755 | Q57: 30433.335 | R57: 26388.405 | S57: 20106.39 | T57: 16085.55
A58: 70 | C58: 57221.415 | D58: 41100.825 | E58: 33006.585 | F58: 28620.015 | G58: 21808.02 | H58: 17446.635 | I58: 57221.415 | J58: 41100.825 | K58: 33006.585 | L58: 28620.015 | M58: 21808.02 | N58: 17446.635 | O58: 57221.415 | P58: 41100.825 | Q58: 33006.585 | R58: 28620.015 | S58: 21808.02 | T58: 17446.635
A59: 71 | C59: 61783.185 | D59: 44430.72 | E59: 35704.665 | F59: 30960.03 | G59: 23590.68 | H59: 18873.42 | I59: 61783.185 | J59: 44430.72 | K59: 35704.665 | L59: 30960.03 | M59: 23590.68 | N59: 18873.42 | O59: 61783.185 | P59: 44430.72 | Q59: 35704.665 | R59: 30960.03 | S59: 23590.68 | T59: 18873.42
A60: 72 | C60: 66542.055 | D60: 47913.915 | E60: 38525.385 | F60: 33405.165 | G60: 25453.275 | H60: 20362.62 | I60: 66542.055 | J60: 47913.915 | K60: 38525.385 | L60: 33405.165 | M60: 25453.275 | N60: 20362.62 | O60: 66542.055 | P60: 47913.915 | Q60: 38525.385 | R60: 33405.165 | S60: 25453.275 | T60: 20362.62
A61: 73 | C61: 71502.405 | D61: 51542.745 | E61: 41468.745 | F61: 35957.61 | G61: 27397.995 | H61: 21918.615 | I61: 71502.405 | J61: 51542.745 | K61: 41468.745 | L61: 35957.61 | M61: 27397.995 | N61: 21918.615 | O61: 71502.405 | P61: 51542.745 | Q61: 41468.745 | R61: 35957.61 | S61: 27397.995 | T61: 21918.615
A62: 74 | C62: 76664.235 | D62: 55322.685 | E62: 44539.125 | F62: 38620.65 | G62: 29427.03 | H62: 23542.5 | I62: 76664.235 | J62: 55322.685 | K62: 44539.125 | L62: 38620.65 | M62: 29427.03 | N62: 23542.5 | O62: 76664.235 | P62: 55322.685 | Q62: 44539.125 | R62: 38620.65 | S62: 29427.03 | T62: 23542.5
A63: 75 | C63: 82026.45 | D63: 59253.735 | E63: 47732.145 | F63: 41387.715 | G63: 31534.905 | H63: 25228.8 | I63: 82026.45 | J63: 59253.735 | K63: 47732.145 | L63: 41387.715 | M63: 31534.905 | N63: 25228.8 | O63: 82026.45 | P63: 59253.735 | Q63: 47732.145 | R63: 41387.715 | S63: 31534.905 | T63: 25228.8
A64: 76 | C64: 82026.45 | D64: 59253.735 | E64: 47732.145 | F64: 41387.715 | G64: 31534.905 | H64: 25228.8 | I64: 82026.45 | J64: 59253.735 | K64: 47732.145 | L64: 41387.715 | M64: 31534.905 | N64: 25228.8 | O64: 82026.45 | P64: 59253.735 | Q64: 47732.145 | R64: 41387.715 | S64: 31534.905 | T64: 25228.8
A65: 77 | C65: 82026.45 | D65: 59253.735 | E65: 47732.145 | F65: 41387.715 | G65: 31534.905 | H65: 25228.8 | I65: 82026.45 | J65: 59253.735 | K65: 47732.145 | L65: 41387.715 | M65: 31534.905 | N65: 25228.8 | O65: 82026.45 | P65: 59253.735 | Q65: 47732.145 | R65: 41387.715 | S65: 31534.905 | T65: 25228.8
A66: 78 | C66: 82026.45 | D66: 59253.735 | E66: 47732.145 | F66: 41387.715 | G66: 31534.905 | H66: 25228.8 | I66: 82026.45 | J66: 59253.735 | K66: 47732.145 | L66: 41387.715 | M66: 31534.905 | N66: 25228.8 | O66: 82026.45 | P66: 59253.735 | Q66: 47732.145 | R66: 41387.715 | S66: 31534.905 | T66: 25228.8
A67: 79 | C67: 82026.45 | D67: 59253.735 | E67: 47732.145 | F67: 41387.715 | G67: 31534.905 | H67: 25228.8 | I67: 82026.45 | J67: 59253.735 | K67: 47732.145 | L67: 41387.715 | M67: 31534.905 | N67: 25228.8 | O67: 82026.45 | P67: 59253.735 | Q67: 47732.145 | R67: 41387.715 | S67: 31534.905 | T67: 25228.8
A68: 80 | C68: 82026.45 | D68: 59253.735 | E68: 47732.145 | F68: 41387.715 | G68: 31534.905 | H68: 25228.8 | I68: 82026.45 | J68: 59253.735 | K68: 47732.145 | L68: 41387.715 | M68: 31534.905 | N68: 25228.8 | O68: 82026.45 | P68: 59253.735 | Q68: 47732.145 | R68: 41387.715 | S68: 31534.905 | T68: 25228.8
A69: 81 | C69: 82026.45 | D69: 59253.735 | E69: 47732.145 | F69: 41387.715 | G69: 31534.905 | H69: 25228.8 | I69: 82026.45 | J69: 59253.735 | K69: 47732.145 | L69: 41387.715 | M69: 31534.905 | N69: 25228.8 | O69: 82026.45 | P69: 59253.735 | Q69: 47732.145 | R69: 41387.715 | S69: 31534.905 | T69: 25228.8
A70: 82 | C70: 82026.45 | D70: 59253.735 | E70: 47732.145 | F70: 41387.715 | G70: 31534.905 | H70: 25228.8 | I70: 82026.45 | J70: 59253.735 | K70: 47732.145 | L70: 41387.715 | M70: 31534.905 | N70: 25228.8 | O70: 82026.45 | P70: 59253.735 | Q70: 47732.145 | R70: 41387.715 | S70: 31534.905 | T70: 25228.8
A71: 83 | C71: =O71 -> 82026.45 | D71: 59253.735 | E71: 47732.145 | F71: 41387.715 | G71: =S71 -> 31534.905 | H71: 25228.8 | I71: 82026.45 | J71: 59253.735 | K71: 47732.145 | L71: 41387.715 | M71: 31534.905 | N71: 25228.8 | O71: =I71*$P$4 -> 82026.45 | P71: 59253.735 | Q71: 47732.145 | R71: 41387.715 | S71: =M71*$P$4 -> 31534.905 | T71: 25228.8
A72: 84 | B72: o más | C72: 82026.45 | D72: 59253.735 | E72: 47732.145 | F72: 41387.715 | G72: 31534.905 | H72: 25228.8 | I72: 82026.45 | J72: 59253.735 | K72: 47732.145 | L72: 41387.715 | M72: 31534.905 | N72: 25228.8 | O72: 82026.45 | P72: 59253.735 | Q72: 47732.145 | R72: 41387.715 | S72: 31534.905 | T72: 25228.8
A73: 1 | B73: Hijo | C73: 4242.03 | D73: 3037.53 | E73: 2528.355 | F73: 2192.19 | G73: 1672.065 | H73: 1338.09 | I73: 4242.03 | J73: 3037.53 | K73: 2528.355 | L73: 2192.19 | M73: 1672.065 | N73: 1338.09 | O73: 4242.03 | P73: 3037.53 | Q73: 2528.355 | R73: 2192.19 | S73: 1672.065 | T73: 1338.09
A74: 2 | B74: Hijos | C74: 7208.385 | D74: 5164.02 | E74: 4296.78 | F74: 3725.19 | G74: 2840.43 | H74: 2273.22 | I74: 7208.385 | J74: 5164.02 | K74: 4296.78 | L74: 3725.19 | M74: 2840.43 | N74: 2273.22 | O74: 7208.385 | P74: 5164.02 | Q74: 4296.78 | R74: 3725.19 | S74: 2840.43 | T74: 2273.22
A75: 3 | B75: Hijos o más | C75: 10175.835 | D75: 7289.415 | E75: 6067.395 | F75: 5259.285 | G75: 4008.795 | H75: 3207.255 | I75: 10175.835 | J75: 7289.415 | K75: 6067.395 | L75: 5259.285 | M75: 4008.795 | N75: 3207.255 | O75: 10175.835 | P75: 7289.415 | Q75: 6067.395 | R75: 5259.285 | S75: 4008.795 | T75: 3207.255
A77: BUPA GLOBAL ELITE - MENSUALES
A79: EDAD | C79: 1000 | D79: 2000 | E79: 3500
A80: 18 | C80: =C6*$K$2 -> 879.431 | D80: 629.9608 | E80: 524.1838 | F80: 454.5856 | G80: 346.458 | H80: 277.1664
A81: 19 | C81: =C7*$K$2 -> 891.0818 | D81: 637.5236 | E81: 529.7026 | F81: 459.4912 | G81: 350.035 | H81: 280.028
A82: 20 | C82: =C8*$K$2 -> 902.937 | D82: 645.5974 | E82: 535.6302 | F82: 464.499 | G82: 353.8164 | H82: 283.094
A83: 21 | C83: =C9*$K$2 -> 915.201 | D83: 653.7734 | E83: 541.66 | F83: 469.7112 | G83: 357.9044 | H83: 286.3644
A84: 22 | C84: =C10*$K$2 -> 927.8738 | D84: 662.256 | E84: 547.8942 | F84: 475.0256 | G84: 361.8902 | H84: 289.5326
A85: 23 | C85: =C11*$K$2 -> 941.262 | D85: 670.8408 | E85: 554.5372 | F85: 480.851 | G85: 366.4892 | H85: 293.2118
A86: 24 | C86: =C12*$K$2 -> 954.548 | D86: 679.9366 | E86: 561.1802 | F86: 486.5742 | G86: 370.7816 | H86: 296.6866
A87: 25 | C87: =C13*$K$2 -> 968.345 | D87: 689.4412 | E87: 568.0276 | F87: 492.604 | G87: 375.3806 | H87: 300.3658
A88: 26 | C88: =C14*$K$2 -> 988.274 | D88: 702.9316 | E88: 578.1454 | F88: 501.4954 | G88: 382.0236 | H88: 305.6802
A89: 27 | C89: =C15*$K$2 -> 1009.0206 | D89: 717.0352 | E89: 588.8764 | F89: 510.489 | G89: 389.0754 | H89: 311.3012
A90: 28 | C90: =C16*$K$2 -> 1030.3804 | D90: 731.5476 | E90: 599.8118 | F90: 520.0958 | G90: 396.2294 | H90: 317.0244
A91: 29 | C91: =C17*$K$2 -> 1052.7622 | D91: 746.6732 | E91: 611.3604 | F91: 530.1114 | G91: 403.9966 | H91: 323.2586
A92: 30 | C92: =C18*$K$2 -> 1075.7572 | D92: 762.7186 | E92: 623.5222 | F92: 540.638 | G92: 411.9682 | H92: 329.595
A93: 31 | C93: =C19*$K$2 -> 1099.5698 | D93: 778.9684 | E93: 636.0928 | F93: 551.4712 | G93: 420.3486 | H93: 336.3402
A94: 32 | C94: =C20*$K$2 -> 1123.9956 | D94: 795.9336 | E94: 648.7656 | F94: 562.5088 | G94: 428.5246 | H94: 342.881
A95: 33 | C95: =C21*$K$2 -> 1149.3412 | D95: 813.3076 | E95: 662.256 | F95: 574.1596 | G95: 437.6204 | H95: 350.1372
A96: 34 | C96: =C22*$K$2 -> 1175.4022 | D96: 831.2948 | E96: 676.053 | F96: 586.2192 | G96: 446.614 | H96: 357.2912
A97: 35 | C97: =C23*$K$2 -> 1201.9742 | D97: 849.793 | E97: 690.4632 | F97: 598.7898 | G97: 456.323 | H97: 365.0584
A98: 36 | C98: =C24*$K$2 -> 1229.466 | D98: 868.9044 | E98: 705.18 | F98: 611.3604 | G98: 465.9298 | H98: 372.8256
A99: 37 | C99: =C25*$K$2 -> 1257.7754 | D99: 888.8334 | E99: 720.3056 | F99: 624.7486 | G99: 475.9454 | H99: 380.7972
A100: 38 | C100: =C26*$K$2 -> 1286.698 | D100: 908.8646 | E100: 736.0444 | F100: 638.4434 | G100: 486.3698 | H100: 389.1776
A101: 39 | C101: =C27*$K$2 -> 1316.5404 | D101: 929.8156 | E101: 752.192 | F101: 652.2404 | G101: 496.8964 | H101: 397.558
A102: 40 | C102: =C28*$K$2 -> 1346.996 | D102: 951.1754 | E102: 768.7484 | F102: 666.5484 | G102: 508.0362 | H102: 406.4494
A103: 41 | C103: =C29*$K$2 -> 1378.3714 | D103: 973.1484 | E103: 785.918 | F103: 681.4696 | G103: 519.3804 | H103: 415.5452
A104: 42 | C104: =C30*$K$2 -> 1410.2578 | D104: 995.5302 | E104: 803.4964 | F104: 696.6974 | G104: 530.929 | H104: 424.7432
A105: 43 | C105: =C31*$K$2 -> 1442.8596 | D105: 1018.7296 | E105: 821.5858 | F105: 712.334 | G105: 542.8864 | H105: 434.35
A106: 44 | C106: =C32*$K$2 -> 1476.3812 | D106: 1042.1334 | E106: 839.8796 | F106: 728.3794 | G106: 555.0482 | H106: 444.059
A107: 45 | C107: =C33*$K$2 -> 1510.6182 | D107: 1066.457 | E107: 858.991 | F107: 744.6292 | G107: 567.4144 | H107: 453.9724
A108: 46 | C108: =C34*$K$2 -> 1545.5706 | D108: 1091.0872 | E108: 878.409 | F108: 761.7988 | G108: 580.2916 | H108: 464.2946
A109: 47 | C109: =C35*$K$2 -> 1581.3406 | D109: 1116.535 | E109: 898.1336 | F109: 778.6618 | G109: 593.4754 | H109: 474.8212
A110: 48 | C110: =C36*$K$2 -> 1617.826 | D110: 1142.1872 | E110: 918.3692 | F110: 796.2402 | G110: 606.6592 | H110: 485.3478
A111: 49 | C111: =C37*$K$2 -> 1655.129 | D111: 1168.7592 | E111: 939.218 | F111: 814.4318 | G111: 620.4562 | H111: 496.3854
A112: 50 | C112: =C38*$K$2 -> 1692.943 | D112: 1195.5356 | E112: 960.5778 | F112: 832.93 | G112: 634.662 | H112: 507.7296
A113: 51 | C113: =C39*$K$2 -> 1731.779 | D113: 1223.0274 | E113: 982.4486 | F113: 851.837 | G113: 648.97 | H113: 519.176
A114: 52 | C114: =C40*$K$2 -> 1771.126 | D114: 1251.1324 | E114: 1004.2172 | F114: 870.744 | G114: 663.5846 | H114: 530.929
A115: 53 | C115: =C41*$K$2 -> 1811.3928 | D115: 1280.055 | E115: 1027.11 | F115: 890.5708 | G115: 678.608 | H115: 542.8864
A116: 54 | C116: =C42*$K$2 -> 1852.375 | D116: 1309.182 | E116: 1050.0028 | F116: 910.3976 | G116: 693.8358 | H116: 555.1504
A117: 55 | C117: =C43*$K$2 -> 1894.1748 | D117: 1338.82 | E117: 1073.7132 | F117: 930.9398 | G117: 709.3702 | H117: 567.5166
A118: 56 | C118: =C44*$K$2 -> 1936.3834 | D118: 1369.0712 | E118: 1097.628 | F118: 951.7886 | G118: 725.3134 | H118: 580.2916
A119: 57 | C119: =C45*$K$2 -> 1979.7162 | D119: 1399.9356 | E119: 1122.156 | F119: 972.8418 | G119: 741.3588 | H119: 593.1688
A120: 58 | C120: =C46*$K$2 -> 2023.7644 | D120: 1431.311 | E120: 1147.0928 | F120: 994.6104 | G120: 757.813 | H120: 606.2504
A121: 59 | C121: =C47*$K$2 -> 2068.3236 | D121: 1463.2996 | E121: 1172.3362 | F121: 1016.5834 | G121: 774.4716 | H121: 619.6386
A122: 60 | C122: =C48*$K$2 -> 2113.7004 | D122: 1495.9014 | E122: 1198.295 | F122: 1038.9652 | G122: 791.6412 | H122: 633.3334
A123: 61 | C123: =C49*$K$2 -> 2352.3374 | D123: 1666.9842 | E123: 1334.5276 | F123: 1157.2106 | G123: 881.8838 | H123: 705.5888
A124: 62 | C124: =C50*$K$2 -> 2609.4726 | D124: 1852.2728 | E124: 1482.5132 | F124: 1285.4716 | G124: 979.3826 | H124: 783.5674
A125: 63 | C125: =C51*$K$2 -> 2885.5148 | D125: 2051.2562 | E125: 1641.7408 | F125: 1423.5438 | G125: 1084.7508 | H125: 867.8824
A126: 64 | C126: =C52*$K$2 -> 3180.0552 | D126: 2264.3432 | E126: 1812.517 | F126: 1571.7338 | G126: 1197.6818 | H126: 958.2272
A127: 65 | C127: =C53*$K$2 -> 3493.2982 | D127: 2491.4316 | E127: 1995.0462 | F127: 1729.8372 | G127: 1318.0734 | H127: 1054.4996
A128: 66 | C128: =C54*$K$2 -> 3825.346 | D128: 2732.317 | E128: 2189.124 | F128: 1898.365 | G128: 1446.4366 | H128: 1157.2106
A129: 67 | C129: =C55*$K$2 -> 4176.1986 | D129: 2987.2038 | E129: 2394.6482 | F129: 2076.4996 | G129: 1582.1582 | H129: 1265.747
A130: 68 | C130: =C56*$K$2 -> 4545.6516 | D130: 3256.1942 | E130: 2611.6188 | F130: 2264.5476 | G130: 1725.4426 | H130: 1380.4154
A131: 69 | C131: =C57*$K$2 -> 4933.705 | D131: 3539.0838 | E131: 2840.4446 | F131: 2462.9178 | G131: 1876.5964 | H131: 1501.318
A132: 70 | C132: =C58*$K$2 -> 5340.6654 | D132: 3836.077 | E132: 3080.6146 | F132: 2671.2014 | G132: 2035.4152 | H132: 1628.3526
A133: 71 | C133: =C59*$K$2 -> 5766.4306 | D133: 4146.8672 | E133: 3332.4354 | F133: 2889.6028 | G133: 2201.7968 | H133: 1761.5192
A134: 72 | C134: =C60*$K$2 -> 6210.5918 | D134: 4471.9654 | E134: 3595.7026 | F134: 3117.8154 | G134: 2375.639 | H134: 1900.5112
A135: 73 | C135: =C61*$K$2 -> 6673.5578 | D135: 4810.6562 | E135: 3870.4162 | F135: 3356.0436 | G135: 2557.1462 | H135: 2045.7374
A136: 74 | C136: =C62*$K$2 -> 7155.3286 | D136: 5163.4506 | E136: 4156.985 | F136: 3604.594 | G136: 2746.5228 | H136: 2197.3
A137: 75 | C137: =C63*$K$2 -> 7655.802 | D137: 5530.3486 | E137: 4455.0002 | F137: 3862.8534 | G137: 2943.2578 | H137: 2354.688
A138: 76 | C138: =C64*$K$2 -> 7655.802 | D138: 5530.3486 | E138: 4455.0002 | F138: 3862.8534 | G138: 2943.2578 | H138: 2354.688
A139: 77 | C139: =C65*$K$2 -> 7655.802 | D139: 5530.3486 | E139: 4455.0002 | F139: 3862.8534 | G139: 2943.2578 | H139: 2354.688
A140: 78 | C140: =C66*$K$2 -> 7655.802 | D140: 5530.3486 | E140: 4455.0002 | F140: 3862.8534 | G140: 2943.2578 | H140: 2354.688
A141: 79 | C141: =C67*$K$2 -> 7655.802 | D141: 5530.3486 | E141: 4455.0002 | F141: 3862.8534 | G141: 2943.2578 | H141: 2354.688
A142: 80 | C142: =C68*$K$2 -> 7655.802 | D142: 5530.3486 | E142: 4455.0002 | F142: 3862.8534 | G142: 2943.2578 | H142: 2354.688
A143: 81 | C143: =C69*$K$2 -> 7655.802 | D143: 5530.3486 | E143: 4455.0002 | F143: 3862.8534 | G143: 2943.2578 | H143: 2354.688
A144: 82 | C144: =C70*$K$2 -> 7655.802 | D144: 5530.3486 | E144: 4455.0002 | F144: 3862.8534 | G144: 2943.2578 | H144: 2354.688
A145: 83 | C145: =C71*$K$2 -> 7655.802 | D145: 5530.3486 | E145: 4455.0002 | F145: 3862.8534 | G145: 2943.2578 | H145: 2354.688
A146: 84 | B146: o más | C146: =C72*$K$2 -> 7655.802 | D146: 5530.3486 | E146: 4455.0002 | F146: 3862.8534 | G146: 2943.2578 | H146: 2354.688
A147: 1 | B147: Hijo | C147: =C73*$K$2 -> 395.9228 | D147: 283.5028 | E147: 235.9798 | F147: 204.6044 | G147: 156.0594 | H147: 124.8884
A148: 2 | B148: Hijos | C148: =C74*$K$2 -> 672.7826 | D148: 481.9752 | E148: 401.0328 | F148: 347.6844 | G148: 265.1068 | H148: 212.1672
A149: 3 | B149: Hijos o más | C149: =C75*$K$2 -> 949.7446 | D149: 680.3454 | E149: 566.2902 | F149: 490.8666 | G149: 374.1542 | H149: 299.3438
A152: BUPA GLOBAL PREMIER
A153: TARIFAS ANUALES
A155: EDAD | C155: 2000 | D155: 3500 | E155: 5000 | F155: 10000 | I155: TARIFAS BASE | N155: TARIFAS BASE COND ESCUENTO
A156: 18 | C156: =N156 -> 5458.575 | D156: =O156 -> 4554.105 | E156: =P156 -> 3949.665 | F156: =Q156 -> 2886.42 | G156: =R156 -> 2309.355 | I156: 5458.575 | J156: 4554.105 | K156: 3949.665 | L156: 2886.42 | M156: 2309.355 | N156: =I156*$Q$4 -> 5458.575 | O156: =J156*$Q$4 -> 4554.105 | P156: =K156*$Q$4 -> 3949.665 | Q156: =L156*$Q$4 -> 2886.42 | R156: =M156*$Q$4 -> 2309.355
A157: 19 | C157: =N157 -> 5527.56 | D157: =O157 -> 4603.38 | E157: =P157 -> 3987.99 | F157: =Q157 -> 2915.985 | G157: =R157 -> 2333.445 | I157: 5527.56 | J157: 4603.38 | K157: 3987.99 | L157: 2915.985 | M157: 2333.445 | N157: =I157*$Q$4 -> 5527.56 | O157: =J157*$Q$4 -> 4603.38 | P157: =K157*$Q$4 -> 3987.99 | Q157: =L157*$Q$4 -> 2915.985 | R157: =M157*$Q$4 -> 2333.445
A158: 20 | C158: 5595.45 | D158: 4652.655 | E158: 4027.41 | F158: 2943.36 | G158: 2355.345 | I158: 5595.45 | J158: 4652.655 | K158: 4027.41 | L158: 2943.36 | M158: 2355.345 | N158: 5595.45 | O158: 4652.655 | P158: 4027.41 | Q158: 2943.36 | R158: 2355.345
A159: 21 | C159: 5665.53 | D159: 4705.215 | E159: 4069.02 | F159: 2974.02 | G159: 2379.435 | I159: 5665.53 | J159: 4705.215 | K159: 4069.02 | L159: 2974.02 | M159: 2379.435 | N159: 5665.53 | O159: 4705.215 | P159: 4069.02 | Q159: 2974.02 | R159: 2379.435
A160: 22 | C160: 5737.8 | D160: 4758.87 | E160: 4111.725 | F160: 3003.585 | G160: 2403.525 | I160: 5737.8 | J160: 4758.87 | K160: 4111.725 | L160: 3003.585 | M160: 2403.525 | N160: 5737.8 | O160: 4758.87 | P160: 4111.725 | Q160: 3003.585 | R160: 2403.525
A161: 23 | C161: 5814.45 | D161: 4816.905 | E161: 4157.715 | F161: 3038.625 | G161: 2430.9 | I161: 5814.45 | J161: 4816.905 | K161: 4157.715 | L161: 3038.625 | M161: 2430.9 | N161: 5814.45 | O161: 4816.905 | P161: 4157.715 | Q161: 3038.625 | R161: 2430.9
A162: 24 | C162: 5894.385 | D162: 4877.13 | E162: 4203.705 | F162: 3072.57 | G162: 2458.275 | I162: 5894.385 | J162: 4877.13 | K162: 4203.705 | L162: 3072.57 | M162: 2458.275 | N162: 5894.385 | O162: 4877.13 | P162: 4203.705 | Q162: 3072.57 | R162: 2458.275
A163: 25 | C163: 5974.32 | D163: 4935.165 | E163: 4250.79 | F163: 3106.515 | G163: 2485.65 | I163: 5974.32 | J163: 4935.165 | K163: 4250.79 | L163: 3106.515 | M163: 2485.65 | N163: 5974.32 | O163: 4935.165 | P163: 4250.79 | Q163: 3106.515 | R163: 2485.65
A164: 26 | C164: 6092.58 | D164: 5023.86 | E164: 4320.87 | F164: 3157.98 | G164: 2527.26 | I164: 6092.58 | J164: 5023.86 | K164: 4320.87 | L164: 3157.98 | M164: 2527.26 | N164: 6092.58 | O164: 5023.86 | P164: 4320.87 | Q164: 3157.98 | R164: 2527.26
A165: 27 | C165: 6214.125 | D165: 5115.84 | E165: 4397.52 | F165: 3213.825 | G165: 2571.06 | I165: 6214.125 | J165: 5115.84 | K165: 4397.52 | L165: 3213.825 | M165: 2571.06 | N165: 6214.125 | O165: 5115.84 | P165: 4397.52 | Q165: 3213.825 | R165: 2571.06
A166: 28 | C166: 6341.145 | D166: 5213.295 | E166: 4473.075 | F166: 3269.67 | G166: 2615.955 | I166: 6341.145 | J166: 5213.295 | K166: 4473.075 | L166: 3269.67 | M166: 2615.955 | N166: 6341.145 | O166: 5213.295 | P166: 4473.075 | Q166: 3269.67 | R166: 2615.955
A167: 29 | C167: 6473.64 | D167: 5310.75 | E167: 4554.105 | F167: 3328.8 | G167: 2663.04 | I167: 6473.64 | J167: 5310.75 | K167: 4554.105 | L167: 3328.8 | M167: 2663.04 | N167: 6473.64 | O167: 5310.75 | P167: 4554.105 | Q167: 3328.8 | R167: 2663.04
A168: 30 | C168: 6610.515 | D168: 5415.87 | E168: 4640.61 | F168: 3391.215 | G168: 2713.41 | I168: 6610.515 | J168: 5415.87 | K168: 4640.61 | L168: 3391.215 | M168: 2713.41 | N168: 6610.515 | O168: 5415.87 | P168: 4640.61 | Q168: 3391.215 | R168: 2713.41
A169: 31 | C169: 6751.77 | D169: 5525.37 | E169: 4724.925 | F169: 3453.63 | G169: 2763.78 | I169: 6751.77 | J169: 5525.37 | K169: 4724.925 | L169: 3453.63 | M169: 2763.78 | N169: 6751.77 | O169: 5525.37 | P169: 4724.925 | Q169: 3453.63 | R169: 2763.78
A170: 32 | C170: 6898.5 | D170: 5634.87 | E170: 4818 | F170: 3521.52 | G170: 2817.435 | I170: 6898.5 | J170: 5634.87 | K170: 4818 | L170: 3521.52 | M170: 2817.435 | N170: 6898.5 | O170: 5634.87 | P170: 4818 | Q170: 3521.52 | R170: 2817.435
A171: 33 | C171: 7048.515 | D171: 5753.13 | E171: 4912.17 | F171: 3590.505 | G171: 2873.28 | I171: 7048.515 | J171: 5753.13 | K171: 4912.17 | L171: 3590.505 | M171: 2873.28 | N171: 7048.515 | O171: 5753.13 | P171: 4912.17 | Q171: 3590.505 | R171: 2873.28
A172: 34 | C172: 7206.195 | D172: 5873.58 | E172: 5012.91 | F172: 3663.87 | G172: 2931.315 | I172: 7206.195 | J172: 5873.58 | K172: 5012.91 | L172: 3663.87 | M172: 2931.315 | N172: 7206.195 | O172: 5873.58 | P172: 5012.91 | Q172: 3663.87 | R172: 2931.315
A173: 35 | C173: 7367.16 | D173: 5997.315 | E173: 5113.65 | F173: 3737.235 | G173: 2990.445 | I173: 7367.16 | J173: 5997.315 | K173: 5113.65 | L173: 3737.235 | M173: 2990.445 | N173: 7367.16 | O173: 5997.315 | P173: 5113.65 | Q173: 3737.235 | R173: 2990.445
A174: 36 | C174: 7532.505 | D174: 6125.43 | E174: 5217.675 | F174: 3811.695 | G174: 3049.575 | I174: 7532.505 | J174: 6125.43 | K174: 5217.675 | L174: 3811.695 | M174: 3049.575 | N174: 7532.505 | O174: 6125.43 | P174: 5217.675 | Q174: 3811.695 | R174: 3049.575
A175: 37 | C175: 7703.325 | D175: 6257.925 | E175: 5335.935 | F175: 3900.39 | G175: 3120.75 | I175: 7703.325 | J175: 6257.925 | K175: 5335.935 | L175: 3900.39 | M175: 3120.75 | N175: 7703.325 | O175: 6257.925 | P175: 5335.935 | Q175: 3900.39 | R175: 3120.75
A176: 38 | C176: 7877.43 | D176: 6394.8 | E176: 5471.715 | F176: 3998.94 | G176: 3199.59 | I176: 7877.43 | J176: 6394.8 | K176: 5471.715 | L176: 3998.94 | M176: 3199.59 | N176: 7877.43 | O176: 6394.8 | P176: 5471.715 | Q176: 3998.94 | R176: 3199.59
A177: 39 | C177: 8060.295 | D177: 6537.15 | E177: 5611.875 | F177: 4101.87 | G177: 3281.715 | I177: 8060.295 | J177: 6537.15 | K177: 5611.875 | L177: 4101.87 | M177: 3281.715 | N177: 8060.295 | O177: 6537.15 | P177: 5611.875 | Q177: 4101.87 | R177: 3281.715
A178: 40 | C178: 8243.16 | D178: 6680.595 | E178: 5754.225 | F178: 4206.99 | G178: 3366.03 | I178: 8243.16 | J178: 6680.595 | K178: 5754.225 | L178: 4206.99 | M178: 3366.03 | N178: 8243.16 | O178: 6680.595 | P178: 5754.225 | Q178: 4206.99 | R178: 3366.03
A179: 41 | C179: 8433.69 | D179: 6827.325 | E179: 5902.05 | F179: 4315.395 | G179: 3452.535 | I179: 8433.69 | J179: 6827.325 | K179: 5902.05 | L179: 4315.395 | M179: 3452.535 | N179: 8433.69 | O179: 6827.325 | P179: 5902.05 | Q179: 4315.395 | R179: 3452.535
A180: 42 | C180: 8630.79 | D180: 6980.625 | E180: 6053.16 | F180: 4424.895 | G180: 3540.135 | I180: 8630.79 | J180: 6980.625 | K180: 6053.16 | L180: 4424.895 | M180: 3540.135 | N180: 8630.79 | O180: 6980.625 | P180: 6053.16 | Q180: 4424.895 | R180: 3540.135
A181: 43 | C181: 8826.795 | D181: 7137.21 | E181: 6207.555 | F181: 4536.585 | G181: 3629.925 | I181: 8826.795 | J181: 7137.21 | K181: 6207.555 | L181: 4536.585 | M181: 3629.925 | N181: 8826.795 | O181: 7137.21 | P181: 6207.555 | Q181: 4536.585 | R181: 3629.925
A182: 44 | C182: 9032.655 | D182: 7297.08 | E182: 6365.235 | F182: 4652.655 | G182: 3723 | I182: 9032.655 | J182: 7297.08 | K182: 6365.235 | L182: 4652.655 | M182: 3723 | N182: 9032.655 | O182: 7297.08 | P182: 6365.235 | Q182: 4652.655 | R182: 3723
A183: 45 | C183: 9243.99 | D183: 7461.33 | E183: 6528.39 | F183: 4772.01 | G183: 3818.265 | I183: 9243.99 | J183: 7461.33 | K183: 6528.39 | L183: 4772.01 | M183: 3818.265 | N183: 9243.99 | O183: 7461.33 | P183: 6528.39 | Q183: 4772.01 | R183: 3818.265
A184: 46 | C184: 9457.515 | D184: 7629.96 | E184: 6695.925 | F184: 4892.46 | G184: 3914.625 | I184: 9457.515 | J184: 7629.96 | K184: 6695.925 | L184: 4892.46 | M184: 3914.625 | N184: 9457.515 | O184: 7629.96 | P184: 6695.925 | Q184: 4892.46 | R184: 3914.625
A185: 47 | C185: 9678.705 | D185: 7801.875 | E185: 6865.65 | F185: 5017.29 | G185: 4014.27 | I185: 9678.705 | J185: 7801.875 | K185: 6865.65 | L185: 5017.29 | M185: 4014.27 | N185: 9678.705 | O185: 7801.875 | P185: 6865.65 | Q185: 5017.29 | R185: 4014.27
A186: 48 | C186: 9900.99 | D186: 7978.17 | E186: 7040.85 | F186: 5145.405 | G186: 4117.2 | I186: 9900.99 | J186: 7978.17 | K186: 7040.85 | L186: 5145.405 | M186: 4117.2 | N186: 9900.99 | O186: 7978.17 | P186: 7040.85 | Q186: 5145.405 | R186: 4117.2
A187: 49 | C187: 10128.75 | D187: 8157.75 | E187: 7218.24 | F187: 5273.52 | G187: 4219.035 | I187: 10128.75 | J187: 8157.75 | K187: 7218.24 | L187: 5273.52 | M187: 4219.035 | N187: 10128.75 | O187: 8157.75 | P187: 7218.24 | Q187: 5273.52 | R187: 4219.035
A188: 50 | C188: 10363.08 | D188: 8343.9 | E188: 7397.82 | F188: 5408.205 | G188: 4327.44 | I188: 10363.08 | J188: 8343.9 | K188: 7397.82 | L188: 5408.205 | M188: 4327.44 | N188: 10363.08 | O188: 8343.9 | P188: 7397.82 | Q188: 5408.205 | R188: 4327.44
A189: 51 | C189: 10601.79 | D189: 8532.24 | E189: 7582.875 | F189: 5542.89 | G189: 4434.75 | I189: 10601.79 | J189: 8532.24 | K189: 7582.875 | L189: 5542.89 | M189: 4434.75 | N189: 10601.79 | O189: 8532.24 | P189: 7582.875 | Q189: 5542.89 | R189: 4434.75
A190: 52 | C190: 10845.975 | D190: 8724.96 | E190: 7773.405 | F190: 5680.86 | G190: 4545.345 | I190: 10845.975 | J190: 8724.96 | K190: 7773.405 | L190: 5680.86 | M190: 4545.345 | N190: 10845.975 | O190: 8724.96 | P190: 7773.405 | Q190: 5680.86 | R190: 4545.345
A191: 53 | C191: 11093.445 | D191: 8923.155 | E191: 7967.22 | F191: 5822.115 | G191: 4658.13 | I191: 11093.445 | J191: 8923.155 | K191: 7967.22 | L191: 5822.115 | M191: 4658.13 | N191: 11093.445 | O191: 8923.155 | P191: 7967.22 | Q191: 5822.115 | R191: 4658.13
A192: 54 | C192: 11344.2 | D192: 9123.54 | E192: 8163.225 | F192: 5965.56 | G192: 4773.105 | I192: 11344.2 | J192: 9123.54 | K192: 8163.225 | L192: 5965.56 | M192: 4773.105 | N192: 11344.2 | O192: 9123.54 | P192: 8163.225 | Q192: 5965.56 | R192: 4773.105
A193: 55 | C193: 11603.715 | D193: 9326.115 | E193: 8363.61 | F193: 6113.385 | G193: 4891.365 | I193: 11603.715 | J193: 9326.115 | K193: 8363.61 | L193: 6113.385 | M193: 4891.365 | N193: 11603.715 | O193: 9326.115 | P193: 8363.61 | Q193: 6113.385 | R193: 4891.365
A194: 56 | C194: 11866.515 | D194: 9536.355 | E194: 8568.375 | F194: 6263.4 | G194: 5010.72 | I194: 11866.515 | J194: 9536.355 | K194: 8568.375 | L194: 6263.4 | M194: 5010.72 | N194: 11866.515 | O194: 9536.355 | P194: 8568.375 | Q194: 6263.4 | R194: 5010.72
A195: 57 | C195: 12132.6 | D195: 9747.69 | E195: 8775.33 | F195: 6412.32 | G195: 5130.075 | I195: 12132.6 | J195: 9747.69 | K195: 8775.33 | L195: 6412.32 | M195: 5130.075 | N195: 12132.6 | O195: 9747.69 | P195: 8775.33 | Q195: 6412.32 | R195: 5130.075
A196: 58 | C196: 12405.255 | D196: 9964.5 | E196: 8985.57 | F196: 6567.81 | G196: 5254.905 | I196: 12405.255 | J196: 9964.5 | K196: 8985.57 | L196: 6567.81 | M196: 5254.905 | N196: 12405.255 | O196: 9964.5 | P196: 8985.57 | Q196: 6567.81 | R196: 5254.905
A197: 59 | C197: 12684.48 | D197: 10185.69 | E197: 9204.57 | F197: 6726.585 | G197: 5381.925 | I197: 12684.48 | J197: 10185.69 | K197: 9204.57 | L197: 6726.585 | M197: 5381.925 | N197: 12684.48 | O197: 10185.69 | P197: 9204.57 | Q197: 6726.585 | R197: 5381.925
A198: 60 | C198: 12966.99 | D198: 10409.07 | E198: 9422.475 | F198: 6885.36 | G198: 5508.945 | I198: 12966.99 | J198: 10409.07 | K198: 9422.475 | L198: 6885.36 | M198: 5508.945 | N198: 12966.99 | O198: 10409.07 | P198: 9422.475 | Q198: 6885.36 | R198: 5508.945
A199: 61 | C199: 14448.525 | D199: 11594.955 | E199: 10576.605 | F199: 7730.7 | G199: 6184.56 | I199: 14448.525 | J199: 11594.955 | K199: 10576.605 | L199: 7730.7 | M199: 6184.56 | N199: 14448.525 | O199: 11594.955 | P199: 10576.605 | Q199: 7730.7 | R199: 6184.56
A200: 62 | C200: 16054.89 | D200: 12877.2 | E200: 11828.19 | F200: 8642.835 | G200: 6914.925 | I200: 16054.89 | J200: 12877.2 | K200: 11828.19 | L200: 8642.835 | M200: 6914.925 | N200: 16054.89 | O200: 12877.2 | P200: 11828.19 | Q200: 8642.835 | R200: 6914.925
A201: 63 | C201: 17779.515 | D201: 14261.28 | E201: 13172.85 | F201: 9626.145 | G201: 7701.135 | I201: 17779.515 | J201: 14261.28 | K201: 13172.85 | L201: 9626.145 | M201: 7701.135 | N201: 17779.515 | O201: 14261.28 | P201: 13172.85 | Q201: 9626.145 | R201: 7701.135
A202: 64 | C202: 19626.78 | D202: 15746.1 | E202: 14612.775 | F202: 10678.44 | G202: 8543.19 | I202: 19626.78 | J202: 15746.1 | K202: 14612.775 | L202: 10678.44 | M202: 8543.19 | N202: 19626.78 | O202: 15746.1 | P202: 14612.775 | Q202: 10678.44 | R202: 8543.19
A203: 65 | C203: 21593.4 | D203: 17330.565 | E203: 16149.06 | F203: 11800.815 | G203: 9441.09 | I203: 21593.4 | J203: 17330.565 | K203: 16149.06 | L203: 11800.815 | M203: 9441.09 | N203: 21593.4 | O203: 17330.565 | P203: 16149.06 | Q203: 11800.815 | R203: 9441.09
A204: 66 | C204: 23682.66 | D204: 19017.96 | E204: 17780.61 | F204: 12993.27 | G204: 10394.835 | I204: 23682.66 | J204: 19017.96 | K204: 17780.61 | L204: 12993.27 | M204: 10394.835 | N204: 23682.66 | O204: 19017.96 | P204: 17780.61 | Q204: 12993.27 | R204: 10394.835
A205: 67 | C205: 25891.275 | D205: 20803.905 | E205: 19506.33 | F205: 14254.71 | G205: 11404.425 | I205: 25891.275 | J205: 20803.905 | K205: 19506.33 | L205: 14254.71 | M205: 11404.425 | N205: 25891.275 | O205: 20803.905 | P205: 19506.33 | Q205: 14254.71 | R205: 11404.425
A206: 68 | C206: 28223.625 | D206: 22689.495 | E206: 21324.03 | F206: 15584.04 | G206: 12467.67 | I206: 28223.625 | J206: 22689.495 | K206: 21324.03 | L206: 15584.04 | M206: 12467.67 | N206: 28223.625 | O206: 22689.495 | P206: 21324.03 | Q206: 15584.04 | R206: 12467.67
... 1257 more rows
